Organisation Name (A),Department (B),Service Cat Label (C ),Purpose of Spend (D),Expenditure CIPFA Sub Group (E ),Supplier (F),Supplier Reference (G),Pay Date (H),Transaction Number (I),Net Amount (J),Grant to VCSE? (K),Charity Number (L),Card Transaction (M),Irrecoverable VAT (N),
Pendle Borough Council,Parks & Recreation Services,,Tax Deducted,PD05,A BINNS & CO,A0057121, 17/08/2017,PCO0282240,500.00,N,N/A,N,N/A,
Pendle Borough Council,Property Services,Capital Costs,Capital : Payments,CD14,A H INTERIOR (NELSON)  LIMITED,A0046261, 10/08/2017,EST0282101,4000.00,N,N/A,N,N/A,
Pendle Borough Council,Housing Regeneration Services,Capital Costs,Ren Grant : 1996 Act,CH22,A J HEY BUILDING SERVICES,A0072755, 03/08/2017,HMR0281879,16290.00,N,N/A,N,2715,
Pendle Borough Council,Financial Services,Supplies and Services,Consultants Fees,4401,ACS LTD,A0090312, 10/08/2017,AAS0282172,800.00,N,N/A,N,N/A,
Pendle Borough Council,Economic Development & Tourism,Supplies and Services,Grants/Contributions,4739,AGENDA BOXES & PACKAGING LIMITED,A0091275, 31/08/2017,REG0282529,5881.00,N,N/A,N,N/A,
Pendle Borough Council,Democratic & Legal Services,Supplies and Services,Other Expenses,4705,AGILE APPLICATIONS LIMITED,A0053234, 24/08/2017,DAL0282443,800.00,N,N/A,N,N/A,
Pendle Borough Council,Parks & Recreation Services,Transport Related Expense,Tyres,3204,AGRISPARES TRADING COMPANY LIMITED,A0090706, 24/08/2017,PCO0282382,720.00,N,N/A,N,N/A,
Pendle Borough Council,Parks & Recreation Services,Premises Related Expense,Grounds : R & M : Day to Day : Routine,2101,ALAN POXON,A0054782, 17/08/2017,PCO0282205,39.00,N,N/A,N,N/A,
Pendle Borough Council,Parks & Recreation Services,Premises Related Expense,Grounds : R & M : Day to Day : Routine,2101,ALAN POXON,A0054782, 17/08/2017,PCO0282205,95.00,N,N/A,N,N/A,
Pendle Borough Council,Financial Services,Transport Related Expense,Tprt : Annual Hire Charge,3601,ALD AUTOMOTIVES,A0025555, 24/08/2017,AAS0282604,193.24,N,N/A,N,N/A,
Pendle Borough Council,Financial Services,Supplies and Services,Allpay,4422,ALLPAY LIMITED,A0084372, 10/08/2017,AAS0282165,21.88,N,N/A,N,N/A,
Pendle Borough Council,Financial Services,Supplies and Services,Allpay,4422,ALLPAY LIMITED,A0084372, 10/08/2017,AAS0282159,25.37,N,N/A,N,N/A,
Pendle Borough Council,Financial Services,Supplies and Services,Allpay,4422,ALLPAY LIMITED,A0084372, 10/08/2017,AAS0282162,33.19,N,N/A,N,N/A,
Pendle Borough Council,Financial Services,Supplies and Services,Allpay,4422,ALLPAY LIMITED,A0084372, 10/08/2017,AAS0282169,33.19,N,N/A,N,N/A,
Pendle Borough Council,Financial Services,Supplies and Services,Allpay,4422,ALLPAY LIMITED,A0084372, 17/08/2017,AAS0282259,1638.35,N,N/A,N,N/A,
Pendle Borough Council,Economic Development & Tourism,Supplies and Services,Grants/Contributions,4739,AMD,A0091270, 24/08/2017,REG0282460,1863.98,N,N/A,N,N/A,
Pendle Borough Council,Operational Services,Supplies and Services,Printing & Stationery,4301,APPLE-P LIMITED,A0090443, 03/08/2017,OPS0281954,453.00,N,N/A,N,N/A,
Pendle Borough Council,Financial Services,Transport Related Expense,Tprt : Annual Hire Charge,3601,ARVAL LTD (ALLSTAR FUEL SERVICES),A0062668, 31/08/2017,AAS0282741,15.00,N,N/A,N,N/A,
Pendle Borough Council,Financial Services,Transport Related Expense,Tprt : Annual Hire Charge,3601,ARVAL LTD (ALLSTAR FUEL SERVICES),A0062668, 15/08/2017,AAS0282601,144.48,N,N/A,N,N/A,
Pendle Borough Council,Financial Services,Transport Related Expense,Tprt : Annual Hire Charge,3601,ARVAL LTD (ALLSTAR FUEL SERVICES),A0062668, 31/08/2017,AAS0282741,15.00,N,N/A,N,N/A,
Pendle Borough Council,Financial Services,Transport Related Expense,Tprt : Annual Hire Charge,3601,ARVAL LTD (ALLSTAR FUEL SERVICES),A0062668, 15/08/2017,AAS0282601,144.48,N,N/A,N,N/A,
Pendle Borough Council,Financial Services,Transport Related Expense,Tprt : Annual Hire Charge,3601,ARVAL LTD (ALLSTAR FUEL SERVICES),A0062668, 31/08/2017,AAS0282741,15.00,N,N/A,N,N/A,
Pendle Borough Council,Financial Services,Transport Related Expense,Tprt : Annual Hire Charge,3601,ARVAL LTD (ALLSTAR FUEL SERVICES),A0062668, 15/08/2017,AAS0282601,144.48,N,N/A,N,N/A,
Pendle Borough Council,Financial Services,Transport Related Expense,Tprt : Annual Hire Charge,3601,ARVAL LTD (ALLSTAR FUEL SERVICES),A0062668, 31/08/2017,AAS0282741,15.00,N,N/A,N,N/A,
Pendle Borough Council,Financial Services,Transport Related Expense,Tprt : Annual Hire Charge,3601,ARVAL LTD (ALLSTAR FUEL SERVICES),A0062668, 15/08/2017,AAS0282601,144.48,N,N/A,N,N/A,
Pendle Borough Council,Financial Services,Transport Related Expense,Tprt : Annual Hire Charge,3601,ARVAL LTD (ALLSTAR FUEL SERVICES),A0062668, 15/08/2017,AAS0282742,223.88,N,N/A,N,N/A,
Pendle Borough Council,Financial Services,Transport Related Expense,Tprt : Annual Hire Charge,3601,ARVAL LTD (ALLSTAR FUEL SERVICES),A0062668, 15/08/2017,AAS0282742,224.87,N,N/A,N,N/A,
Pendle Borough Council,Financial Services,Transport Related Expense,Tprt : Annual Hire Charge,3601,ARVAL LTD (ALLSTAR FUEL SERVICES),A0062668, 31/08/2017,AAS0282741,15.00,N,N/A,N,N/A,
Pendle Borough Council,Financial Services,Transport Related Expense,Tprt : Annual Hire Charge,3601,ARVAL LTD (ALLSTAR FUEL SERVICES),A0062668, 15/08/2017,AAS0282601,144.48,N,N/A,N,N/A,
Pendle Borough Council,Housing Regeneration Services,Capital Costs,Ren Grant : 1996 Act,CH22,ATM CONSTRUCTION LTD,A0066308, 17/08/2017,HMR0282215,16107.00,N,N/A,N,N/A,
Pendle Borough Council,Financial Services,Supplies and Services,Consultants Fees,4401,AURORA ACCOUNTING SERVICES,A0089134, 31/08/2017,AAS0282524,1710.00,N,N/A,N,N/A,
Pendle Borough Council,Economic Development & Tourism,Supplies and Services,Consultants Fees,4401,AXIS,A0091231, 24/08/2017,REG0282461,600.00,N,N/A,N,N/A,
Pendle Borough Council,Housing Regeneration Services,Supplies and Services,Protective Clothing,4201,REDACTED - PERSONAL DATA,A0012255, 31/08/2017,HMR0282509,49.99,N,N/A,N,N/A,
Pendle Borough Council,Parks & Recreation Services,Transport Related Expense,Tprt : Repairs : General,3105,BALMERS GM LIMITED,A0000198, 24/08/2017,PCO0282367,32.55,N,N/A,N,N/A,
Pendle Borough Council,Parks & Recreation Services,Transport Related Expense,Tprt : Repairs : General,3105,BALMERS GM LIMITED,A0000198, 10/08/2017,PCO0282036,60.69,N,N/A,N,N/A,
Pendle Borough Council,Parks & Recreation Services,Transport Related Expense,Tprt : Repairs : General,3105,BALMERS GM LIMITED,A0000198, 10/08/2017,PCO0282036,102.00,N,N/A,N,N/A,
Pendle Borough Council,Parks & Recreation Services,Transport Related Expense,Tprt : Repairs : General,3105,BALMERS GM LIMITED,A0000198, 10/08/2017,PCO0282036,102.00,N,N/A,N,N/A,
Pendle Borough Council,Parks & Recreation Services,Transport Related Expense,Tprt : Repairs : General,3105,BALMERS GM LIMITED,A0000198, 24/08/2017,PCO0282387,9.79,N,N/A,N,N/A,
Pendle Borough Council,Parks & Recreation Services,Transport Related Expense,Tprt : Repairs : General,3105,BALMERS GM LIMITED,A0000198, 24/08/2017,PCO0282387,9.79,N,N/A,N,N/A,
Pendle Borough Council,Parks & Recreation Services,Transport Related Expense,Tprt : Repairs : General,3105,BALMERS GM LIMITED,A0000198, 03/08/2017,PCO0281947,96.62,N,N/A,N,N/A,
Pendle Borough Council,Parks & Recreation Services,Transport Related Expense,Tprt : Repairs : General,3105,BALMERS GM LIMITED,A0000198, 03/08/2017,PCO0281944,102.00,N,N/A,N,N/A,
Pendle Borough Council,Parks & Recreation Services,Transport Related Expense,Tprt : Repairs : General,3105,BALMERS GM LIMITED,A0000198, 10/08/2017,PCO0282037,149.85,N,N/A,N,N/A,
Pendle Borough Council,Parks & Recreation Services,Transport Related Expense,Tprt : Repairs : General,3105,BARNES JB LIMITED,A0000202, 24/08/2017,PCO0282380,11.04,N,N/A,N,N/A,
Pendle Borough Council,Parks & Recreation Services,Transport Related Expense,Tprt : Repairs : General,3105,BARNES JB LIMITED,A0000202, 10/08/2017,PCO0282035,23.77,N,N/A,N,N/A,
Pendle Borough Council,Parks & Recreation Services,Transport Related Expense,Tprt : Repairs : General,3105,BARNES JB LIMITED,A0000202, 10/08/2017,PCO0282035,60.00,N,N/A,N,N/A,
Pendle Borough Council,Operational Services,Supplies and Services,EFM Materials,4004,BARNES JB LIMITED,A0000202, 24/08/2017,OPS0282428,35.52,N,N/A,N,N/A,
Pendle Borough Council,Operational Services,Supplies and Services,EFM Materials,4004,BARNES JB LIMITED,A0000202, 24/08/2017,OPS0282429,3.92,N,N/A,N,N/A,
Pendle Borough Council,Operational Services,,Stock : Purchases,pj01,BARNES JB LIMITED,A0000202, 17/08/2017,OPS0282268,6.91,N,N/A,N,N/A,
Pendle Borough Council,Property Services,Premises Related Expense,Bldgs : R & M : Day To Day,2001,BARROWFORD SAFE & LOCK SERV LT,A0000458, 31/08/2017,EST0282547,35.00,N,N/A,N,N/A,
Pendle Borough Council,Property Services,Premises Related Expense,Bldgs : R & M : Day To Day,2001,BARROWFORD SAFE & LOCK SERV LT,A0000458, 17/08/2017,EST0282245,49.12,N,N/A,N,N/A,
Pendle Borough Council,Property Services,Premises Related Expense,Bldgs : R & M : Day To Day,2001,BARROWFORD SAFE & LOCK SERV LT,A0000458, 17/08/2017,EST0282243,65.40,N,N/A,N,N/A,
Pendle Borough Council,Property Services,Premises Related Expense,Bldgs : R & M : Day To Day,2001,BARROWFORD SAFE & LOCK SERV LT,A0000458, 17/08/2017,EST0282242,35.00,N,N/A,N,N/A,
Pendle Borough Council,Economic Development & Tourism,Capital Costs,Capital : Payments,CD14,BEES BOUTIQUE,A0084969, 24/08/2017,REG0282449,544.87,N,N/A,N,N/A,
Pendle Borough Council,Parks & Recreation Services,Premises Related Expense,Grounds : R & M : Day to Day : Routine,2101,BETTS GEO ENVIRONMENTAL LIMITED,A0090455, 24/08/2017,PCO0282360,450.00,N,N/A,N,N/A,
Pendle Borough Council,Parks & Recreation Services,Premises Related Expense,Grounds : R & M : Day to Day : Routine,2101,BETTS GEO ENVIRONMENTAL LIMITED,A0090455, 24/08/2017,PCO0282360,2100.00,N,N/A,N,N/A,
Pendle Borough Council,Parks & Recreation Services,Transport Related Expense,Tprt : Repairs : General,3105,BOC GASES LTD,A0000386, 10/08/2017,PCO0282053,11.15,N,N/A,N,N/A,
Pendle Borough Council,Engineering & Special Projects,Premises Related Expense,Grounds : R & M : Day to Day : Routine,2101,BOLTON BY BOWLAND VILLAGE HALL,A0090978, 10/08/2017,HED0282054,60.00,N,N/A,N,N/A,
Pendle Borough Council,Parks & Recreation Services,Premises Related Expense,Bldgs : R & M : Day To Day,2001,BRENT STEVENSON MEMORIALS,A0002426, 24/08/2017,PCO0282388,79.17,N,N/A,N,N/A,
Pendle Borough Council,Engineering & Special Projects,Capital Costs,Capital : Payments,CD14,BRIERFIELD ACTION IN THE COMMUNITY,A0040743, 03/08/2017,HED0281927,620.00,Y,1112377,N,N/A,
Pendle Borough Council,Engineering & Special Projects,Capital Costs,Capital : Payments,CD14,BRIERFIELD ACTION IN THE COMMUNITY,A0040743, 03/08/2017,HED0281928,750.00,Y,1112377,N,N/A,
Pendle Borough Council,Parks & Recreation Services,Supplies and Services,Expenditure : Materials,0002,BRIGGS & DUXBURY LTD,A0000459, 24/08/2017,PCO0282384,17.43,N,N/A,N,N/A,
Pendle Borough Council,Parks & Recreation Services,Premises Related Expense,Grounds : R & M : Day to Day : Routine,2101,BRIGGS & DUXBURY LTD,A0000459, 24/08/2017,PCO0282384,37.16,N,N/A,N,N/A,
Pendle Borough Council,Financial Services,Premises Related Expense,Gas,2202,BRITISH GAS BUSINESS,A0057202, 10/08/2017,AAS0282153,25.94,N,N/A,N,N/A,
Pendle Borough Council,Financial Services,Premises Related Expense,Electricity,2203,BRITISH GAS BUSINESS,A0057202, 10/08/2017,AAS0282152,34.46,N,N/A,N,N/A,
Pendle Borough Council,Property Services,Premises Related Expense,Electricity,2203,BRITISH GAS BUSINESS,A0057202, 17/08/2017,EST0282229,8.70,N,N/A,N,N/A,
Pendle Borough Council,Property Services,Premises Related Expense,Electricity,2203,BRITISH GAS BUSINESS,A0057202, 24/08/2017,EST0282475,114.64,N,N/A,N,N/A,
Pendle Borough Council,Property Services,Premises Related Expense,Electricity,2203,BRITISH GAS BUSINESS,A0057202, 17/08/2017,EST0282233,16.49,N,N/A,N,N/A,
Pendle Borough Council,Property Services,Premises Related Expense,Water & Sewerage,2501,BRITISH GAS BUSINESS,A0057202, 03/08/2017,EST0281991,115.12,N,N/A,N,N/A,
Pendle Borough Council,Financial Services,Premises Related Expense,Electricity,2203,BRITISH GAS BUSINESS,A0069538, 25/08/2017,AAS0282606,9.89,N,N/A,N,N/A,
Pendle Borough Council,Financial Services,Premises Related Expense,Electricity,2203,BRITISH GAS BUSINESS,A0069538, 25/08/2017,AAS4005664,-90.38,N,N/A,N,N/A,
Pendle Borough Council,Financial Services,Premises Related Expense,Electricity,2203,BRITISH GAS BUSINESS,A0069538, 25/08/2017,AAS0282737,20.37,N,N/A,N,N/A,
Pendle Borough Council,Financial Services,Premises Related Expense,Electricity,2203,BRITISH GAS BUSINESS,A0069538, 25/08/2017,AAS0282738,119.87,N,N/A,N,N/A,
Pendle Borough Council,Financial Services,Premises Related Expense,Electricity,2203,BRITISH GAS BUSINESS,A0069538, 25/08/2017,AAS0282739,49.57,N,N/A,N,N/A,
Pendle Borough Council,Property Services,Premises Related Expense,Gas,2202,BRITISH GAS TRADING LIMITED,A0053746, 31/08/2017,EST0282546,111.44,N,N/A,N,N/A,
Pendle Borough Council,Environmental Health Services,Supplies and Services,Other Expenses,4705,BRITISH GEOLOGICAL SURVEY (NERC),A0091238, 24/08/2017,ENV0282451,338.28,N,N/A,N,N/A,
Pendle Borough Council,Property Services,Supplies and Services,Telephones : Direct,4502,BRITISH TELECOMMUNICATIONS PLC,A0040001, 17/08/2017,EST0282237,53.97,N,N/A,N,N/A,
Pendle Borough Council,Parks & Recreation Services,Premises Related Expense,Grounds : R & M : Day to Day : Routine,2101,BROWNS ENGINEERING SERVICES,A0012980, 24/08/2017,PCO0282399,135.00,N,N/A,N,N/A,
Pendle Borough Council,Parks & Recreation Services,Premises Related Expense,Grounds : R & M : Day to Day : Routine,2101,BROXAP LIMITED,A0000236, 17/08/2017,PCO0282203,61.00,N,N/A,N,N/A,
Pendle Borough Council,Parks & Recreation Services,Premises Related Expense,Grounds : R & M : Day to Day : Routine,2101,BROXAP LIMITED,A0000236, 17/08/2017,PCO0282203,395.00,N,N/A,N,N/A,
Pendle Borough Council,Parks & Recreation Services,Premises Related Expense,Bldgs : R & M : Day To Day,2001,BT GROUP PLC,A0081546, 17/08/2017,PCO0282207,212.29,N,N/A,N,N/A,
Pendle Borough Council,Engineering & Special Projects,Supplies and Services,Subscriptions & Donations,4706,BURNLEY & PENDLE TRAVEL LIMITED,A0091075, 10/08/2017,HED0282057,641.66,N,N/A,N,N/A,
Pendle Borough Council,Engineering & Special Projects,Supplies and Services,Subscriptions & Donations,4706,BURNLEY & PENDLE TRAVEL LIMITED,A0091075, 10/08/2017,HED0282058,641.66,N,N/A,N,N/A,
Pendle Borough Council,Engineering & Special Projects,Supplies and Services,Subscriptions & Donations,4706,BURNLEY & PENDLE TRAVEL LIMITED,A0091075, 24/08/2017,HED0282462,641.66,N,N/A,N,N/A,
Pendle Borough Council,Operational Services,Supplies and Services,Other Expenses,4705,BURNLEY ALARM SYSTEMS LTD,A0056318, 10/08/2017,OPS0282103,595.00,N,N/A,N,N/A,
Pendle Borough Council,Operational Services,Supplies and Services,Other Expenses,4705,BURNLEY ALARM SYSTEMS LTD,A0056318, 10/08/2017,OPS0282103,3712.00,N,N/A,N,N/A,
Pendle Borough Council,Economic Development & Tourism,Transport Related Expense,Tprt : Repairs : General,3105,C & A 4 X 4,A0000614, 17/08/2017,REG0282086,60.00,N,N/A,N,N/A,
Pendle Borough Council,Economic Development & Tourism,Transport Related Expense,Tyres,3204,C & A 4 X 4,A0000614, 17/08/2017,REG0282085,385.80,N,N/A,N,N/A,
Pendle Borough Council,Parks & Recreation Services,Premises Related Expense,Grounds : R & M : Day to Day : Routine,2101,C & R WALNE ENGRAVERS,A0042734, 03/08/2017,PCO0281941,32.00,N,N/A,N,N/A,
Pendle Borough Council,Parks & Recreation Services,Premises Related Expense,Bldgs : R & M : Day To Day,2001,C B PRICE & SONS BUILDERS,A0052117, 24/08/2017,PCO0282372,500.00,N,N/A,N,N/A,
Pendle Borough Council,Democratic & Legal Services,Supplies and Services,EFM : Photocopiers,4001,CANON (UK) LIMITED,A0040400, 31/08/2017,DAL0282541,44.13,N,N/A,N,N/A,
Pendle Borough Council,Democratic & Legal Services,Supplies and Services,EFM : Photocopiers,4001,CANON (UK) LIMITED,A0040400, 31/08/2017,DAL0282541,55.16,N,N/A,N,N/A,
Pendle Borough Council,Democratic & Legal Services,Supplies and Services,EFM : Photocopiers,4001,CANON (UK) LIMITED,A0040400, 31/08/2017,DAL0282541,77.22,N,N/A,N,N/A,
Pendle Borough Council,Democratic & Legal Services,Supplies and Services,EFM : Photocopiers,4001,CANON (UK) LIMITED,A0040400, 31/08/2017,DAL0282541,22.06,N,N/A,N,N/A,
Pendle Borough Council,Democratic & Legal Services,Supplies and Services,EFM : Photocopiers,4001,CANON (UK) LIMITED,A0040400, 31/08/2017,DAL0282541,22.06,N,N/A,N,N/A,
Pendle Borough Council,Democratic & Legal Services,Supplies and Services,EFM : Photocopiers,4001,CANON (UK) LIMITED,A0040400, 31/08/2017,DAL0282511,39.59,N,N/A,N,N/A,
Pendle Borough Council,Democratic & Legal Services,Supplies and Services,EFM : Photocopiers,4001,CANON (UK) LIMITED,A0040400, 31/08/2017,DAL0282511,176.91,N,N/A,N,N/A,
Pendle Borough Council,Democratic & Legal Services,Supplies and Services,EFM : Photocopiers,4001,CANON (UK) LIMITED,A0040400, 31/08/2017,DAL0282511,167.74,N,N/A,N,N/A,
Pendle Borough Council,Democratic & Legal Services,Supplies and Services,EFM : Photocopiers,4001,CANON (UK) LIMITED,A0040400, 31/08/2017,DAL0282511,9.87,N,N/A,N,N/A,
Pendle Borough Council,Democratic & Legal Services,Supplies and Services,EFM : Photocopiers,4001,CANON (UK) LIMITED,A0040400, 31/08/2017,DAL0282511,16.94,N,N/A,N,N/A,
Pendle Borough Council,Democratic & Legal Services,Supplies and Services,EFM : Photocopiers,4001,CANON (UK) LIMITED,A0040400, 31/08/2017,DAL0282511,34.80,N,N/A,N,N/A,
Pendle Borough Council,Engineering & Special Projects,Supplies and Services,EFM : Photocopiers,4001,CANON (UK) LIMITED,A0040400, 24/08/2017,HED0282440,46.52,N,N/A,N,N/A,
Pendle Borough Council,Engineering & Special Projects,Supplies and Services,EFM : Photocopiers,4001,CANON (UK) LIMITED,A0040400, 24/08/2017,HED0282440,73.53,N,N/A,N,N/A,
Pendle Borough Council,Housing Regeneration Services,Supplies and Services,EFM : Photocopiers,4001,CANON (UK) LIMITED,A0040400, 24/08/2017,HMR0282433,53.68,N,N/A,N,N/A,
Pendle Borough Council,Engineering & Special Projects,Supplies and Services,EFM : Photocopiers,4001,CANON (UK) LIMITED,A0040400, 24/08/2017,HED0282441,74.57,N,N/A,N,N/A,
Pendle Borough Council,Housing Regeneration Services,Supplies and Services,EFM : Photocopiers,4001,CANON (UK) LIMITED,A0040400, 31/08/2017,HMR0282505,89.24,N,N/A,N,N/A,
Pendle Borough Council,Engineering & Special Projects,Supplies and Services,EFM : Photocopiers,4001,CANON (UK) LIMITED,A0040400, 24/08/2017,HED0282439,111.21,N,N/A,N,N/A,
Pendle Borough Council,Economic Development & Tourism,Supplies and Services,EFM : Photocopiers,4001,CANON (UK) LIMITED,A0040400, 24/08/2017,REG0282447,126.04,N,N/A,N,N/A,
Pendle Borough Council,Engineering & Special Projects,Supplies and Services,EFM : Photocopiers,4001,CANON (UK) LIMITED,A0040400, 24/08/2017,HED0282442,254.67,N,N/A,N,N/A,
Pendle Borough Council,Engineering & Special Projects,Supplies and Services,EFM : Photocopiers,4001,CANON (UK) LIMITED,A0040400, 24/08/2017,HED0282441,80.00,N,N/A,N,N/A,
Pendle Borough Council,Engineering & Special Projects,Supplies and Services,EFM : Other Equipment,4003,CANON (UK) LIMITED,A0040400, 31/08/2017,HED0282515,53.48,N,N/A,N,N/A,
Pendle Borough Council,Directorate,Supplies and Services,Printing & Stationery,4301,CANON (UK) LIMITED,A0040400, 24/08/2017,MAN0282486,107.60,N,N/A,N,N/A,
Pendle Borough Council,Engineering & Special Projects,Capital Costs,Capital : Payments,CD14,CB EXCAVATORS LTD,A0000396, 03/08/2017,HED0281958,36878.30,N,N/A,N,N/A,
Pendle Borough Council,Engineering & Special Projects,Supplies and Services,Other Expenses,4705,CHIPSIDE LTD,A0068587, 03/08/2017,HED0281956,17.86,N,N/A,N,N/A,
Pendle Borough Council,Engineering & Special Projects,Supplies and Services,Other Expenses,4705,CHIPSIDE LTD,A0068587, 10/08/2017,HED0282102,20.87,N,N/A,N,N/A,
Pendle Borough Council,Operational Services,Premises Related Expense,Bldgs : R & M : Day To Day,2001,CHUBB FIRE & SECURITY LTD,A0057603, 03/08/2017,OPS0281964,113.25,N,N/A,N,N/A,
Pendle Borough Council,Engineering & Special Projects,Capital Costs,Capital : Payments,CD14,COLNE IN BLOOM,A0091202, 03/08/2017,HED0281926,250.00,N,N/A,N,N/A,
Pendle Borough Council,Operational Services,Supplies and Services,EFM Materials,4004,CONTAINER CARE SOLUTIONS LIMITED,A0061112, 17/08/2017,OPS0282269,340.00,N,N/A,N,N/A,
Pendle Borough Council,Operational Services,Supplies and Services,EFM Materials,4004,CONTAINER CARE SOLUTIONS LIMITED,A0061112, 17/08/2017,OPS0282269,510.00,N,N/A,N,N/A,
Pendle Borough Council,Operational Services,Supplies and Services,EFM Materials,4004,CONTAINER CARE SOLUTIONS LIMITED,A0061112, 31/08/2017,OPS0282477,765.00,N,N/A,N,N/A,
Pendle Borough Council,Operational Services,Transport Related Expense,Diesel Oil,3202,COOKE FUELS,A0019019, 24/08/2017,OPS0282396,1357.50,N,N/A,N,N/A,
Pendle Borough Council,Parks & Recreation Services,Transport Related Expense,Diesel Oil,3202,COOKE FUELS,A0019019, 10/08/2017,PCO0282042,1838.00,N,N/A,N,N/A,
Pendle Borough Council,Engineering & Special Projects,Premises Related Expense,Bldgs : R & M : Day To Day,2001,CPC PROP & GARDENING SERV LTD,A0011770, 03/08/2017,HED0281968,230.00,N,N/A,N,N/A,
Pendle Borough Council,Environmental Health Services,Premises Related Expense,Bldgs : R & M : Abnormal,2002,CPC PROP & GARDENING SERV LTD,A0011770, 17/08/2017,ENV0282253,160.00,N,N/A,N,N/A,
Pendle Borough Council,Environmental Health Services,Premises Related Expense,Bldgs : R & M : Abnormal,2002,CPC PROP & GARDENING SERV LTD,A0011770, 17/08/2017,ENV0282254,130.00,N,N/A,N,N/A,
Pendle Borough Council,Engineering & Special Projects,Premises Related Expense,Grounds : R & M : Day to Day : Routine,2101,CPC PROP & GARDENING SERV LTD,A0011770, 24/08/2017,HED0282446,900.00,N,N/A,N,N/A,
Pendle Borough Council,Engineering & Special Projects,Capital Costs,Capital : Payments,CD14,CPC PROP & GARDENING SERV LTD,A0011770, 03/08/2017,HED0281970,420.00,N,N/A,N,N/A,
Pendle Borough Council,Property Services,Supplies and Services,Publicity & advertisement,4704,CPL MEDIA LTD,A0091271, 24/08/2017,EST0282488,65.00,N,N/A,N,N/A,
Pendle Borough Council,Property Services,Supplies and Services,Publicity & advertisement,4704,CPL MEDIA LTD,A0091271, 24/08/2017,EST0282488,65.00,N,N/A,N,N/A,
Pendle Borough Council,Housing Regeneration Services,,Paid in the Year,PD03,CROCODILE FLOOD SOLUTIONS LIMITED,A0090962, 24/08/2017,HMR0282435,2500.00,N,N/A,N,N/A,
Pendle Borough Council,Democratic & Legal Services,,General Fund (Non Housing),B471,CROFTONS SOLICITORS LLP,A0091262, 10/08/2017,DAL0282142,500.00,N,N/A,N,N/A,
Pendle Borough Council,Housing Regeneration Services,Capital Costs,Ren Grant : 1996 Act,CH22,D Y BUILDING SERVICES,A0091159, 17/08/2017,HMR0282214,4013.00,N,N/A,N,N/A,
Pendle Borough Council,Financial Services,Supplies and Services,Consultants Fees,4401,DAN SLEE C2 LIMITED,A0091217, 10/08/2017,AAS0282146,195.00,N,N/A,N,N/A,
Pendle Borough Council,Financial Services,Supplies and Services,Seminars etc All Costs,4601,DAN SLEE C2 LIMITED,A0091217, 10/08/2017,AAS0282146,195.00,N,N/A,N,N/A,
Pendle Borough Council,Financial Services,Indirect Employee Expenses,Recruitment,1221,DBS,A0072958, 18/08/2017,AAS0282599,836.00,N,N/A,N,N/A,
Pendle Borough Council,Financial Services,Supplies and Services,Other Expenses,4705,DBS,A0072958, 18/08/2017,AAS0282599,1408.00,N,N/A,N,N/A,
Pendle Borough Council,Economic Development & Tourism,Supplies and Services,Miscellaneous : Other,4707,DEWHURST DECORATING SUPPLIES,A0000879, 17/08/2017,REG0282187,43.19,N,N/A,N,N/A,
Pendle Borough Council,Operational Services,Agency Staff,Emp : Agency Wages,1004,DHRB LIMITED T/A DRIVER HIRE (45680),A0003556, 03/08/2017,OPS0281961,310.78,N,N/A,N,N/A,
Pendle Borough Council,Parks & Recreation Services,Transport Related Expense,Tprt : Repairs : General,3105,DICK LEIGH,A0001675, 24/08/2017,PCO0282390,56.95,N,N/A,N,N/A,
Pendle Borough Council,Parks & Recreation Services,Transport Related Expense,Lubricants,3203,DICK LEIGH,A0001675, 24/08/2017,PCO0282390,56.00,N,N/A,N,N/A,
Pendle Borough Council,Planning & Building Control,Supplies and Services,Miscellaneous : Other,4707,DLP PLANNING LTD,A0061134, 10/08/2017,PBC0282138,2155.00,N,N/A,N,N/A,
Pendle Borough Council,Economic Development & Tourism,Supplies and Services,Other Expenses,4705,DONALD LOMAX & PARTNERS LTD,A0069764, 03/08/2017,REG0281913,950.00,N,N/A,N,N/A,
Pendle Borough Council,Economic Development & Tourism,Supplies and Services,EFM Materials,4004,DR L R PARKER,A0090282, 17/08/2017,REG0282235,23.99,N,N/A,N,N/A,
Pendle Borough Council,Parks & Recreation Services,Transport Related Expense,Tprt : Repairs : General,3105,DVLA SWANSEA,A0016348, 03/08/2017,PCO0281985,32.00,N,N/A,N,N/A,
Pendle Borough Council,Property Services,Premises Related Expense,Electricity,2203,E.ON,A0023073, 24/08/2017,EST0282479,5.81,N,N/A,N,N/A,
Pendle Borough Council,Property Services,Premises Related Expense,Electricity,2203,E.ON,A0023073, 24/08/2017,EST0282463,32.01,N,N/A,N,N/A,
Pendle Borough Council,Property Services,Premises Related Expense,Electricity,2203,E.ON,A0023073, 24/08/2017,EST0282464,62.18,N,N/A,N,N/A,
Pendle Borough Council,Property Services,Premises Related Expense,Electricity,2203,E.ON,A0023073, 24/08/2017,EST0282484,189.94,N,N/A,N,N/A,
Pendle Borough Council,Property Services,Premises Related Expense,Electricity,2203,E.ON,A0023073, 24/08/2017,EST0282468,48.25,N,N/A,N,N/A,
Pendle Borough Council,Property Services,Premises Related Expense,Electricity,2203,E.ON,A0023073, 24/08/2017,EST0282470,0.56,N,N/A,N,N/A,
Pendle Borough Council,Democratic & Legal Services,Premises Related Expense,Rents,2301,E.ON,A0023073, 24/08/2017,DAL0282374,24.84,N,N/A,N,N/A,
Pendle Borough Council,Property Services,Premises Related Expense,Electricity,2203,E.ON UK PLC,A0044040, 10/08/2017,EST0282120,319.57,N,N/A,N,N/A,
Pendle Borough Council,Engineering & Special Projects,Capital Costs,Capital : Payments,CD14,EARBY TOWN COUNCIL,A0001004, 10/08/2017,HED0282160,5000.00,N,N/A,N,N/A,
Pendle Borough Council,Housing Regeneration Services,,Paid in the Year,PD03,EARBY TOWN COUNCIL,A0001004, 24/08/2017,HMR0282438,5000.00,N,N/A,N,N/A,
Pendle Borough Council,Engineering & Special Projects,Premises Related Expense,Grounds : R & M : Day to Day : Routine,2101,ECOGEN,A0022890, 31/08/2017,HED0282534,60.00,N,N/A,N,N/A,
Pendle Borough Council,Engineering & Special Projects,Premises Related Expense,Grounds : R & M : Day to Day : Routine,2101,ECOGEN,A0022890, 31/08/2017,HED0282533,82.00,N,N/A,N,N/A,
Pendle Borough Council,Engineering & Special Projects,Premises Related Expense,Grounds : R & M : Day to Day : Routine,2101,ECOGEN,A0022890, 31/08/2017,HED0282534,100.00,N,N/A,N,N/A,
Pendle Borough Council,Engineering & Special Projects,Premises Related Expense,Grounds : R & M : Day to Day : Routine,2101,ECOGEN,A0022890, 31/08/2017,HED0282533,400.00,N,N/A,N,N/A,
Pendle Borough Council,Economic Development & Tourism,Supplies and Services,Other Expenses,4705,EIGHT IMAGING,A0057511, 03/08/2017,REG0282000,500.00,N,N/A,N,N/A,
Pendle Borough Council,Democratic & Legal Services,Supplies and Services,Printing & Stationery,4301,ELECTORAL REFORM SERVICES,A0041321, 03/08/2017,DAL0281998,571.19,N,N/A,N,N/A,
Pendle Borough Council,Democratic & Legal Services,Supplies and Services,Postages,4501,ELECTORAL REFORM SERVICES,A0041321, 03/08/2017,DAL0281998,89.58,N,N/A,N,N/A,
Pendle Borough Council,Housing Regeneration Services,Capital Costs,Capital : Payments,CD14,ELITE PLUMBING,A0084584, 03/08/2017,HMR0281980,900.00,N,N/A,N,N/A,
Pendle Borough Council,Housing Regeneration Services,Supplies and Services,Seminars etc All Costs,4601,EMPTY HOMES NETWORK,A0077493, 17/08/2017,HMR0282222,95.00,N,N/A,N,N/A,
Pendle Borough Council,Parks & Recreation Services,Supplies and Services,Expenditure : Materials,0002,ENGINEERING & FOUNDRY SUPPLIES,A0001002, 10/08/2017,PCO0282050,151.92,N,N/A,N,N/A,
Pendle Borough Council,Operational Services,Supplies and Services,Sub-Contractors,4007,ENGINEERING & FOUNDRY SUPPLIES,A0001002, 10/08/2017,OPS0282111,180.00,N,N/A,N,N/A,
Pendle Borough Council,Parks & Recreation Services,Supplies and Services,Protective Clothing,4201,ENGINEERING & FOUNDRY SUPPLIES,A0001002, 03/08/2017,PCO0281946,10.02,N,N/A,N,N/A,
Pendle Borough Council,Parks & Recreation Services,Supplies and Services,Protective Clothing,4201,ENGINEERING & FOUNDRY SUPPLIES,A0001002, 03/08/2017,PCO0281943,11.60,N,N/A,N,N/A,
Pendle Borough Council,Parks & Recreation Services,Supplies and Services,Protective Clothing,4201,ENGINEERING & FOUNDRY SUPPLIES,A0001002, 03/08/2017,PCO0281946,11.60,N,N/A,N,N/A,
Pendle Borough Council,Parks & Recreation Services,Supplies and Services,Protective Clothing,4201,ENGINEERING & FOUNDRY SUPPLIES,A0001002, 03/08/2017,PCO0281946,13.46,N,N/A,N,N/A,
Pendle Borough Council,Parks & Recreation Services,Supplies and Services,Protective Clothing,4201,ENGINEERING & FOUNDRY SUPPLIES,A0001002, 03/08/2017,PCO0281946,26.92,N,N/A,N,N/A,
Pendle Borough Council,Parks & Recreation Services,Supplies and Services,Protective Clothing,4201,ENGINEERING & FOUNDRY SUPPLIES,A0001002, 03/08/2017,PCO0281946,26.92,N,N/A,N,N/A,
Pendle Borough Council,Parks & Recreation Services,Supplies and Services,Protective Clothing,4201,ENGINEERING & FOUNDRY SUPPLIES,A0001002, 03/08/2017,PCO0281943,35.64,N,N/A,N,N/A,
Pendle Borough Council,Parks & Recreation Services,Supplies and Services,Protective Clothing,4201,ENGINEERING & FOUNDRY SUPPLIES,A0001002, 24/08/2017,PCO0282409,35.64,N,N/A,N,N/A,
Pendle Borough Council,Parks & Recreation Services,Supplies and Services,Protective Clothing,4201,ENGINEERING & FOUNDRY SUPPLIES,A0001002, 03/08/2017,PCO0281946,40.38,N,N/A,N,N/A,
Pendle Borough Council,Parks & Recreation Services,Supplies and Services,Protective Clothing,4201,ENGINEERING & FOUNDRY SUPPLIES,A0001002, 03/08/2017,PCO0281946,59.10,N,N/A,N,N/A,
Pendle Borough Council,Parks & Recreation Services,Supplies and Services,Protective Clothing,4201,ENGINEERING & FOUNDRY SUPPLIES,A0001002, 03/08/2017,PCO0281946,59.10,N,N/A,N,N/A,
Pendle Borough Council,Parks & Recreation Services,Supplies and Services,Protective Clothing,4201,ENGINEERING & FOUNDRY SUPPLIES,A0001002, 03/08/2017,PCO0281946,75.96,N,N/A,N,N/A,
Pendle Borough Council,Parks & Recreation Services,Supplies and Services,Protective Clothing,4201,ENGINEERING & FOUNDRY SUPPLIES,A0001002, 03/08/2017,PCO0281943,112.50,N,N/A,N,N/A,
Pendle Borough Council,Parks & Recreation Services,Supplies and Services,Protective Clothing,4201,ENGINEERING & FOUNDRY SUPPLIES,A0001002, 24/08/2017,PCO0282354,151.92,N,N/A,N,N/A,
Pendle Borough Council,Parks & Recreation Services,Supplies and Services,Protective Clothing,4201,ENGINEERING & FOUNDRY SUPPLIES,A0001002, 03/08/2017,PCO0281946,177.30,N,N/A,N,N/A,
Pendle Borough Council,Parks & Recreation Services,Supplies and Services,Protective Clothing,4201,ENGINEERING & FOUNDRY SUPPLIES,A0001002, 03/08/2017,PCO0281946,177.30,N,N/A,N,N/A,
Pendle Borough Council,Parks & Recreation Services,Supplies and Services,Protective Clothing,4201,ENGINEERING & FOUNDRY SUPPLIES,A0001002, 03/08/2017,PCO0281946,265.86,N,N/A,N,N/A,
Pendle Borough Council,Economic Development & Tourism,Supplies and Services,Protective Clothing,4201,ENGINEERING & FOUNDRY SUPPLIES,A0001002, 17/08/2017,REG0282084,27.00,N,N/A,N,N/A,
Pendle Borough Council,Economic Development & Tourism,Supplies and Services,Protective Clothing,4201,ENGINEERING & FOUNDRY SUPPLIES,A0001002, 17/08/2017,REG0282083,54.00,N,N/A,N,N/A,
Pendle Borough Council,Engineering & Special Projects,Supplies and Services,Protective Clothing,4201,ENGINEERING & FOUNDRY SUPPLIES,A0001002, 24/08/2017,HED0282289,44.00,N,N/A,N,N/A,
Pendle Borough Council,Operational Services,,Stock : Purchases,PJ01,ENGINEERING & FOUNDRY SUPPLIES,A0001002, 10/08/2017,OPS0282111,3.50,N,N/A,N,N/A,
Pendle Borough Council,Operational Services,,Stock : Purchases,PJ01,ENGINEERING & FOUNDRY SUPPLIES,A0001002, 10/08/2017,OPS0282111,32.02,N,N/A,N,N/A,
Pendle Borough Council,Operational Services,,Stock : Purchases,PJ01,ENGINEERING & FOUNDRY SUPPLIES,A0001002, 10/08/2017,OPS0282111,32.02,N,N/A,N,N/A,
Pendle Borough Council,Operational Services,,Stock : Purchases,PJ01,ENGINEERING & FOUNDRY SUPPLIES,A0001002, 10/08/2017,OPS0282111,37.98,N,N/A,N,N/A,
Pendle Borough Council,Operational Services,,Stock : Purchases,PJ01,ENGINEERING & FOUNDRY SUPPLIES,A0001002, 10/08/2017,OPS0282111,38.00,N,N/A,N,N/A,
Pendle Borough Council,Operational Services,,Stock : Purchases,PJ01,ENGINEERING & FOUNDRY SUPPLIES,A0001002, 10/08/2017,OPS0282111,39.40,N,N/A,N,N/A,
Pendle Borough Council,Operational Services,,Stock : Purchases,PJ01,ENGINEERING & FOUNDRY SUPPLIES,A0001002, 24/08/2017,OPS0282393,747.54,N,N/A,N,N/A,
Pendle Borough Council,Parks & Recreation Services,Transport Related Expense,Tprt : Repairs : General,3105,F G ROWLAND LIMITED,A0006489, 24/08/2017,PCO0282392,1198.70,N,N/A,N,N/A,
Pendle Borough Council,Property Services,Premises Related Expense,Bldgs : R & M : Day To Day,2001,F NUTTER & SONS,A0002037, 24/08/2017,EST0282452,33.60,N,N/A,N,N/A,
Pendle Borough Council,Property Services,Premises Related Expense,Bldgs : R & M : Day To Day,2001,F NUTTER & SONS,A0002037, 24/08/2017,EST0282452,156.00,N,N/A,N,N/A,
Pendle Borough Council,Property Services,Premises Related Expense,Bldgs : R & M : Day To Day,2001,F NUTTER & SONS,A0002037, 24/08/2017,EST0282452,33.60,N,N/A,N,N/A,
Pendle Borough Council,Property Services,Premises Related Expense,Bldgs : R & M : Day To Day,2001,F NUTTER & SONS,A0002037, 24/08/2017,EST0282452,156.00,N,N/A,N,N/A,
Pendle Borough Council,Property Services,Premises Related Expense,Bldgs : R & M : Day To Day,2001,F NUTTER & SONS,A0002037, 24/08/2017,EST0282452,25.72,N,N/A,N,N/A,
Pendle Borough Council,Property Services,Premises Related Expense,Bldgs : R & M : Day To Day,2001,F NUTTER & SONS,A0002037, 24/08/2017,EST0282452,182.00,N,N/A,N,N/A,
Pendle Borough Council,Property Services,Premises Related Expense,Bldgs : R & M : Day To Day,2001,F NUTTER & SONS,A0002037, 24/08/2017,EST0282452,100.00,N,N/A,N,N/A,
Pendle Borough Council,Property Services,Premises Related Expense,Bldgs : R & M : Day To Day,2001,F NUTTER & SONS,A0002037, 24/08/2017,EST0282452,110.00,N,N/A,N,N/A,
Pendle Borough Council,Property Services,Premises Related Expense,Bldgs : R & M : Day To Day,2001,F NUTTER & SONS,A0002037, 03/08/2017,EST0281997,250.00,N,N/A,N,N/A,
Pendle Borough Council,Property Services,Premises Related Expense,Bldgs : R & M : Day To Day,2001,F NUTTER & SONS,A0002037, 03/08/2017,EST0281997,550.00,N,N/A,N,N/A,
Pendle Borough Council,Property Services,Premises Related Expense,Bldgs : R & M : Day To Day,2001,F NUTTER & SONS,A0002037, 24/08/2017,EST0282452,3.15,N,N/A,N,N/A,
Pendle Borough Council,Property Services,Premises Related Expense,Bldgs : R & M : Day To Day,2001,F NUTTER & SONS,A0002037, 24/08/2017,EST0282452,3.15,N,N/A,N,N/A,
Pendle Borough Council,Property Services,Premises Related Expense,Bldgs : R & M : Day To Day,2001,F NUTTER & SONS,A0002037, 24/08/2017,EST0282452,136.50,N,N/A,N,N/A,
Pendle Borough Council,Property Services,Premises Related Expense,Bldgs : R & M : Day To Day,2001,F NUTTER & SONS,A0002037, 24/08/2017,EST0282452,136.50,N,N/A,N,N/A,
Pendle Borough Council,Property Services,Premises Related Expense,Bldgs : Vandalism Repairs,2005,F NUTTER & SONS,A0002037, 24/08/2017,EST0282452,59.24,N,N/A,N,N/A,
Pendle Borough Council,Property Services,Premises Related Expense,Bldgs : Vandalism Repairs,2005,F NUTTER & SONS,A0002037, 24/08/2017,EST0282452,416.00,N,N/A,N,N/A,
Pendle Borough Council,Property Services,Premises Related Expense,Grounds : R & M : Day to Day : Routine,2101,F NUTTER & SONS,A0002037, 03/08/2017,EST0281997,610.25,N,N/A,N,N/A,
Pendle Borough Council,Property Services,Premises Related Expense,Grounds : R & M : Day to Day : Routine,2101,F NUTTER & SONS,A0002037, 03/08/2017,EST0281997,298.00,N,N/A,N,N/A,
Pendle Borough Council,Property Services,Premises Related Expense,Grounds : R & M : Day to Day : Routine,2101,F NUTTER & SONS,A0002037, 03/08/2017,EST0281997,702.00,N,N/A,N,N/A,
Pendle Borough Council,Property Services,Premises Related Expense,Bldgs : R & M : Day To Day,2001,FAST GLASS GLAZING LIMITED,A0005903, 24/08/2017,EST0282454,25.00,N,N/A,N,N/A,
Pendle Borough Council,Property Services,Premises Related Expense,Bldgs : R & M : Day To Day,2001,FAST GLASS GLAZING LIMITED,A0005903, 24/08/2017,EST0282455,50.00,N,N/A,N,N/A,
Pendle Borough Council,Property Services,Premises Related Expense,Bldgs : R & M : Day To Day,2001,FAST GLASS GLAZING LIMITED,A0005903, 24/08/2017,EST0282457,50.00,N,N/A,N,N/A,
Pendle Borough Council,Property Services,Premises Related Expense,Bldgs : R & M : Day To Day,2001,FAST GLASS GLAZING LIMITED,A0005903, 24/08/2017,EST0282456,85.00,N,N/A,N,N/A,
Pendle Borough Council,Human Resources,Supplies and Services,Other Expenses,4705,FIDELITI LIMITED,A0052058, 10/08/2017,PER0282137,51.93,N,N/A,N,N/A,
Pendle Borough Council,Property Services,Premises Related Expense,Gas,2202,FIRST UTILITY LIMITED,A0090510, 03/08/2017,EST0281989,35.51,N,N/A,N,N/A,
Pendle Borough Council,Property Services,Premises Related Expense,Electricity,2203,FIRST UTILITY LIMITED,A0090510, 03/08/2017,EST0281989,6.42,N,N/A,N,N/A,
Pendle Borough Council,Financial Services,Supplies and Services,Legal Fees,4402,FORBES SOLICITORS,A0054697, 17/08/2017,AAS0282265,195.00,N,N/A,N,N/A,
Pendle Borough Council,Financial Services,Supplies and Services,Legal Fees,4402,FORBES SOLICITORS,A0054697, 17/08/2017,AAS0282260,854.50,N,N/A,N,N/A,
Pendle Borough Council,Financial Services,Supplies and Services,Legal Fees,4402,FORBES SOLICITORS,A0054697, 17/08/2017,AAS0282262,1307.00,N,N/A,N,N/A,
Pendle Borough Council,Financial Services,Supplies and Services,Legal Fees,4402,FORBES SOLICITORS,A0054697, 17/08/2017,AAS0282264,1322.00,N,N/A,N,N/A,
Pendle Borough Council,Financial Services,Supplies and Services,Legal Fees,4402,FORBES SOLICITORS,A0054697, 17/08/2017,AAS0282261,1796.00,N,N/A,N,N/A,
Pendle Borough Council,Financial Services,Supplies and Services,Legal Fees,4402,FORBES SOLICITORS,A0054697, 17/08/2017,AAS0282263,2112.25,N,N/A,N,N/A,
Pendle Borough Council,Engineering & Special Projects,Capital Costs,Capital : Payments,CD14,FOULRIDGE PARISH COUNCIL,A0077715, 10/08/2017,HED0282060,1000.00,N,N/A,N,N/A,
Pendle Borough Council,Operational Services,Transport Related Expense,Tprt : Repairs : General,3105,FREIGHT TRANSPORT ASSOCIATION,A0001124, 03/08/2017,OPS0281962,33.20,N,N/A,N,N/A,
Pendle Borough Council,Operational Services,Supplies and Services,Seminars etc All Costs,4601,FREIGHT TRANSPORT ASSOCIATION,A0001124, 10/08/2017,OPS0282128,735.00,N,N/A,N,N/A,
Pendle Borough Council,Parks & Recreation Services,Premises Related Expense,Bldgs : R & M : Day To Day,2001,FRESH FIRE AND SECURITY LIMITED,A0091168, 17/08/2017,PCO0282208,1000.00,N,N/A,N,N/A,
Pendle Borough Council,Parks & Recreation Services,Premises Related Expense,Grounds : R & M : Day to Day : Routine,2101,FRESH FIRE AND SECURITY LIMITED,A0091168, 17/08/2017,PCO0282208,995.00,N,N/A,N,N/A,
Pendle Borough Council,Financial Services,Transport Related Expense,Diesel Oil,3202,FUELMATE LTD,A0090265, 15/08/2017,AAS0282612,32.42,N,N/A,N,N/A,
Pendle Borough Council,Financial Services,Transport Related Expense,Diesel Oil,3202,FUELMATE LTD,A0090265, 15/08/2017,AAS0282612,40.83,N,N/A,N,N/A,
Pendle Borough Council,Financial Services,Transport Related Expense,Diesel Oil,3202,FUELMATE LTD,A0090265, 15/08/2017,AAS0282612,41.25,N,N/A,N,N/A,
Pendle Borough Council,Financial Services,Transport Related Expense,Diesel Oil,3202,FUELMATE LTD,A0090265, 08/08/2017,AAS0282611,42.73,N,N/A,N,N/A,
Pendle Borough Council,Financial Services,Transport Related Expense,Diesel Oil,3202,FUELMATE LTD,A0090265, 08/08/2017,AAS0282611,46.78,N,N/A,N,N/A,
Pendle Borough Council,Financial Services,Transport Related Expense,Diesel Oil,3202,FUELMATE LTD,A0090265, 22/08/2017,AAS0282743,50.89,N,N/A,N,N/A,
Pendle Borough Council,Financial Services,Transport Related Expense,Diesel Oil,3202,FUELMATE LTD,A0090265, 15/08/2017,AAS0282612,52.41,N,N/A,N,N/A,
Pendle Borough Council,Financial Services,Transport Related Expense,Diesel Oil,3202,FUELMATE LTD,A0090265, 01/08/2017,AAS0282610,54.17,N,N/A,N,N/A,
Pendle Borough Council,Financial Services,Transport Related Expense,Diesel Oil,3202,FUELMATE LTD,A0090265, 01/08/2017,AAS0282610,58.31,N,N/A,N,N/A,
Pendle Borough Council,Financial Services,Transport Related Expense,Diesel Oil,3202,FUELMATE LTD,A0090265, 15/08/2017,AAS0282612,60.77,N,N/A,N,N/A,
Pendle Borough Council,Financial Services,Transport Related Expense,Diesel Oil,3202,FUELMATE LTD,A0090265, 15/08/2017,AAS0282612,64.21,N,N/A,N,N/A,
Pendle Borough Council,Financial Services,Transport Related Expense,Diesel Oil,3202,FUELMATE LTD,A0090265, 01/08/2017,AAS0282610,68.57,N,N/A,N,N/A,
Pendle Borough Council,Financial Services,Transport Related Expense,Diesel Oil,3202,FUELMATE LTD,A0090265, 29/08/2017,AAS0282752,71.30,N,N/A,N,N/A,
Pendle Borough Council,Financial Services,Transport Related Expense,Diesel Oil,3202,FUELMATE LTD,A0090265, 08/08/2017,AAS0282611,74.98,N,N/A,N,N/A,
Pendle Borough Council,Financial Services,Transport Related Expense,Diesel Oil,3202,FUELMATE LTD,A0090265, 15/08/2017,AAS0282612,80.96,N,N/A,N,N/A,
Pendle Borough Council,Financial Services,Transport Related Expense,Diesel Oil,3202,FUELMATE LTD,A0090265, 01/08/2017,AAS0282610,84.63,N,N/A,N,N/A,
Pendle Borough Council,Financial Services,Transport Related Expense,Diesel Oil,3202,FUELMATE LTD,A0090265, 01/08/2017,AAS0282610,88.78,N,N/A,N,N/A,
Pendle Borough Council,Financial Services,Transport Related Expense,Diesel Oil,3202,FUELMATE LTD,A0090265, 08/08/2017,AAS0282611,89.07,N,N/A,N,N/A,
Pendle Borough Council,Financial Services,Transport Related Expense,Diesel Oil,3202,FUELMATE LTD,A0090265, 29/08/2017,AAS0282752,96.89,N,N/A,N,N/A,
Pendle Borough Council,Financial Services,Transport Related Expense,Diesel Oil,3202,FUELMATE LTD,A0090265, 22/08/2017,AAS0282743,97.82,N,N/A,N,N/A,
Pendle Borough Council,Financial Services,Transport Related Expense,Diesel Oil,3202,FUELMATE LTD,A0090265, 15/08/2017,AAS0282612,137.51,N,N/A,N,N/A,
Pendle Borough Council,Financial Services,Transport Related Expense,Diesel Oil,3202,FUELMATE LTD,A0090265, 08/08/2017,AAS0282611,151.93,N,N/A,N,N/A,
Pendle Borough Council,Financial Services,Transport Related Expense,Diesel Oil,3202,FUELMATE LTD,A0090265, 01/08/2017,AAS0282610,167.42,N,N/A,N,N/A,
Pendle Borough Council,Financial Services,Transport Related Expense,Diesel Oil,3202,FUELMATE LTD,A0090265, 01/08/2017,AAS0282610,187.56,N,N/A,N,N/A,
Pendle Borough Council,Financial Services,Transport Related Expense,Diesel Oil,3202,FUELMATE LTD,A0090265, 29/08/2017,AAS0282752,216.73,N,N/A,N,N/A,
Pendle Borough Council,Financial Services,Transport Related Expense,Diesel Oil,3202,FUELMATE LTD,A0090265, 15/08/2017,AAS0282612,251.58,N,N/A,N,N/A,
Pendle Borough Council,Financial Services,Transport Related Expense,Diesel Oil,3202,FUELMATE LTD,A0090265, 01/08/2017,AAS0282610,257.38,N,N/A,N,N/A,
Pendle Borough Council,Financial Services,Transport Related Expense,Diesel Oil,3202,FUELMATE LTD,A0090265, 08/08/2017,AAS0282611,291.34,N,N/A,N,N/A,
Pendle Borough Council,Financial Services,Transport Related Expense,Diesel Oil,3202,FUELMATE LTD,A0090265, 22/08/2017,AAS0282743,299.88,N,N/A,N,N/A,
Pendle Borough Council,Financial Services,Transport Related Expense,Diesel Oil,3202,FUELMATE LTD,A0090265, 01/08/2017,AAS0282610,157.03,N,N/A,N,N/A,
Pendle Borough Council,Financial Services,Transport Related Expense,Diesel Oil,3202,FUELMATE LTD,A0090265, 29/08/2017,AAS0282752,211.58,N,N/A,N,N/A,
Pendle Borough Council,Financial Services,Transport Related Expense,Diesel Oil,3202,FUELMATE LTD,A0090265, 08/08/2017,AAS0282611,222.89,N,N/A,N,N/A,
Pendle Borough Council,Financial Services,Transport Related Expense,Diesel Oil,3202,FUELMATE LTD,A0090265, 22/08/2017,AAS0282743,226.01,N,N/A,N,N/A,
Pendle Borough Council,Financial Services,Transport Related Expense,Diesel Oil,3202,FUELMATE LTD,A0090265, 15/08/2017,AAS0282612,230.79,N,N/A,N,N/A,
Pendle Borough Council,Financial Services,Transport Related Expense,Diesel Oil,3202,FUELMATE LTD,A0090265, 15/08/2017,AAS0282612,115.49,N,N/A,N,N/A,
Pendle Borough Council,Financial Services,Transport Related Expense,Diesel Oil,3202,FUELMATE LTD,A0090265, 08/08/2017,AAS0282611,185.10,N,N/A,N,N/A,
Pendle Borough Council,Financial Services,Transport Related Expense,Diesel Oil,3202,FUELMATE LTD,A0090265, 01/08/2017,AAS0282610,188.64,N,N/A,N,N/A,
Pendle Borough Council,Financial Services,Transport Related Expense,Diesel Oil,3202,FUELMATE LTD,A0090265, 29/08/2017,AAS0282752,192.51,N,N/A,N,N/A,
Pendle Borough Council,Financial Services,Transport Related Expense,Diesel Oil,3202,FUELMATE LTD,A0090265, 22/08/2017,AAS0282743,223.51,N,N/A,N,N/A,
Pendle Borough Council,Financial Services,Transport Related Expense,Diesel Oil,3202,FUELMATE LTD,A0090265, 01/08/2017,AAS0282610,235.98,N,N/A,N,N/A,
Pendle Borough Council,Financial Services,Transport Related Expense,Diesel Oil,3202,FUELMATE LTD,A0090265, 08/08/2017,AAS0282611,239.88,N,N/A,N,N/A,
Pendle Borough Council,Financial Services,Transport Related Expense,Diesel Oil,3202,FUELMATE LTD,A0090265, 15/08/2017,AAS0282612,240.07,N,N/A,N,N/A,
Pendle Borough Council,Financial Services,Transport Related Expense,Diesel Oil,3202,FUELMATE LTD,A0090265, 22/08/2017,AAS0282743,244.91,N,N/A,N,N/A,
Pendle Borough Council,Financial Services,Transport Related Expense,Diesel Oil,3202,FUELMATE LTD,A0090265, 29/08/2017,AAS0282752,250.48,N,N/A,N,N/A,
Pendle Borough Council,Financial Services,Transport Related Expense,Diesel Oil,3202,FUELMATE LTD,A0090265, 15/08/2017,AAS0282612,87.88,N,N/A,N,N/A,
Pendle Borough Council,Financial Services,Transport Related Expense,Diesel Oil,3202,FUELMATE LTD,A0090265, 22/08/2017,AAS0282743,136.35,N,N/A,N,N/A,
Pendle Borough Council,Financial Services,Transport Related Expense,Diesel Oil,3202,FUELMATE LTD,A0090265, 08/08/2017,AAS0282611,220.61,N,N/A,N,N/A,
Pendle Borough Council,Financial Services,Transport Related Expense,Diesel Oil,3202,FUELMATE LTD,A0090265, 01/08/2017,AAS0282610,227.33,N,N/A,N,N/A,
Pendle Borough Council,Financial Services,Transport Related Expense,Diesel Oil,3202,FUELMATE LTD,A0090265, 29/08/2017,AAS0282752,253.22,N,N/A,N,N/A,
Pendle Borough Council,Financial Services,Transport Related Expense,Diesel Oil,3202,FUELMATE LTD,A0090265, 22/08/2017,AAS0282743,120.33,N,N/A,N,N/A,
Pendle Borough Council,Financial Services,Transport Related Expense,Diesel Oil,3202,FUELMATE LTD,A0090265, 08/08/2017,AAS0282611,137.69,N,N/A,N,N/A,
Pendle Borough Council,Financial Services,Transport Related Expense,Diesel Oil,3202,FUELMATE LTD,A0090265, 01/08/2017,AAS0282610,162.56,N,N/A,N,N/A,
Pendle Borough Council,Financial Services,Transport Related Expense,Diesel Oil,3202,FUELMATE LTD,A0090265, 15/08/2017,AAS0282612,184.78,N,N/A,N,N/A,
Pendle Borough Council,Financial Services,Transport Related Expense,Diesel Oil,3202,FUELMATE LTD,A0090265, 29/08/2017,AAS0282752,196.07,N,N/A,N,N/A,
Pendle Borough Council,Financial Services,Transport Related Expense,Diesel Oil,3202,FUELMATE LTD,A0090265, 22/08/2017,AAS0282743,17.33,N,N/A,N,N/A,
Pendle Borough Council,Financial Services,Transport Related Expense,Diesel Oil,3202,FUELMATE LTD,A0090265, 15/08/2017,AAS0282612,21.83,N,N/A,N,N/A,
Pendle Borough Council,Financial Services,Transport Related Expense,Diesel Oil,3202,FUELMATE LTD,A0090265, 15/08/2017,AAS0282612,26.97,N,N/A,N,N/A,
Pendle Borough Council,Financial Services,Transport Related Expense,Diesel Oil,3202,FUELMATE LTD,A0090265, 22/08/2017,AAS0282743,43.74,N,N/A,N,N/A,
Pendle Borough Council,Financial Services,Transport Related Expense,Diesel Oil,3202,FUELMATE LTD,A0090265, 22/08/2017,AAS0282743,73.27,N,N/A,N,N/A,
Pendle Borough Council,Financial Services,Transport Related Expense,Diesel Oil,3202,FUELMATE LTD,A0090265, 29/08/2017,AAS0282752,91.49,N,N/A,N,N/A,
Pendle Borough Council,Financial Services,Transport Related Expense,Diesel Oil,3202,FUELMATE LTD,A0090265, 15/08/2017,AAS0282612,94.84,N,N/A,N,N/A,
Pendle Borough Council,Financial Services,Transport Related Expense,Diesel Oil,3202,FUELMATE LTD,A0090265, 15/08/2017,AAS0282612,107.58,N,N/A,N,N/A,
Pendle Borough Council,Financial Services,Transport Related Expense,Diesel Oil,3202,FUELMATE LTD,A0090265, 22/08/2017,AAS0282743,108.75,N,N/A,N,N/A,
Pendle Borough Council,Financial Services,Transport Related Expense,Diesel Oil,3202,FUELMATE LTD,A0090265, 29/08/2017,AAS0282752,148.17,N,N/A,N,N/A,
Pendle Borough Council,Financial Services,Transport Related Expense,Diesel Oil,3202,FUELMATE LTD,A0090265, 29/08/2017,AAS0282752,168.69,N,N/A,N,N/A,
Pendle Borough Council,Financial Services,Transport Related Expense,Diesel Oil,3202,FUELMATE LTD,A0090265, 22/08/2017,AAS0282743,190.38,N,N/A,N,N/A,
Pendle Borough Council,Financial Services,Transport Related Expense,Diesel Oil,3202,FUELMATE LTD,A0090265, 15/08/2017,AAS0282612,40.38,N,N/A,N,N/A,
Pendle Borough Council,Financial Services,Transport Related Expense,Diesel Oil,3202,FUELMATE LTD,A0090265, 01/08/2017,AAS0282610,108.56,N,N/A,N,N/A,
Pendle Borough Council,Financial Services,Transport Related Expense,Diesel Oil,3202,FUELMATE LTD,A0090265, 08/08/2017,AAS0282611,112.90,N,N/A,N,N/A,
Pendle Borough Council,Financial Services,Transport Related Expense,Diesel Oil,3202,FUELMATE LTD,A0090265, 22/08/2017,AAS0282743,190.00,N,N/A,N,N/A,
Pendle Borough Council,Financial Services,Transport Related Expense,Diesel Oil,3202,FUELMATE LTD,A0090265, 29/08/2017,AAS0282752,227.23,N,N/A,N,N/A,
Pendle Borough Council,Financial Services,Transport Related Expense,Diesel Oil,3202,FUELMATE LTD,A0090265, 15/08/2017,AAS0282612,197.53,N,N/A,N,N/A,
Pendle Borough Council,Financial Services,Transport Related Expense,Diesel Oil,3202,FUELMATE LTD,A0090265, 29/08/2017,AAS0282752,204.92,N,N/A,N,N/A,
Pendle Borough Council,Financial Services,Transport Related Expense,Diesel Oil,3202,FUELMATE LTD,A0090265, 01/08/2017,AAS0282610,227.26,N,N/A,N,N/A,
Pendle Borough Council,Financial Services,Transport Related Expense,Diesel Oil,3202,FUELMATE LTD,A0090265, 08/08/2017,AAS0282611,247.17,N,N/A,N,N/A,
Pendle Borough Council,Financial Services,Transport Related Expense,Diesel Oil,3202,FUELMATE LTD,A0090265, 22/08/2017,AAS0282743,285.45,N,N/A,N,N/A,
Pendle Borough Council,Financial Services,Transport Related Expense,Diesel Oil,3202,FUELMATE LTD,A0090265, 15/08/2017,AAS0282612,34.25,N,N/A,N,N/A,
Pendle Borough Council,Financial Services,Transport Related Expense,Diesel Oil,3202,FUELMATE LTD,A0090265, 08/08/2017,AAS0282611,49.39,N,N/A,N,N/A,
Pendle Borough Council,Financial Services,Transport Related Expense,Diesel Oil,3202,FUELMATE LTD,A0090265, 22/08/2017,AAS0282743,52.12,N,N/A,N,N/A,
Pendle Borough Council,Financial Services,Transport Related Expense,Diesel Oil,3202,FUELMATE LTD,A0090265, 29/08/2017,AAS0282752,99.29,N,N/A,N,N/A,
Pendle Borough Council,Financial Services,Transport Related Expense,Diesel Oil,3202,FUELMATE LTD,A0090265, 22/08/2017,AAS0282743,127.21,N,N/A,N,N/A,
Pendle Borough Council,Financial Services,Transport Related Expense,Diesel Oil,3202,FUELMATE LTD,A0090265, 08/08/2017,AAS0282611,159.95,N,N/A,N,N/A,
Pendle Borough Council,Financial Services,Transport Related Expense,Diesel Oil,3202,FUELMATE LTD,A0090265, 15/08/2017,AAS0282612,169.45,N,N/A,N,N/A,
Pendle Borough Council,Financial Services,Transport Related Expense,Diesel Oil,3202,FUELMATE LTD,A0090265, 01/08/2017,AAS0282610,169.64,N,N/A,N,N/A,
Pendle Borough Council,Financial Services,Transport Related Expense,Diesel Oil,3202,FUELMATE LTD,A0090265, 29/08/2017,AAS0282752,202.65,N,N/A,N,N/A,
Pendle Borough Council,Financial Services,Transport Related Expense,Diesel Oil,3202,FUELMATE LTD,A0090265, 29/08/2017,AAS0282752,141.89,N,N/A,N,N/A,
Pendle Borough Council,Financial Services,Transport Related Expense,Diesel Oil,3202,FUELMATE LTD,A0090265, 08/08/2017,AAS0282611,155.41,N,N/A,N,N/A,
Pendle Borough Council,Financial Services,Transport Related Expense,Diesel Oil,3202,FUELMATE LTD,A0090265, 01/08/2017,AAS0282610,170.59,N,N/A,N,N/A,
Pendle Borough Council,Financial Services,Transport Related Expense,Diesel Oil,3202,FUELMATE LTD,A0090265, 15/08/2017,AAS0282612,176.69,N,N/A,N,N/A,
Pendle Borough Council,Financial Services,Transport Related Expense,Diesel Oil,3202,FUELMATE LTD,A0090265, 22/08/2017,AAS0282743,240.80,N,N/A,N,N/A,
Pendle Borough Council,Financial Services,Transport Related Expense,Diesel Oil,3202,FUELMATE LTD,A0090265, 15/08/2017,AAS0282612,136.28,N,N/A,N,N/A,
Pendle Borough Council,Financial Services,Transport Related Expense,Diesel Oil,3202,FUELMATE LTD,A0090265, 01/08/2017,AAS0282610,171.50,N,N/A,N,N/A,
Pendle Borough Council,Financial Services,Transport Related Expense,Diesel Oil,3202,FUELMATE LTD,A0090265, 08/08/2017,AAS0282611,183.55,N,N/A,N,N/A,
Pendle Borough Council,Financial Services,Transport Related Expense,Diesel Oil,3202,FUELMATE LTD,A0090265, 22/08/2017,AAS0282743,193.49,N,N/A,N,N/A,
Pendle Borough Council,Financial Services,Transport Related Expense,Diesel Oil,3202,FUELMATE LTD,A0090265, 29/08/2017,AAS0282752,197.41,N,N/A,N,N/A,
Pendle Borough Council,Financial Services,Transport Related Expense,Diesel Oil,3202,FUELMATE LTD,A0090265, 08/08/2017,AAS0282611,44.19,N,N/A,N,N/A,
Pendle Borough Council,Financial Services,Transport Related Expense,Diesel Oil,3202,FUELMATE LTD,A0090265, 01/08/2017,AAS0282610,81.49,N,N/A,N,N/A,
Pendle Borough Council,Financial Services,Transport Related Expense,Diesel Oil,3202,FUELMATE LTD,A0090265, 01/08/2017,AAS0282610,45.57,N,N/A,N,N/A,
Pendle Borough Council,Financial Services,Transport Related Expense,Diesel Oil,3202,FUELMATE LTD,A0090265, 29/08/2017,AAS0282752,65.28,N,N/A,N,N/A,
Pendle Borough Council,Financial Services,Transport Related Expense,Diesel Oil,3202,FUELMATE LTD,A0090265, 08/08/2017,AAS0282611,83.68,N,N/A,N,N/A,
Pendle Borough Council,Financial Services,Transport Related Expense,Diesel Oil,3202,FUELMATE LTD,A0090265, 15/08/2017,AAS0282612,109.89,N,N/A,N,N/A,
Pendle Borough Council,Financial Services,Transport Related Expense,Diesel Oil,3202,FUELMATE LTD,A0090265, 22/08/2017,AAS0282743,141.48,N,N/A,N,N/A,
Pendle Borough Council,Financial Services,Transport Related Expense,Diesel Oil,3202,FUELMATE LTD,A0090265, 01/08/2017,AAS0282610,11.90,N,N/A,N,N/A,
Pendle Borough Council,Financial Services,Transport Related Expense,Diesel Oil,3202,FUELMATE LTD,A0090265, 15/08/2017,AAS0282612,26.83,N,N/A,N,N/A,
Pendle Borough Council,Financial Services,Transport Related Expense,Diesel Oil,3202,FUELMATE LTD,A0090265, 15/08/2017,AAS0282612,43.46,N,N/A,N,N/A,
Pendle Borough Council,Financial Services,Transport Related Expense,Diesel Oil,3202,FUELMATE LTD,A0090265, 22/08/2017,AAS0282743,48.66,N,N/A,N,N/A,
Pendle Borough Council,Financial Services,Transport Related Expense,Diesel Oil,3202,FUELMATE LTD,A0090265, 29/08/2017,AAS0282752,61.87,N,N/A,N,N/A,
Pendle Borough Council,Financial Services,Transport Related Expense,Diesel Oil,3202,FUELMATE LTD,A0090265, 01/08/2017,AAS0282610,63.20,N,N/A,N,N/A,
Pendle Borough Council,Financial Services,Transport Related Expense,Diesel Oil,3202,FUELMATE LTD,A0090265, 01/08/2017,AAS0282610,64.30,N,N/A,N,N/A,
Pendle Borough Council,Financial Services,Transport Related Expense,Diesel Oil,3202,FUELMATE LTD,A0090265, 22/08/2017,AAS0282743,68.53,N,N/A,N,N/A,
Pendle Borough Council,Financial Services,Transport Related Expense,Diesel Oil,3202,FUELMATE LTD,A0090265, 15/08/2017,AAS0282612,72.68,N,N/A,N,N/A,
Pendle Borough Council,Financial Services,Transport Related Expense,Diesel Oil,3202,FUELMATE LTD,A0090265, 08/08/2017,AAS0282611,94.24,N,N/A,N,N/A,
Pendle Borough Council,Financial Services,Transport Related Expense,Diesel Oil,3202,FUELMATE LTD,A0090265, 08/08/2017,AAS0282611,109.92,N,N/A,N,N/A,
Pendle Borough Council,Financial Services,Transport Related Expense,Diesel Oil,3202,FUELMATE LTD,A0090265, 08/08/2017,AAS0282611,124.58,N,N/A,N,N/A,
Pendle Borough Council,Financial Services,Transport Related Expense,Diesel Oil,3202,FUELMATE LTD,A0090265, 01/08/2017,AAS0282610,135.96,N,N/A,N,N/A,
Pendle Borough Council,Financial Services,Transport Related Expense,Diesel Oil,3202,FUELMATE LTD,A0090265, 15/08/2017,AAS0282612,143.57,N,N/A,N,N/A,
Pendle Borough Council,Financial Services,Transport Related Expense,Diesel Oil,3202,FUELMATE LTD,A0090265, 22/08/2017,AAS0282743,148.83,N,N/A,N,N/A,
Pendle Borough Council,Financial Services,Transport Related Expense,Diesel Oil,3202,FUELMATE LTD,A0090265, 29/08/2017,AAS0282752,167.05,N,N/A,N,N/A,
Pendle Borough Council,Financial Services,Transport Related Expense,Diesel Oil,3202,FUELMATE LTD,A0090265, 15/08/2017,AAS0282612,45.50,N,N/A,N,N/A,
Pendle Borough Council,Financial Services,Transport Related Expense,Diesel Oil,3202,FUELMATE LTD,A0090265, 08/08/2017,AAS0282611,81.89,N,N/A,N,N/A,
Pendle Borough Council,Financial Services,Transport Related Expense,Diesel Oil,3202,FUELMATE LTD,A0090265, 22/08/2017,AAS0282743,84.96,N,N/A,N,N/A,
Pendle Borough Council,Financial Services,Transport Related Expense,Diesel Oil,3202,FUELMATE LTD,A0090265, 29/08/2017,AAS0282752,88.38,N,N/A,N,N/A,
Pendle Borough Council,Financial Services,Transport Related Expense,Diesel Oil,3202,FUELMATE LTD,A0090265, 01/08/2017,AAS0282610,97.25,N,N/A,N,N/A,
Pendle Borough Council,Financial Services,Transport Related Expense,Diesel Oil,3202,FUELMATE LTD,A0090265, 15/08/2017,AAS0282612,116.98,N,N/A,N,N/A,
Pendle Borough Council,Financial Services,Transport Related Expense,Diesel Oil,3202,FUELMATE LTD,A0090265, 08/08/2017,AAS0282611,124.44,N,N/A,N,N/A,
Pendle Borough Council,Financial Services,Transport Related Expense,Diesel Oil,3202,FUELMATE LTD,A0090265, 01/08/2017,AAS0282610,130.28,N,N/A,N,N/A,
Pendle Borough Council,Financial Services,Transport Related Expense,Diesel Oil,3202,FUELMATE LTD,A0090265, 22/08/2017,AAS0282743,132.60,N,N/A,N,N/A,
Pendle Borough Council,Financial Services,Transport Related Expense,Diesel Oil,3202,FUELMATE LTD,A0090265, 29/08/2017,AAS0282752,132.87,N,N/A,N,N/A,
Pendle Borough Council,Financial Services,Transport Related Expense,Diesel Oil,3202,FUELMATE LTD,A0090265, 08/08/2017,AAS0282611,12.00,N,N/A,N,N/A,
Pendle Borough Council,Financial Services,Transport Related Expense,Diesel Oil,3202,FUELMATE LTD,A0090265, 01/08/2017,AAS0282610,60.38,N,N/A,N,N/A,
Pendle Borough Council,Financial Services,Transport Related Expense,Diesel Oil,3202,FUELMATE LTD,A0090265, 15/08/2017,AAS0282612,60.73,N,N/A,N,N/A,
Pendle Borough Council,Financial Services,Transport Related Expense,Diesel Oil,3202,FUELMATE LTD,A0090265, 22/08/2017,AAS0282743,90.71,N,N/A,N,N/A,
Pendle Borough Council,Financial Services,Transport Related Expense,Diesel Oil,3202,FUELMATE LTD,A0090265, 08/08/2017,AAS0282611,97.09,N,N/A,N,N/A,
Pendle Borough Council,Financial Services,Transport Related Expense,Diesel Oil,3202,FUELMATE LTD,A0090265, 22/08/2017,AAS0282743,126.51,N,N/A,N,N/A,
Pendle Borough Council,Financial Services,Transport Related Expense,Diesel Oil,3202,FUELMATE LTD,A0090265, 15/08/2017,AAS0282612,129.74,N,N/A,N,N/A,
Pendle Borough Council,Financial Services,Transport Related Expense,Diesel Oil,3202,FUELMATE LTD,A0090265, 01/08/2017,AAS0282610,129.98,N,N/A,N,N/A,
Pendle Borough Council,Financial Services,Transport Related Expense,Diesel Oil,3202,FUELMATE LTD,A0090265, 08/08/2017,AAS0282611,147.52,N,N/A,N,N/A,
Pendle Borough Council,Financial Services,Transport Related Expense,Diesel Oil,3202,FUELMATE LTD,A0090265, 29/08/2017,AAS0282752,164.24,N,N/A,N,N/A,
Pendle Borough Council,Financial Services,Transport Related Expense,Diesel Oil,3202,FUELMATE LTD,A0090265, 22/08/2017,AAS0282743,83.59,N,N/A,N,N/A,
Pendle Borough Council,Financial Services,Transport Related Expense,Diesel Oil,3202,FUELMATE LTD,A0090265, 01/08/2017,AAS0282610,100.97,N,N/A,N,N/A,
Pendle Borough Council,Financial Services,Transport Related Expense,Diesel Oil,3202,FUELMATE LTD,A0090265, 29/08/2017,AAS0282752,110.30,N,N/A,N,N/A,
Pendle Borough Council,Financial Services,Transport Related Expense,Diesel Oil,3202,FUELMATE LTD,A0090265, 08/08/2017,AAS0282611,61.49,N,N/A,N,N/A,
Pendle Borough Council,Financial Services,Transport Related Expense,Diesel Oil,3202,FUELMATE LTD,A0090265, 22/08/2017,AAS0282743,62.34,N,N/A,N,N/A,
Pendle Borough Council,Financial Services,Transport Related Expense,Diesel Oil,3202,FUELMATE LTD,A0090265, 15/08/2017,AAS0282612,62.50,N,N/A,N,N/A,
Pendle Borough Council,Financial Services,Transport Related Expense,Diesel Oil,3202,FUELMATE LTD,A0090265, 08/08/2017,AAS0282611,49.05,N,N/A,N,N/A,
Pendle Borough Council,Financial Services,Transport Related Expense,Diesel Oil,3202,FUELMATE LTD,A0090265, 15/08/2017,AAS0282612,41.49,N,N/A,N,N/A,
Pendle Borough Council,Financial Services,Transport Related Expense,Diesel Oil,3202,FUELMATE LTD,A0090265, 01/08/2017,AAS0282610,43.16,N,N/A,N,N/A,
Pendle Borough Council,Financial Services,Transport Related Expense,Diesel Oil,3202,FUELMATE LTD,A0090265, 29/08/2017,AAS0282752,43.82,N,N/A,N,N/A,
Pendle Borough Council,Financial Services,Transport Related Expense,Diesel Oil,3202,FUELMATE LTD,A0090265, 22/08/2017,AAS0282743,72.59,N,N/A,N,N/A,
Pendle Borough Council,Financial Services,Transport Related Expense,Diesel Oil,3202,FUELMATE LTD,A0090265, 15/08/2017,AAS0282612,46.01,N,N/A,N,N/A,
Pendle Borough Council,Financial Services,Transport Related Expense,Diesel Oil,3202,FUELMATE LTD,A0090265, 29/08/2017,AAS0282752,30.40,N,N/A,N,N/A,
Pendle Borough Council,Financial Services,Transport Related Expense,Diesel Oil,3202,FUELMATE LTD,A0090265, 08/08/2017,AAS0282611,38.34,N,N/A,N,N/A,
Pendle Borough Council,Financial Services,Transport Related Expense,Diesel Oil,3202,FUELMATE LTD,A0090265, 29/08/2017,AAS0282752,56.08,N,N/A,N,N/A,
Pendle Borough Council,Financial Services,Transport Related Expense,Diesel Oil,3202,FUELMATE LTD,A0090265, 15/08/2017,AAS0282612,57.00,N,N/A,N,N/A,
Pendle Borough Council,Financial Services,Transport Related Expense,Diesel Oil,3202,FUELMATE LTD,A0090265, 22/08/2017,AAS0282743,60.16,N,N/A,N,N/A,
Pendle Borough Council,Financial Services,Transport Related Expense,Diesel Oil,3202,FUELMATE LTD,A0090265, 08/08/2017,AAS0282611,60.21,N,N/A,N,N/A,
Pendle Borough Council,Financial Services,Transport Related Expense,Diesel Oil,3202,FUELMATE LTD,A0090265, 15/08/2017,AAS0282612,20.73,N,N/A,N,N/A,
Pendle Borough Council,Financial Services,Transport Related Expense,Diesel Oil,3202,FUELMATE LTD,A0090265, 01/08/2017,AAS0282610,25.46,N,N/A,N,N/A,
Pendle Borough Council,Financial Services,Transport Related Expense,Diesel Oil,3202,FUELMATE LTD,A0090265, 08/08/2017,AAS0282611,40.35,N,N/A,N,N/A,
Pendle Borough Council,Financial Services,Transport Related Expense,Diesel Oil,3202,FUELMATE LTD,A0090265, 22/08/2017,AAS0282743,41.19,N,N/A,N,N/A,
Pendle Borough Council,Financial Services,Transport Related Expense,Diesel Oil,3202,FUELMATE LTD,A0090265, 29/08/2017,AAS0282752,54.84,N,N/A,N,N/A,
Pendle Borough Council,Financial Services,Transport Related Expense,Diesel Oil,3202,FUELMATE LTD,A0090265, 29/08/2017,AAS0282752,37.04,N,N/A,N,N/A,
Pendle Borough Council,Financial Services,Transport Related Expense,Diesel Oil,3202,FUELMATE LTD,A0090265, 22/08/2017,AAS0282743,38.57,N,N/A,N,N/A,
Pendle Borough Council,Financial Services,Transport Related Expense,Diesel Oil,3202,FUELMATE LTD,A0090265, 08/08/2017,AAS0282611,44.09,N,N/A,N,N/A,
Pendle Borough Council,Financial Services,Transport Related Expense,Diesel Oil,3202,FUELMATE LTD,A0090265, 08/08/2017,AAS0282611,36.35,N,N/A,N,N/A,
Pendle Borough Council,Financial Services,Transport Related Expense,Diesel Oil,3202,FUELMATE LTD,A0090265, 01/08/2017,AAS0282610,43.53,N,N/A,N,N/A,
Pendle Borough Council,Financial Services,Transport Related Expense,Diesel Oil,3202,FUELMATE LTD,A0090265, 15/08/2017,AAS0282612,47.65,N,N/A,N,N/A,
Pendle Borough Council,Financial Services,Transport Related Expense,Diesel Oil,3202,FUELMATE LTD,A0090265, 29/08/2017,AAS0282752,50.26,N,N/A,N,N/A,
Pendle Borough Council,Financial Services,Transport Related Expense,Diesel Oil,3202,FUELMATE LTD,A0090265, 22/08/2017,AAS0282743,62.64,N,N/A,N,N/A,
Pendle Borough Council,Financial Services,Transport Related Expense,Diesel Oil,3202,FUELMATE LTD,A0090265, 01/08/2017,AAS0282610,46.92,N,N/A,N,N/A,
Pendle Borough Council,Financial Services,Transport Related Expense,Diesel Oil,3202,FUELMATE LTD,A0090265, 08/08/2017,AAS0282611,50.69,N,N/A,N,N/A,
Pendle Borough Council,Financial Services,Transport Related Expense,Diesel Oil,3202,FUELMATE LTD,A0090265, 15/08/2017,AAS0282612,65.15,N,N/A,N,N/A,
Pendle Borough Council,Financial Services,Transport Related Expense,Diesel Oil,3202,FUELMATE LTD,A0090265, 22/08/2017,AAS0282743,66.94,N,N/A,N,N/A,
Pendle Borough Council,Financial Services,Transport Related Expense,Diesel Oil,3202,FUELMATE LTD,A0090265, 08/08/2017,AAS0282611,54.15,N,N/A,N,N/A,
Pendle Borough Council,Financial Services,Transport Related Expense,Diesel Oil,3202,FUELMATE LTD,A0090265, 22/08/2017,AAS0282743,57.82,N,N/A,N,N/A,
Pendle Borough Council,Financial Services,Transport Related Expense,Diesel Oil,3202,FUELMATE LTD,A0090265, 15/08/2017,AAS0282612,90.31,N,N/A,N,N/A,
Pendle Borough Council,Financial Services,Transport Related Expense,Diesel Oil,3202,FUELMATE LTD,A0090265, 01/08/2017,AAS0282610,94.70,N,N/A,N,N/A,
Pendle Borough Council,Financial Services,Transport Related Expense,Diesel Oil,3202,FUELMATE LTD,A0090265, 29/08/2017,AAS0282752,97.53,N,N/A,N,N/A,
Pendle Borough Council,Financial Services,Transport Related Expense,Diesel Oil,3202,FUELMATE LTD,A0090265, 15/08/2017,AAS0282612,42.94,N,N/A,N,N/A,
Pendle Borough Council,Financial Services,Transport Related Expense,Diesel Oil,3202,FUELMATE LTD,A0090265, 01/08/2017,AAS0282610,28.21,N,N/A,N,N/A,
Pendle Borough Council,Financial Services,Transport Related Expense,Diesel Oil,3202,FUELMATE LTD,A0090265, 01/08/2017,AAS0282610,33.96,N,N/A,N,N/A,
Pendle Borough Council,Financial Services,Transport Related Expense,Diesel Oil,3202,FUELMATE LTD,A0090265, 29/08/2017,AAS0282752,37.53,N,N/A,N,N/A,
Pendle Borough Council,Financial Services,Transport Related Expense,Diesel Oil,3202,FUELMATE LTD,A0090265, 08/08/2017,AAS0282611,40.86,N,N/A,N,N/A,
Pendle Borough Council,Financial Services,Transport Related Expense,Diesel Oil,3202,FUELMATE LTD,A0090265, 29/08/2017,AAS0282752,50.84,N,N/A,N,N/A,
Pendle Borough Council,Financial Services,Transport Related Expense,Diesel Oil,3202,FUELMATE LTD,A0090265, 01/08/2017,AAS0282610,42.44,N,N/A,N,N/A,
Pendle Borough Council,Financial Services,Transport Related Expense,Diesel Oil,3202,FUELMATE LTD,A0090265, 01/08/2017,AAS0282610,49.08,N,N/A,N,N/A,
Pendle Borough Council,Financial Services,Transport Related Expense,Diesel Oil,3202,FUELMATE LTD,A0090265, 15/08/2017,AAS0282612,47.97,N,N/A,N,N/A,
Pendle Borough Council,Financial Services,Transport Related Expense,Diesel Oil,3202,FUELMATE LTD,A0090265, 01/08/2017,AAS0282610,33.84,N,N/A,N,N/A,
Pendle Borough Council,Financial Services,Transport Related Expense,Diesel Oil,3202,FUELMATE LTD,A0090265, 29/08/2017,AAS0282752,37.42,N,N/A,N,N/A,
Pendle Borough Council,Financial Services,Transport Related Expense,Diesel Oil,3202,FUELMATE LTD,A0090265, 08/08/2017,AAS0282611,66.48,N,N/A,N,N/A,
Pendle Borough Council,Financial Services,Transport Related Expense,Diesel Oil,3202,FUELMATE LTD,A0090265, 22/08/2017,AAS0282743,67.80,N,N/A,N,N/A,
Pendle Borough Council,Financial Services,Transport Related Expense,Diesel Oil,3202,FUELMATE LTD,A0090265, 01/08/2017,AAS0282610,67.94,N,N/A,N,N/A,
Pendle Borough Council,Financial Services,Transport Related Expense,Diesel Oil,3202,FUELMATE LTD,A0090265, 29/08/2017,AAS0282752,51.66,N,N/A,N,N/A,
Pendle Borough Council,Financial Services,Transport Related Expense,Diesel Oil,3202,FUELMATE LTD,A0090265, 08/08/2017,AAS0282611,52.28,N,N/A,N,N/A,
Pendle Borough Council,Financial Services,Transport Related Expense,Diesel Oil,3202,FUELMATE LTD,A0090265, 01/08/2017,AAS0282610,52.63,N,N/A,N,N/A,
Pendle Borough Council,Financial Services,Transport Related Expense,Diesel Oil,3202,FUELMATE LTD,A0090265, 15/08/2017,AAS0282612,57.14,N,N/A,N,N/A,
Pendle Borough Council,Financial Services,Transport Related Expense,Diesel Oil,3202,FUELMATE LTD,A0090265, 08/08/2017,AAS0282611,44.42,N,N/A,N,N/A,
Pendle Borough Council,Financial Services,Transport Related Expense,Diesel Oil,3202,FUELMATE LTD,A0090265, 22/08/2017,AAS0282743,46.74,N,N/A,N,N/A,
Pendle Borough Council,Financial Services,Transport Related Expense,Diesel Oil,3202,FUELMATE LTD,A0090265, 08/08/2017,AAS0282611,50.22,N,N/A,N,N/A,
Pendle Borough Council,Financial Services,Transport Related Expense,Diesel Oil,3202,FUELMATE LTD,A0090265, 01/08/2017,AAS0282610,52.82,N,N/A,N,N/A,
Pendle Borough Council,Financial Services,Transport Related Expense,Diesel Oil,3202,FUELMATE LTD,A0090265, 22/08/2017,AAS0282743,55.20,N,N/A,N,N/A,
Pendle Borough Council,Financial Services,Transport Related Expense,Diesel Oil,3202,FUELMATE LTD,A0090265, 08/08/2017,AAS0282611,49.80,N,N/A,N,N/A,
Pendle Borough Council,Financial Services,Transport Related Expense,Diesel Oil,3202,FUELMATE LTD,A0090265, 15/08/2017,AAS0282612,51.13,N,N/A,N,N/A,
Pendle Borough Council,Financial Services,Transport Related Expense,Diesel Oil,3202,FUELMATE LTD,A0090265, 29/08/2017,AAS0282752,53.14,N,N/A,N,N/A,
Pendle Borough Council,Financial Services,Transport Related Expense,Diesel Oil,3202,FUELMATE LTD,A0090265, 01/08/2017,AAS0282610,51.71,N,N/A,N,N/A,
Pendle Borough Council,Financial Services,Transport Related Expense,Diesel Oil,3202,FUELMATE LTD,A0090265, 22/08/2017,AAS0282743,52.72,N,N/A,N,N/A,
Pendle Borough Council,Financial Services,Transport Related Expense,Diesel Oil,3202,FUELMATE LTD,A0090265, 22/08/2017,AAS0282743,57.65,N,N/A,N,N/A,
Pendle Borough Council,Financial Services,Transport Related Expense,Diesel Oil,3202,FUELMATE LTD,A0090265, 29/08/2017,AAS0282752,51.13,N,N/A,N,N/A,
Pendle Borough Council,Financial Services,Transport Related Expense,Diesel Oil,3202,FUELMATE LTD,A0090265, 01/08/2017,AAS0282610,32.66,N,N/A,N,N/A,
Pendle Borough Council,Financial Services,Transport Related Expense,Diesel Oil,3202,FUELMATE LTD,A0090265, 15/08/2017,AAS0282612,47.02,N,N/A,N,N/A,
Pendle Borough Council,Financial Services,Transport Related Expense,Diesel Oil,3202,FUELMATE LTD,A0090265, 08/08/2017,AAS0282611,17.89,N,N/A,N,N/A,
Pendle Borough Council,Financial Services,Transport Related Expense,Diesel Oil,3202,FUELMATE LTD,A0090265, 22/08/2017,AAS0282743,25.21,N,N/A,N,N/A,
Pendle Borough Council,Financial Services,Transport Related Expense,Diesel Oil,3202,FUELMATE LTD,A0090265, 22/08/2017,AAS0282743,33.47,N,N/A,N,N/A,
Pendle Borough Council,Financial Services,Transport Related Expense,Diesel Oil,3202,FUELMATE LTD,A0090265, 01/08/2017,AAS0282610,39.75,N,N/A,N,N/A,
Pendle Borough Council,Financial Services,Transport Related Expense,Diesel Oil,3202,FUELMATE LTD,A0090265, 22/08/2017,AAS0282743,46.20,N,N/A,N,N/A,
Pendle Borough Council,Financial Services,Transport Related Expense,Diesel Oil,3202,FUELMATE LTD,A0090265, 15/08/2017,AAS0282612,48.69,N,N/A,N,N/A,
Pendle Borough Council,Financial Services,Transport Related Expense,Diesel Oil,3202,FUELMATE LTD,A0090265, 29/08/2017,AAS0282752,84.67,N,N/A,N,N/A,
Pendle Borough Council,Financial Services,Transport Related Expense,Diesel Oil,3202,FUELMATE LTD,A0090265, 08/08/2017,AAS0282611,65.53,N,N/A,N,N/A,
Pendle Borough Council,Financial Services,Transport Related Expense,Diesel Oil,3202,FUELMATE LTD,A0090265, 22/08/2017,AAS0282743,67.64,N,N/A,N,N/A,
Pendle Borough Council,Financial Services,Transport Related Expense,Diesel Oil,3202,FUELMATE LTD,A0090265, 15/08/2017,AAS0282612,72.12,N,N/A,N,N/A,
Pendle Borough Council,Engineering & Special Projects,Premises Related Expense,Grounds : R & M : Day to Day : Routine,2101,G B SIGNS SOLUTIONS LIMITED,A0001202, 10/08/2017,HED0282155,73.10,N,N/A,N,N/A,
Pendle Borough Council,Engineering & Special Projects,Premises Related Expense,Grounds : R & M : Day to Day : Routine,2101,G B SIGNS SOLUTIONS LIMITED,A0001202, 10/08/2017,HED0282155,59.50,N,N/A,N,N/A,
Pendle Borough Council,Engineering & Special Projects,Premises Related Expense,Grounds : R & M : Day to Day : Routine,2101,G B SIGNS SOLUTIONS LIMITED,A0001202, 10/08/2017,HED0282155,22.20,N,N/A,N,N/A,
Pendle Borough Council,Engineering & Special Projects,Premises Related Expense,Grounds : R & M : Day to Day : Routine,2101,G B SIGNS SOLUTIONS LIMITED,A0001202, 10/08/2017,HED0282155,18.70,N,N/A,N,N/A,
Pendle Borough Council,Financial Services,Support Services,Bank Charges,7201,G4S CASH SOLUTIONS (UK) LIMITED,A0002616, 17/08/2017,AAS0282267,188.21,N,N/A,N,N/A,
Pendle Borough Council,Democratic & Legal Services,Supplies and Services,Seminars etc All Costs,4601,REDACTED - PERSONAL DATA,A0002785, 24/08/2017,DAL0282339,7.50,N,N/A,N,N/A,
Pendle Borough Council,Democratic & Legal Services,Supplies and Services,Seminars etc All Costs,4601,REDACTED - PERSONAL DATA,A0002785, 24/08/2017,DAL0282339,35.66,N,N/A,N,N/A,
Pendle Borough Council,Property Services,Capital Costs,Capital : Payments,CD14,GEORGE BOOCOCK DECORATORS LTD,A0000427, 31/08/2017,EST0282548,639.00,N,N/A,N,N/A,
Pendle Borough Council,Parks & Recreation Services,Transport Related Expense,Tprt : Repairs : General,3105,GIBSONS GARDEN MACHINERY LTD,A0001201, 10/08/2017,PCO0282047,119.85,N,N/A,N,N/A,
Pendle Borough Council,Parks & Recreation Services,Transport Related Expense,Tprt : Repairs : General,3105,GIBSONS GARDEN MACHINERY LTD,A0001201, 10/08/2017,PCO0282034,43.20,N,N/A,N,N/A,
Pendle Borough Council,Parks & Recreation Services,Transport Related Expense,Tprt : Repairs : General,3105,GIBSONS GARDEN MACHINERY LTD,A0001201, 03/08/2017,PCO0281945,52.19,N,N/A,N,N/A,
Pendle Borough Council,Financial Services,Supplies and Services,Consultants Fees,4401,GLOBAL PAYMENTS,A0072461, 16/08/2017,AAS0282596,7.00,N,N/A,N,N/A,
Pendle Borough Council,Financial Services,Supplies and Services,Consultants Fees,4401,GLOBAL PAYMENTS,A0072461, 16/08/2017,AAS0282596,1278.43,N,N/A,N,N/A,
Pendle Borough Council,Financial Services,Supplies and Services,Credit card and online charges,4421,GLOBAL PAYMENTS,A0072461, 16/08/2017,AAS0282597,7.00,N,N/A,N,N/A,
Pendle Borough Council,Financial Services,Supplies and Services,Credit card and online charges,4421,GLOBAL PAYMENTS,A0072461, 16/08/2017,AAS0282598,7.00,N,N/A,N,N/A,
Pendle Borough Council,Financial Services,Supplies and Services,Credit card and online charges,4421,GLOBAL PAYMENTS,A0072461, 16/08/2017,AAS0282598,1262.89,N,N/A,N,N/A,
Pendle Borough Council,Financial Services,Supplies and Services,Credit card and online charges,4421,GLOBAL PAYMENTS,A0072461, 16/08/2017,AAS0282597,1578.22,N,N/A,N,N/A,
Pendle Borough Council,Operational Services,Transport Related Expense,Tprt : Repairs : General,3105,GO PLANT LIMITED,A0045105, 24/08/2017,OPS0282419,116.54,N,N/A,N,N/A,
Pendle Borough Council,Operational Services,Transport Related Expense,Tprt : Repairs : General,3105,GO PLANT LIMITED,A0045105, 24/08/2017,OPS0282416,117.24,N,N/A,N,N/A,
Pendle Borough Council,Operational Services,Transport Related Expense,Tprt : Repairs : General,3105,GO PLANT LIMITED,A0045105, 24/08/2017,OPS0282424,86.48,N,N/A,N,N/A,
Pendle Borough Council,Operational Services,Transport Related Expense,Tprt : Repairs : General,3105,GO PLANT LIMITED,A0045105, 24/08/2017,OPS4005660,-28.21,N,N/A,N,N/A,
Pendle Borough Council,Operational Services,Transport Related Expense,Tprt : Repairs : General,3105,GO PLANT LIMITED,A0045105, 24/08/2017,OPS0282395,28.21,N,N/A,N,N/A,
Pendle Borough Council,Operational Services,Transport Related Expense,Tprt : Repairs : General,3105,GO PLANT LIMITED,A0045105, 24/08/2017,OPS0282403,184.02,N,N/A,N,N/A,
Pendle Borough Council,Operational Services,Transport Related Expense,Tprt : Repairs : General,3105,GO PLANT LIMITED,A0045105, 24/08/2017,OPS0282427,54.76,N,N/A,N,N/A,
Pendle Borough Council,Operational Services,Transport Related Expense,Tprt : Repairs : General,3105,GO PLANT LIMITED,A0045105, 24/08/2017,OPS0282401,49.11,N,N/A,N,N/A,
Pendle Borough Council,Operational Services,Transport Related Expense,Tprt : Repairs : General,3105,GO PLANT LIMITED,A0045105, 24/08/2017,OPS0282418,66.20,N,N/A,N,N/A,
Pendle Borough Council,Economic Development & Tourism,Transport Related Expense,Tprt : Repairs : General,3105,GO PLANT LIMITED,A0045105, 17/08/2017,REG0282185,419.56,N,N/A,N,N/A,
Pendle Borough Council,Operational Services,Transport Related Expense,Tprt : Repairs : General,3105,GO PLANT LIMITED,A0045105, 24/08/2017,OPS0282404,10.59,N,N/A,N,N/A,
Pendle Borough Council,Operational Services,Transport Related Expense,Tprt : Repairs : General,3105,GO PLANT LIMITED,A0045105, 24/08/2017,OPS0282425,30.72,N,N/A,N,N/A,
Pendle Borough Council,Operational Services,Transport Related Expense,Tprt : Repairs : General,3105,GO PLANT LIMITED,A0045105, 24/08/2017,OPS0282422,17.08,N,N/A,N,N/A,
Pendle Borough Council,Parks & Recreation Services,Transport Related Expense,Tprt : Repairs : General,3105,GO PLANT LIMITED,A0045105, 24/08/2017,PCO0282432,1037.58,N,N/A,N,N/A,
Pendle Borough Council,Operational Services,Transport Related Expense,Tyres,3204,GO PLANT LIMITED,A0045105, 24/08/2017,OPS0282415,48.45,N,N/A,N,N/A,
Pendle Borough Council,Operational Services,Transport Related Expense,Tyres,3204,GO PLANT LIMITED,A0045105, 24/08/2017,OPS0282420,48.45,N,N/A,N,N/A,
Pendle Borough Council,Operational Services,Transport Related Expense,Tyres,3204,GO PLANT LIMITED,A0045105, 24/08/2017,OPS0282426,105.70,N,N/A,N,N/A,
Pendle Borough Council,Operational Services,Transport Related Expense,Tyres,3204,GO PLANT LIMITED,A0045105, 24/08/2017,OPS0282398,479.03,N,N/A,N,N/A,
Pendle Borough Council,Operational Services,Transport Related Expense,Tyres,3204,GO PLANT LIMITED,A0045105, 24/08/2017,OPS0282397,61.70,N,N/A,N,N/A,
Pendle Borough Council,Operational Services,Transport Related Expense,Tyres,3204,GO PLANT LIMITED,A0045105, 24/08/2017,OPS0282421,41.83,N,N/A,N,N/A,
Pendle Borough Council,Operational Services,Transport Related Expense,Tyres,3204,GO PLANT LIMITED,A0045105, 24/08/2017,OPS0282423,41.83,N,N/A,N,N/A,
Pendle Borough Council,Operational Services,Transport Related Expense,Tyres,3204,GO PLANT LIMITED,A0045105, 24/08/2017,OPS0282414,48.45,N,N/A,N,N/A,
Pendle Borough Council,Operational Services,Transport Related Expense,Tyres,3204,GO PLANT LIMITED,A0045105, 10/08/2017,OPS0282117,285.25,N,N/A,N,N/A,
Pendle Borough Council,Operational Services,Transport Related Expense,Tyres,3204,GO PLANT LIMITED,A0045105, 24/08/2017,OPS4005661,-32.00,N,N/A,N,N/A,
Pendle Borough Council,Operational Services,Transport Related Expense,Tyres,3204,GO PLANT LIMITED,A0045105, 24/08/2017,OPS0282394,73.83,N,N/A,N,N/A,
Pendle Borough Council,Operational Services,Transport Related Expense,Tyres,3204,GO PLANT LIMITED,A0045105, 24/08/2017,OPS0282400,310.25,N,N/A,N,N/A,
Pendle Borough Council,Parks & Recreation Services,Transport Related Expense,Tprt : Annual Hire Charge,3601,GO PLANT LIMITED,A0045105, 24/08/2017,PCO0282408,384.00,N,N/A,N,N/A,
Pendle Borough Council,Parks & Recreation Services,Transport Related Expense,Tprt : Annual Hire Charge,3601,GO PLANT LIMITED,A0045105, 24/08/2017,PCO0282389,704.00,N,N/A,N,N/A,
Pendle Borough Council,Operational Services,Transport Related Expense,Tprt : Annual Hire Charge,3601,GO PLANT LIMITED,A0045105, 10/08/2017,OPS0282125,66014.79,N,N/A,N,N/A,
Pendle Borough Council,Democratic & Legal Services,Supplies and Services,Mayoral Expenses,4614,GOING DUTCH FLORIST,A0001216, 24/08/2017,DAL0282349,10.00,N,N/A,N,N/A,
Pendle Borough Council,Environmental Health Services,Supplies and Services,Other Expenses,4705,GRADKO INTERNATIONAL LTD,A0025806, 10/08/2017,ENV0282176,197.00,N,N/A,N,N/A,
Pendle Borough Council,Engineering & Special Projects,Premises Related Expense,Grounds : R & M : Day to Day : Routine,2101,GREEN CLEAN RESTORATION,A0090368, 31/08/2017,HED0282521,1074.50,N,N/A,N,N/A,
Pendle Borough Council,Parks & Recreation Services,Transport Related Expense,Tprt : Repairs : General,3105,GUY MACHINERY LIMITED,A0070711, 10/08/2017,PCO0282052,39.98,N,N/A,N,N/A,
Pendle Borough Council,Parks & Recreation Services,Transport Related Expense,Tprt : Repairs : General,3105,GUY MACHINERY LIMITED,A0070711, 03/08/2017,PCO0281948,17.00,N,N/A,N,N/A,
Pendle Borough Council,Human Resources,Indirect Employee Expenses,Emp : Medical Expenses,1236,HEALTH BUSINESS LIMITED,A0088933, 17/08/2017,PER0282226,308.00,N,N/A,N,N/A,
Pendle Borough Council,Human Resources,Indirect Employee Expenses,Emp : Medical Expenses,1236,HEALTH BUSINESS LIMITED,A0088933, 03/08/2017,PER0282003,444.00,N,N/A,N,N/A,
Pendle Borough Council,Human Resources,Indirect Employee Expenses,Emp : Medical Expenses,1236,HEALTH BUSINESS LIMITED,A0088933, 17/08/2017,PER0282226,444.00,N,N/A,N,N/A,
Pendle Borough Council,Engineering & Special Projects,Capital Costs,Capital : Payments,CD14,HIGHAM WITH WEST CLOSE BOOTH PC,A0090493, 10/08/2017,HED0282056,255.00,N,N/A,N,N/A,
Pendle Borough Council,Financial Services,Supplies and Services,Court Fees,4403,HM COURTS & TRIBUNALS SERVICE,A0083319, 16/08/2017,AAS0282605,370.00,N,N/A,N,N/A,
Pendle Borough Council,Revenues Services,Supplies and Services,Consultants Fees,4401,HM COURTS & TRIBUNALS SERVICE,A0090903, 10/08/2017,TRE0282100,84.00,N,N/A,N,N/A,
Pendle Borough Council,Revenues Services,Supplies and Services,Consultants Fees,4401,HM COURTS & TRIBUNALS SERVICE,A0090903, 10/08/2017,TRE0282100,2097.00,N,N/A,N,N/A,
Pendle Borough Council,Economic Development & Tourism,Capital Costs,Capital : Payments,CD14,HOLLYWOOD HAIR,A0091274, 31/08/2017,REG0282528,437.70,N,N/A,N,N/A,
Pendle Borough Council,Financial Services,Capital Costs,Capital : Payments,CD14,HOMES & COMMUNITIES AGENCY,A0090948, 31/08/2017,AAS0282557,500000.00,N,N/A,N,N/A,
Pendle Borough Council,Engineering & Special Projects,Supplies and Services,EFM : Other Equipment,4003,ID MANAGEMENT SYSTEMS,A0069768, 03/08/2017,HED0281976,8.95,N,N/A,N,N/A,
Pendle Borough Council,Engineering & Special Projects,Supplies and Services,EFM : Other Equipment,4003,ID MANAGEMENT SYSTEMS,A0069768, 03/08/2017,HED0281976,341.00,N,N/A,N,N/A,
Pendle Borough Council,Property Services,Premises Related Expense,Bldgs : R & M : Day To Day,2001,J DRIVER LTD,A0000884, 03/08/2017,EST0281999,44.00,N,N/A,N,N/A,
Pendle Borough Council,Property Services,Premises Related Expense,Bldgs : R & M : Day To Day,2001,J DRIVER LTD,A0000884, 03/08/2017,EST0281999,66.00,N,N/A,N,N/A,
Pendle Borough Council,Property Services,Premises Related Expense,Bldgs : R & M : Day To Day,2001,J DRIVER LTD,A0000884, 03/08/2017,EST0281999,175.70,N,N/A,N,N/A,
Pendle Borough Council,Property Services,Premises Related Expense,Bldgs : R & M : Day To Day,2001,J DRIVER LTD,A0000884, 03/08/2017,EST0281999,183.51,N,N/A,N,N/A,
Pendle Borough Council,Property Services,Premises Related Expense,Bldgs : R & M : Day To Day,2001,J DRIVER LTD,A0000884, 03/08/2017,EST0281999,33.00,N,N/A,N,N/A,
Pendle Borough Council,Property Services,Premises Related Expense,Bldgs : R & M : Day To Day,2001,J DRIVER LTD,A0000884, 03/08/2017,EST0281999,44.00,N,N/A,N,N/A,
Pendle Borough Council,Property Services,Premises Related Expense,Bldgs : R & M : Day To Day,2001,J DRIVER LTD,A0000884, 03/08/2017,EST0281999,55.00,N,N/A,N,N/A,
Pendle Borough Council,Property Services,Premises Related Expense,Bldgs : R & M : Day To Day,2001,J DRIVER LTD,A0000884, 03/08/2017,EST0281999,44.00,N,N/A,N,N/A,
Pendle Borough Council,Property Services,Premises Related Expense,Bldgs : R & M : Day To Day,2001,J DRIVER LTD,A0000884, 03/08/2017,EST0281999,215.93,N,N/A,N,N/A,
Pendle Borough Council,Property Services,Premises Related Expense,Bldgs : R & M : Day To Day,2001,J DRIVER LTD,A0000884, 03/08/2017,EST0281999,44.00,N,N/A,N,N/A,
Pendle Borough Council,Property Services,Premises Related Expense,Bldgs : R & M : Day To Day,2001,J DRIVER LTD,A0000884, 03/08/2017,EST0281999,108.00,N,N/A,N,N/A,
Pendle Borough Council,Property Services,Premises Related Expense,Bldgs : R & M : Day To Day,2001,J DRIVER LTD,A0000884, 03/08/2017,EST0281999,108.00,N,N/A,N,N/A,
Pendle Borough Council,Property Services,Premises Related Expense,Bldgs : R & M : Day To Day,2001,J DRIVER LTD,A0000884, 03/08/2017,EST0281999,1013.60,N,N/A,N,N/A,
Pendle Borough Council,Property Services,Premises Related Expense,Bldgs : R & M : Day To Day,2001,J DRIVER LTD,A0000884, 03/08/2017,EST0281999,78.10,N,N/A,N,N/A,
Pendle Borough Council,Property Services,Premises Related Expense,Bldgs : R & M : Day To Day,2001,J DRIVER LTD,A0000884, 03/08/2017,EST0281999,253.13,N,N/A,N,N/A,
Pendle Borough Council,Property Services,Premises Related Expense,Bldgs : R & M : Day To Day,2001,J DRIVER LTD,A0000884, 03/08/2017,EST0281999,108.00,N,N/A,N,N/A,
Pendle Borough Council,Property Services,Premises Related Expense,Bldgs : R & M : Day To Day,2001,J DRIVER LTD,A0000884, 03/08/2017,EST0281999,336.31,N,N/A,N,N/A,
Pendle Borough Council,Property Services,Premises Related Expense,Bldgs : R & M : Day To Day,2001,J DRIVER LTD,A0000884, 03/08/2017,EST0281999,27.50,N,N/A,N,N/A,
Pendle Borough Council,Property Services,Premises Related Expense,Bldgs : R & M : Day To Day,2001,J DRIVER LTD,A0000884, 03/08/2017,EST0281999,57.20,N,N/A,N,N/A,
Pendle Borough Council,Property Services,Premises Related Expense,Bldgs : R & M : Day To Day,2001,J DRIVER LTD,A0000884, 03/08/2017,EST0281999,44.00,N,N/A,N,N/A,
Pendle Borough Council,Property Services,Premises Related Expense,Bldgs : R & M : Day To Day,2001,J DRIVER LTD,A0000884, 03/08/2017,EST0281999,55.22,N,N/A,N,N/A,
Pendle Borough Council,Property Services,Premises Related Expense,Bldgs : R & M : Day To Day,2001,J DRIVER LTD,A0000884, 03/08/2017,EST0281999,128.54,N,N/A,N,N/A,
Pendle Borough Council,Property Services,Premises Related Expense,Bldgs : R & M : Day To Day,2001,J DRIVER LTD,A0000884, 03/08/2017,EST0281999,68.75,N,N/A,N,N/A,
Pendle Borough Council,Property Services,Premises Related Expense,Bldgs : R & M : Day To Day,2001,J DRIVER LTD,A0000884, 03/08/2017,EST0281999,132.00,N,N/A,N,N/A,
Pendle Borough Council,Property Services,Capital Costs,Capital : Payments,CD14,J DRIVER LTD,A0000884, 03/08/2017,EST0281999,1479.67,N,N/A,N,N/A,
Pendle Borough Council,Chief Executives Policy Unit,Supplies and Services,Other Expenses,4705,J H BLAKEY & SONS (SECURITY) LTD,A0000211, 03/08/2017,COR0281917,442.11,N,N/A,N,N/A,
Pendle Borough Council,Engineering & Special Projects,Supplies and Services,LCC Levy (Admins Costs),4419,JACOBS,A0016294, 03/08/2017,HED0281957,-310.00,N,N/A,N,N/A,
Pendle Borough Council,Engineering & Special Projects,Supplies and Services,LCC Levy (Admins Costs),4419,JACOBS,A0016294, 03/08/2017,HED0281957,310.00,N,N/A,N,N/A,
Pendle Borough Council,Financial Services,Transport Related Expense,Tprt : Repairs : General,3105,JAMES ALPE SIGN & DESIGN,A0061107, 02/08/2017,AAS0282197,-4006.59,N,N/A,N,N/A,
Pendle Borough Council,Financial Services,Transport Related Expense,Tprt : Repairs : General,3105,JAMES ALPE SIGN & DESIGN,A0061107, 02/08/2017,AAS0282197,1000.00,N,N/A,N,N/A,
Pendle Borough Council,Financial Services,Transport Related Expense,Tprt : Repairs : General,3105,JAMES ALPE SIGN & DESIGN,A0061107, 02/08/2017,AAS0282197,4006.59,N,N/A,N,N/A,
Pendle Borough Council,Parks & Recreation Services,Premises Related Expense,Grounds : R & M : Day to Day : Routine,2101,JAMES HARGREAVES (PLUMB MERCH) LTD,A0001334, 17/08/2017,PCO0282204,13.58,N,N/A,N,N/A,
Pendle Borough Council,Engineering & Special Projects,Premises Related Expense,Passenger Shelter Cleaning,2606,JANDON CLEANING SERVICES,A0079028, 03/08/2017,HED0282001,120.00,N,N/A,N,N/A,
Pendle Borough Council,Engineering & Special Projects,Premises Related Expense,Passenger Shelter Cleaning,2606,JANDON CLEANING SERVICES,A0079028, 03/08/2017,HED0282001,180.00,N,N/A,N,N/A,
Pendle Borough Council,Engineering & Special Projects,Premises Related Expense,Passenger Shelter Cleaning,2606,JANDON CLEANING SERVICES,A0079028, 03/08/2017,HED0282001,20.00,N,N/A,N,N/A,
Pendle Borough Council,Revenues Services,Supplies and Services,Consultants Fees,4401,JBW GROUP LIMITED,A0088708, 10/08/2017,TRE0282098,110.00,N,N/A,N,N/A,
Pendle Borough Council,Revenues Services,Supplies and Services,Consultants Fees,4401,JBW GROUP LIMITED,A0088708, 10/08/2017,TRE0282099,165.00,N,N/A,N,N/A,
Pendle Borough Council,Parks & Recreation Services,Premises Related Expense,Bldgs : R & M : Day To Day,2001,JEWSON LIMITED,A0001323, 03/08/2017,PCO0281942,26.88,N,N/A,N,N/A,
Pendle Borough Council,Parks & Recreation Services,Premises Related Expense,Grounds : R & M : Day to Day : Routine,2101,JEWSON LIMITED,A0001323, 24/08/2017,PCO0282386,23.70,N,N/A,N,N/A,
Pendle Borough Council,Economic Development & Tourism,Supplies and Services,EFM Materials,4004,JEWSON LIMITED,A0001323, 17/08/2017,REG0282080,25.06,N,N/A,N,N/A,
Pendle Borough Council,Operational Services,Supplies and Services,EFM Materials,4004,JEWSON LIMITED,A0001323, 24/08/2017,OPS0282361,37.14,N,N/A,N,N/A,
Pendle Borough Council,Economic Development & Tourism,Supplies and Services,Maintenance contracts,4006,JEWSON LIMITED,A0001323, 17/08/2017,REG0282070,23.63,N,N/A,N,N/A,
Pendle Borough Council,Operational Services,Supplies and Services,Sub-Contractors,4007,JEWSON LIMITED,A0001323, 17/08/2017,OPS0282274,34.38,N,N/A,N,N/A,
Pendle Borough Council,Operational Services,Supplies and Services,Other Expenses,4705,JEWSON LIMITED,A0001323, 17/08/2017,OPS4005656,-71.08,N,N/A,N,N/A,
Pendle Borough Council,Operational Services,Supplies and Services,Other Expenses,4705,JEWSON LIMITED,A0001323, 03/08/2017,OPS0281953,71.08,N,N/A,N,N/A,
Pendle Borough Council,Operational Services,Supplies and Services,Other Expenses,4705,JEWSON LIMITED,A0001323, 17/08/2017,OPS0282126,71.08,N,N/A,N,N/A,
Pendle Borough Council,Economic Development & Tourism,Supplies and Services,Miscellaneous : Other,4707,JEWSON LIMITED,A0001323, 17/08/2017,REG0282070,12.38,N,N/A,N,N/A,
Pendle Borough Council,Economic Development & Tourism,Supplies and Services,Miscellaneous : Other,4707,JEWSON LIMITED,A0001323, 17/08/2017,REG0282066,71.08,N,N/A,N,N/A,
Pendle Borough Council,Economic Development & Tourism,Supplies and Services,Miscellaneous : Other,4707,JEWSON LIMITED,A0001323, 17/08/2017,REG0282067,71.08,N,N/A,N,N/A,
Pendle Borough Council,Economic Development & Tourism,Supplies and Services,Miscellaneous : Other,4707,JEWSON LIMITED,A0001323, 17/08/2017,REG0282068,71.08,N,N/A,N,N/A,
Pendle Borough Council,Operational Services,Premises Related Expense,Grounds : R & M : Day to Day : Routine,2101,JOHN MACADAM & SON (RESCUE) LTD,A0001846, 24/08/2017,OPS0282358,45.00,N,N/A,N,N/A,
Pendle Borough Council,Operational Services,Premises Related Expense,Grounds : R & M : Day to Day : Routine,2101,JOHN MACADAM & SON (RESCUE) LTD,A0001846, 24/08/2017,OPS0282356,45.00,N,N/A,N,N/A,
Pendle Borough Council,Operational Services,Premises Related Expense,Grounds : R & M : Day to Day : Routine,2101,JOHN MACADAM & SON (RESCUE) LTD,A0001846, 24/08/2017,OPS0282357,45.00,N,N/A,N,N/A,
Pendle Borough Council,Operational Services,Premises Related Expense,Grounds : R & M : Day to Day : Routine,2101,JOHN MACADAM & SON (RESCUE) LTD,A0001846, 24/08/2017,OPS0282359,45.00,N,N/A,N,N/A,
Pendle Borough Council,Environmental Health Services,Supplies and Services,Other Expenses,4705,JOHNSONS TEXICARE LTD,A0002665, 10/08/2017,ENV0282177,84.06,N,N/A,N,N/A,
Pendle Borough Council,Democratic & Legal Services,Supplies and Services,Adverts : Statutory Notice,4702,JOHNSTON PUBLISHING LIMITED,A0059640, 10/08/2017,DAL0282091,216.00,N,N/A,N,N/A,
Pendle Borough Council,Democratic & Legal Services,Supplies and Services,Adverts : Statutory Notice,4702,JOHNSTON PUBLISHING LIMITED,A0059640, 31/08/2017,DAL0282502,108.00,N,N/A,N,N/A,
Pendle Borough Council,Democratic & Legal Services,Supplies and Services,Adverts : Statutory Notice,4702,JOHNSTON PUBLISHING LIMITED,A0059640, 03/08/2017,DAL0281938,135.00,N,N/A,N,N/A,
Pendle Borough Council,Democratic & Legal Services,Supplies and Services,Adverts : Statutory Notice,4702,JOHNSTON PUBLISHING LIMITED,A0059640, 03/08/2017,DAL0281939,243.00,N,N/A,N,N/A,
Pendle Borough Council,Democratic & Legal Services,Supplies and Services,Adverts : Statutory Notice,4702,JOHNSTON PUBLISHING LIMITED,A0059640, 31/08/2017,DAL0282503,270.00,N,N/A,N,N/A,
Pendle Borough Council,Democratic & Legal Services,Supplies and Services,Adverts : Statutory Notice,4702,JOHNSTON PUBLISHING LIMITED,A0059640, 17/08/2017,DAL0282194,459.00,N,N/A,N,N/A,
Pendle Borough Council,Parks & Recreation Services,Premises Related Expense,Bldgs : R & M : Day To Day,2001,K RAYMENT WINDOW CLEANING SERVICE,A0091121, 17/08/2017,PCO0282209,25.00,N,N/A,N,N/A,
Pendle Borough Council,Engineering & Special Projects,Premises Related Expense,Grounds : R & M : Day to Day : Routine,2101,KEVIN WILKINSON LANDSCAPES LTD,A0085660, 10/08/2017,HED0282055,168.00,N,N/A,N,N/A,
Pendle Borough Council,Operational Services,Premises Related Expense,Bldgs : R & M : Day To Day,2001,KEYPLUS SECURITY LIMITED,A0062723, 17/08/2017,OPS0282277,37.50,N,N/A,N,N/A,
Pendle Borough Council,Environmental Health Services,Supplies and Services,EFM Materials,4004,KILLGERM CHEMICALS LTD,A0001624, 10/08/2017,ENV0282158,152.34,N,N/A,N,N/A,
Pendle Borough Council,Environmental Health Services,Supplies and Services,EFM Materials,4004,KILLGERM CHEMICALS LTD,A0001624, 10/08/2017,ENV0282158,225.50,N,N/A,N,N/A,
Pendle Borough Council,Housing Regeneration Services,Supplies and Services,EFM : Other Equipment,4003,KINGS WASHING MACHINE RENTALS,A0079878, 31/08/2017,HMR0282504,55.00,N,N/A,N,N/A,
Pendle Borough Council,Property Services,Capital Costs,Capital : Payments,CD14,LANCASHIRE CLOCKMAKERS LIMITED,A0091189, 24/08/2017,EST0282458,380.00,N,N/A,N,N/A,
Pendle Borough Council,Engineering & Special Projects,Premises Related Expense,Grounds : R & M : Day to Day : Routine,2101,LANCASHIRE COUNTY COUNCIL,A0001690, 03/08/2017,HED0281966,30.00,N,N/A,N,N/A,
Pendle Borough Council,Democratic & Legal Services,Supplies and Services,Search Fees,4404,LANCASHIRE COUNTY COUNCIL,A0001690, 17/08/2017,DAL0282224,603.00,N,N/A,N,N/A,
Pendle Borough Council,Housing Regeneration Services,Capital Costs,Ren Grant : 1996 Act,CH22,LANCASHIRE COUNTY COUNCIL,A0001690, 03/08/2017,HMR0281981,2261.00,N,N/A,N,N/A,
Pendle Borough Council,Housing Regeneration Services,Capital Costs,Ren Grant : 1996 Act,CH22,LANCASHIRE COUNTY COUNCIL,A0001690, 24/08/2017,HMR0282436,2611.00,N,N/A,N,N/A,
Pendle Borough Council,Parks & Recreation Services,Transport Related Expense,Tprt : Repairs : General,3105,LANCASHIRE DAF,A0089429, 10/08/2017,PCO0282044,65.00,N,N/A,N,N/A,
Pendle Borough Council,Parks & Recreation Services,Transport Related Expense,Tprt : Repairs : General,3105,LANCASHIRE DAF,A0089429, 10/08/2017,PCO0282044,91.00,N,N/A,N,N/A,
Pendle Borough Council,Parks & Recreation Services,Premises Related Expense,Bldgs : R & M : Day To Day,2001,LANLEE SUPPLIES LIMITED,A0001672, 24/08/2017,PCO0282365,14.64,N,N/A,N,N/A,
Pendle Borough Council,Parks & Recreation Services,Premises Related Expense,Grounds : R & M : Day to Day : Routine,2101,LANLEE SUPPLIES LIMITED,A0001672, 24/08/2017,PCO0282364,81.60,N,N/A,N,N/A,
Pendle Borough Council,Parks & Recreation Services,Premises Related Expense,Grounds : R & M : Day to Day : Routine,2101,LANLEE SUPPLIES LIMITED,A0001672, 24/08/2017,PCO0282364,115.68,N,N/A,N,N/A,
Pendle Borough Council,Economic Development & Tourism,Supplies and Services,EFM : Other Equipment,4003,LANLEE SUPPLIES LIMITED,A0001672, 17/08/2017,REG0282186,15.50,N,N/A,N,N/A,
Pendle Borough Council,Economic Development & Tourism,Supplies and Services,EFM : Other Equipment,4003,LANLEE SUPPLIES LIMITED,A0001672, 31/08/2017,REG0282497,32.25,N,N/A,N,N/A,
Pendle Borough Council,Economic Development & Tourism,Supplies and Services,EFM : Other Equipment,4003,LANLEE SUPPLIES LIMITED,A0001672, 17/08/2017,REG0282082,45.73,N,N/A,N,N/A,
Pendle Borough Council,Economic Development & Tourism,Supplies and Services,Maintenance contracts,4006,LANLEE SUPPLIES LIMITED,A0001672, 17/08/2017,REG0282079,16.93,N,N/A,N,N/A,
Pendle Borough Council,Economic Development & Tourism,Supplies and Services,Maintenance contracts,4006,LANLEE SUPPLIES LIMITED,A0001672, 17/08/2017,REG0282077,107.87,N,N/A,N,N/A,
Pendle Borough Council,Economic Development & Tourism,Supplies and Services,Maintenance contracts,4006,LANLEE SUPPLIES LIMITED,A0001672, 17/08/2017,REG0282087,156.24,N,N/A,N,N/A,
Pendle Borough Council,Economic Development & Tourism,Supplies and Services,Maintenance contracts,4006,LANLEE SUPPLIES LIMITED,A0001672, 17/08/2017,REG0282078,354.03,N,N/A,N,N/A,
Pendle Borough Council,Economic Development & Tourism,Supplies and Services,Miscellaneous : Other,4707,LANLEE SUPPLIES LIMITED,A0001672, 24/08/2017,REG4005659,-70.20,N,N/A,N,N/A,
Pendle Borough Council,Economic Development & Tourism,Supplies and Services,Miscellaneous : Other,4707,LANLEE SUPPLIES LIMITED,A0001672, 17/08/2017,REG0282063,7.60,N,N/A,N,N/A,
Pendle Borough Council,Economic Development & Tourism,Supplies and Services,Miscellaneous : Other,4707,LANLEE SUPPLIES LIMITED,A0001672, 31/08/2017,REG0282498,9.41,N,N/A,N,N/A,
Pendle Borough Council,Economic Development & Tourism,Supplies and Services,Miscellaneous : Other,4707,LANLEE SUPPLIES LIMITED,A0001672, 17/08/2017,REG0282064,131.86,N,N/A,N,N/A,
Pendle Borough Council,Parks & Recreation Services,Supplies and Services,Expenditure : Materials,0002,LBS WORLDWIDE LIMITED,A0001673, 24/08/2017,PCO0282379,14.92,N,N/A,N,N/A,
Pendle Borough Council,Parks & Recreation Services,Supplies and Services,Expenditure : Materials,0002,LBS WORLDWIDE LIMITED,A0001673, 24/08/2017,PCO0282379,20.82,N,N/A,N,N/A,
Pendle Borough Council,Economic Development & Tourism,Supplies and Services,Miscellaneous : Other,4707,LBS WORLDWIDE LIMITED,A0001673, 17/08/2017,REG0282069,13.30,N,N/A,N,N/A,
Pendle Borough Council,Parks & Recreation Services,Premises Related Expense,Bldgs : R & M : Day To Day,2001,LED ELECTRICAL LIMITED,A0001682, 17/08/2017,PCO0282206,2.61,N,N/A,N,N/A,
Pendle Borough Council,Parks & Recreation Services,Premises Related Expense,Bldgs : R & M : Day To Day,2001,LED ELECTRICAL LIMITED,A0001682, 17/08/2017,PCO0282206,9.69,N,N/A,N,N/A,
Pendle Borough Council,Parks & Recreation Services,Premises Related Expense,Bldgs : R & M : Day To Day,2001,LED ELECTRICAL LIMITED,A0001682, 17/08/2017,PCO0282202,9.79,N,N/A,N,N/A,
Pendle Borough Council,Parks & Recreation Services,Premises Related Expense,Bldgs : R & M : Day To Day,2001,LED ELECTRICAL LIMITED,A0001682, 17/08/2017,PCO0282202,12.92,N,N/A,N,N/A,
Pendle Borough Council,Human Resources,Transport Related Expense,Car Allows : Offs : Lease Exps,3806,LEX AUTOLEASE LIMITED,A0066530, 03/08/2017,PER0282004,169.22,N,N/A,N,N/A,
Pendle Borough Council,Human Resources,Transport Related Expense,Car Allows : Offs : Lease Exps,3806,LEX AUTOLEASE LIMITED,A0066530, 03/08/2017,PER0282004,175.98,N,N/A,N,N/A,
Pendle Borough Council,Human Resources,Transport Related Expense,Car Allows : Offs : Lease Exps,3806,LEX AUTOLEASE LIMITED,A0066530, 24/08/2017,PER0282494,246.28,N,N/A,N,N/A,
Pendle Borough Council,Human Resources,Transport Related Expense,Car Allows : Offs : Lease Exps,3806,LEX AUTOLEASE LIMITED,A0066530, 24/08/2017,PER0282494,273.62,N,N/A,N,N/A,
Pendle Borough Council,Engineering & Special Projects,Supplies and Services,Seminars etc All Costs,4601,LEXIS NEXIS,A0002634, 24/08/2017,HED0282355,406.00,N,N/A,N,N/A,
Pendle Borough Council,Financial Services,Premises Related Expense,Rents,2301,LIBERATA UK LTD,A0051618, 10/08/2017,AAS0282157,1748.48,N,N/A,N,N/A,
Pendle Borough Council,Operational Services,Supplies and Services,Miscellaneous : Other,4707,LIBERATA UK LTD,A0051618, 17/08/2017,OPS0282273,2525.25,N,N/A,N,N/A,
Pendle Borough Council,Financial Services,Agency Costs,Liberata,5301,LIBERATA UK LTD,A0051618, 24/08/2017,AAS0282490,1471.56,N,N/A,N,N/A,
Pendle Borough Council,Financial Services,Agency Costs,Liberata,5303,LIBERATA UK LTD,A0051618, 10/08/2017,AAS0282156,7553.61,N,N/A,N,N/A,
Pendle Borough Council,Financial Services,Agency Costs,Liberata,5303,LIBERATA UK LTD,A0051618, 10/08/2017,AAS0282156,34499.27,N,N/A,N,N/A,
Pendle Borough Council,Financial Services,Agency Costs,Liberata,5303,LIBERATA UK LTD,A0051618, 10/08/2017,AAS0282156,24031.42,N,N/A,N,N/A,
Pendle Borough Council,Financial Services,Agency Costs,Liberata,5303,LIBERATA UK LTD,A0051618, 10/08/2017,AAS0282156,84683.22,N,N/A,N,N/A,
Pendle Borough Council,Financial Services,Agency Costs,Liberata,5303,LIBERATA UK LTD,A0051618, 10/08/2017,AAS0282156,49609.51,N,N/A,N,N/A,
Pendle Borough Council,Financial Services,Agency Costs,Liberata,5303,LIBERATA UK LTD,A0051618, 10/08/2017,AAS0282156,80878.09,N,N/A,N,N/A,
Pendle Borough Council,Financial Services,Agency Costs,Liberata,5303,LIBERATA UK LTD,A0051618, 10/08/2017,AAS0282156,117055.03,N,N/A,N,N/A,
Pendle Borough Council,Engineering & Special Projects,Premises Related Expense,Grounds : R & M : Day to Day : Routine,2101,LITE,A0040032, 24/08/2017,HED0282292,800.00,N,N/A,N,N/A,
Pendle Borough Council,Financial Services,Support Services,Bank Charges,7201,LLOYDS BANKING GROUP,A0072462, 25/08/2017,AAS0282602,45.00,N,N/A,N,N/A,
Pendle Borough Council,Financial Services,Support Services,Bank Charges,7201,LLOYDS BANKING GROUP,A0072462, 18/08/2017,AAS0282600,633.94,N,N/A,N,N/A,
Pendle Borough Council,Economic Development & Tourism,Premises Related Expense,Grounds : R & M : Day to Day : Routine,2101,LOOP PUBLISHING LTD,A0047429, 24/08/2017,REG0282448,150.00,N,N/A,N,N/A,
Pendle Borough Council,Parks & Recreation Services,Premises Related Expense,Grounds : R & M : Day to Day : Routine,2101,LOOP PUBLISHING LTD,A0047429, 24/08/2017,PCO0282391,325.00,N,N/A,N,N/A,
Pendle Borough Council,Economic Development & Tourism,Supplies and Services,Publicity & advertisement,4704,LOOP PUBLISHING LTD,A0047429, 24/08/2017,REG0282448,150.00,N,N/A,N,N/A,
Pendle Borough Council,Property Services,Supplies and Services,Publicity & advertisement,4704,LOOP PUBLISHING LTD,A0047429, 03/08/2017,EST0281996,62.50,N,N/A,N,N/A,
Pendle Borough Council,Property Services,Supplies and Services,Publicity & advertisement,4704,LOOP PUBLISHING LTD,A0047429, 03/08/2017,EST0281996,62.50,N,N/A,N,N/A,
Pendle Borough Council,Parks & Recreation Services,Supplies and Services,Expenditure : Materials,0002,M C & M A STEWART HAULAGE,A0068863, 24/08/2017,PCO0282368,452.03,N,N/A,N,N/A,
Pendle Borough Council,Parks & Recreation Services,Supplies and Services,Expenditure : Materials,0002,M C & M A STEWART HAULAGE,A0068863, 24/08/2017,PCO0282405,452.03,N,N/A,N,N/A,
Pendle Borough Council,Parks & Recreation Services,Supplies and Services,Expenditure : Materials,0002,M C & M A STEWART HAULAGE,A0068863, 24/08/2017,PCO0282368,587.05,N,N/A,N,N/A,
Pendle Borough Council,Parks & Recreation Services,Premises Related Expense,Bldgs : R & M : Day To Day,2001,M J SUPPLIES,A0090466, 24/08/2017,PCO0282378,35.94,N,N/A,N,N/A,
Pendle Borough Council,Parks & Recreation Services,Transport Related Expense,Tprt : Repairs : General,3105,M J SUPPLIES,A0090466, 24/08/2017,PCO0282378,24.50,N,N/A,N,N/A,
Pendle Borough Council,Engineering & Special Projects,Premises Related Expense,Grounds : R & M : Day to Day : Routine,2101,MARCHBRIDGE BUILDERS LIMITED,A0087284, 24/08/2017,HED0282353,196.16,N,N/A,N,N/A,
Pendle Borough Council,Engineering & Special Projects,Premises Related Expense,Grounds : R & M : Day to Day : Routine,2101,MARCHBRIDGE BUILDERS LIMITED,A0087284, 31/08/2017,HED0282514,147.00,N,N/A,N,N/A,
Pendle Borough Council,Engineering & Special Projects,Premises Related Expense,Grounds : R & M : Day to Day : Routine,2101,MARCHBRIDGE BUILDERS LIMITED,A0087284, 31/08/2017,HED0282517,1031.55,N,N/A,N,N/A,
Pendle Borough Council,Engineering & Special Projects,Premises Related Expense,Grounds : R & M : Day to Day : Routine,2101,MARCHBRIDGE BUILDERS LIMITED,A0087284, 24/08/2017,HED0282445,518.53,N,N/A,N,N/A,
Pendle Borough Council,Engineering & Special Projects,Premises Related Expense,Grounds : R & M : Day to Day : Routine,2101,MARCHBRIDGE BUILDERS LIMITED,A0087284, 31/08/2017,HED0282518,3935.53,N,N/A,N,N/A,
Pendle Borough Council,Engineering & Special Projects,Capital Costs,Capital : Payments,CD14,MARCHBRIDGE BUILDERS LIMITED,A0087284, 31/08/2017,HED0282523,2000.00,N,N/A,N,N/A,
Pendle Borough Council,Planning & Building Control,Supplies and Services,Other Expenses,4705,MARTIN COLLINS JOINERY & GLAZING,A0000623, 17/08/2017,PBC0282193,75.00,N,N/A,N,N/A,
Pendle Borough Council,Engineering & Special Projects,Supplies and Services,Newspapers & Periodicals,4305,MARTINS,A0074550, 03/08/2017,HED0281955,20.25,N,N/A,N,N/A,
Pendle Borough Council,Property Services,Capital Costs,Capital : Payments,CD14,MAXIGIENE ENVIRONMENTAL SERVICES LTD,A0060911, 17/08/2017,EST0282250,105.00,N,N/A,N,N/A,
Pendle Borough Council,Property Services,Capital Costs,Capital : Payments,CD14,MAXIGIENE ENVIRONMENTAL SERVICES LTD,A0060911, 17/08/2017,EST0282249,2452.50,N,N/A,N,N/A,
Pendle Borough Council,Democratic & Legal Services,Supplies and Services,Seminars etc All Costs,4601,MBL SEMINARS LTD,A0059765, 31/08/2017,DAL0282512,60.00,N,N/A,N,N/A,
Pendle Borough Council,Democratic & Legal Services,Supplies and Services,Seminars etc All Costs,4601,MBL SEMINARS LTD,A0059765, 10/08/2017,DAL0282007,100.00,N,N/A,N,N/A,
Pendle Borough Council,Democratic & Legal Services,Supplies and Services,Printing & Stationery,4301,MEDIA VILLAGE,A0091163, 10/08/2017,DAL0282148,152.00,N,N/A,N,N/A,
Pendle Borough Council,Engineering & Special Projects,,Other Income : Non-VATable,9303,REDACTED - PERSONAL DATA,A0091264, 10/08/2017,HED0282166,190.80,N,N/A,N,N/A,
Pendle Borough Council,Environmental Health Services,Supplies and Services,Consultants Fees,4401,REDACTED - PERSONAL DATA,A0091266, 10/08/2017,ENV0282178,1015.00,N,N/A,N,N/A,
Pendle Borough Council,Chief Executives Policy Unit,Supplies and Services,Consultants Fees,4401,REDACTED - PERSONAL DATA,A0090438, 10/08/2017,COR0282092,3240.00,N,N/A,N,N/A,
Pendle Borough Council,Engineering & Special Projects,Capital Costs,Capital : Payments,CD14,MONK OF COLNE LTD,A0001828, 31/08/2017,HED0282520,180.00,N,N/A,N,N/A,
Pendle Borough Council,Engineering & Special Projects,,Paid in the Year,PD03,MONK OF COLNE LTD,A0001828, 17/08/2017,HED0282247,11505.49,N,N/A,N,N/A,
Pendle Borough Council,Democratic & Legal Services,Supplies and Services,Meeting Expenses,4610,MOUNT ZION BAPTIST CHURCH,A0045270, 10/08/2017,DAL0282106,30.00,N,N/A,N,N/A,
Pendle Borough Council,Democratic & Legal Services,Supplies and Services,Meeting Expenses,4610,MOUNT ZION BAPTIST CHURCH,A0045270, 17/08/2017,DAL0282221,30.00,N,N/A,N,N/A,
Pendle Borough Council,Planning & Building Control,,Fees Income : VATable,9202,REDACTED - PERSONAL DATA,A0091258, 03/08/2017,PBC0281986,62.50,N,N/A,N,N/A,
Pendle Borough Council,Financial Services,Indirect Employee Expenses,Emp : Medical Expenses,1236,REDACTED - PERSONAL DATA,A0069779, 04/08/2017,AAS0282198,100.00,N,N/A,N,N/A,
Pendle Borough Council,Engineering & Special Projects,,Other Income : Non-VATable,9303,REDACTED - PERSONAL DATA,A0047778, 03/08/2017,HED0281979,151.20,N,N/A,N,N/A,
Pendle Borough Council,Operational Services,,Fees Income : Non-VATable,9302,REDACTED - PERSONAL DATA,A0091247, 03/08/2017,OPS0281965,30.00,N,N/A,N,N/A,
Pendle Borough Council,Parks & Recreation Services,Indirect Employee Expenses,Training,1211,MYERSCOUGH COLLEGE,A0053390, 24/08/2017,PCO0282370,518.00,N,N/A,N,N/A,
Pendle Borough Council,Engineering & Special Projects,,Other Income : Non-VATable,9303,REDACTED - PERSONAL DATA,A0091263, 17/08/2017,HED0282167,291.45,N,N/A,N,N/A,
Pendle Borough Council,Parks & Recreation Services,Premises Related Expense,Grounds : R & M : Day to Day : Routine,2101,NATIONAL PLAYING FIELDS ASSOCIATION,A0057791, 31/08/2017,PCO0282535,79.17,Y,306070,N,N/A,
Pendle Borough Council,Economic Development & Tourism,Supplies and Services,EFM Materials,4004,NB COLOUR PRINT LTD,A0057578, 10/08/2017,REG0282075,522.00,N,N/A,N,N/A,
Pendle Borough Council,Economic Development & Tourism,Supplies and Services,Printing & Stationery,4301,NB COLOUR PRINT LTD,A0057578, 10/08/2017,REG0282089,183.00,N,N/A,N,N/A,
Pendle Borough Council,Engineering & Special Projects,Premises Related Expense,Grounds : R & M : Day to Day : Routine,2101,NEIL WILLSON,A0053659, 24/08/2017,HED0282285,230.00,N,N/A,N,N/A,
Pendle Borough Council,Housing Regeneration Services,Transfer Payments,Accommodation ,6103,NEW CARE SERVICES LIMITED,A0091186, 24/08/2017,HMR0282341,159.96,N,N/A,N,N/A,
Pendle Borough Council,Housing Regeneration Services,Transfer Payments,Accommodation ,6103,NEW CARE SERVICES LIMITED,A0091186, 24/08/2017,HMR0282342,180.00,N,N/A,N,N/A,
Pendle Borough Council,Housing Regeneration Services,Transfer Payments,Accommodation ,6103,NEW CARE SERVICES LIMITED,A0091186, 24/08/2017,HMR0282343,210.00,N,N/A,N,N/A,
Pendle Borough Council,Housing Regeneration Services,Transfer Payments,Accommodation ,6103,NEW CARE SERVICES LIMITED,A0091186, 24/08/2017,HMR0282344,279.93,N,N/A,N,N/A,
Pendle Borough Council,Housing Regeneration Services,Transfer Payments,Accommodation ,6103,NEW CARE SERVICES LIMITED,A0091186, 24/08/2017,HMR0282345,279.93,N,N/A,N,N/A,
Pendle Borough Council,Economic Development & Tourism,Supplies and Services,EFM Materials,4004,NORTHSTAR CREATIVE DESIGN & ADVERTISING LLP,A0025031, 10/08/2017,REG0282073,34.95,N,N/A,N,N/A,
Pendle Borough Council,Housing Regeneration Services,Capital Costs,Capital : Payments,CD14,NPOWER,A0054545, 17/08/2017,HMR0282213,16.31,N,N/A,N,N/A,
Pendle Borough Council,Housing Regeneration Services,Capital Costs,Capital : Payments,CD14,NPOWER,A0054545, 17/08/2017,HMR0282219,33.45,N,N/A,N,N/A,
Pendle Borough Council,Housing Regeneration Services,Capital Costs,Capital : Payments,CD14,NPOWER,A0054545, 31/08/2017,HMR0282507,34.74,N,N/A,N,N/A,
Pendle Borough Council,Housing Regeneration Services,Capital Costs,Capital : Payments,CD14,NPOWER,A0054545, 10/08/2017,HMR0282095,69.10,N,N/A,N,N/A,
Pendle Borough Council,Housing Regeneration Services,Capital Costs,Capital : Payments,CD14,NPOWER,A0054545, 10/08/2017,HMR0282097,92.80,N,N/A,N,N/A,
Pendle Borough Council,Engineering & Special Projects,Agency Costs,Lancashire C C,5102,NSL LIMITED,A0059256, 10/08/2017,HED0282061,1563.15,N,N/A,N,N/A,
Pendle Borough Council,Democratic & Legal Services,Supplies and Services,Mobile Phones,4508,O2 (UK) LIMITED,A0053660, 24/08/2017,DAL0282286,10.00,N,N/A,N,N/A,
Pendle Borough Council,Democratic & Legal Services,Supplies and Services,Mobile Phones,4508,O2 (UK) LIMITED,A0053660, 24/08/2017,DAL0282286,18.04,N,N/A,N,N/A,
Pendle Borough Council,Democratic & Legal Services,Supplies and Services,Mobile Phones,4508,O2 (UK) LIMITED,A0053660, 24/08/2017,DAL0282286,10.81,N,N/A,N,N/A,
Pendle Borough Council,Democratic & Legal Services,Supplies and Services,Mobile Phones,4508,O2 (UK) LIMITED,A0053660, 24/08/2017,DAL0282286,13.50,N,N/A,N,N/A,
Pendle Borough Council,Democratic & Legal Services,Supplies and Services,Mobile Phones,4508,O2 (UK) LIMITED,A0053660, 24/08/2017,DAL0282286,9.07,N,N/A,N,N/A,
Pendle Borough Council,Democratic & Legal Services,Supplies and Services,Mobile Phones,4508,O2 (UK) LIMITED,A0053660, 24/08/2017,DAL0282286,11.50,N,N/A,N,N/A,
Pendle Borough Council,Democratic & Legal Services,Supplies and Services,Mobile Phones,4508,O2 (UK) LIMITED,A0053660, 24/08/2017,DAL0282286,11.50,N,N/A,N,N/A,
Pendle Borough Council,Democratic & Legal Services,Supplies and Services,Mobile Phones,4508,O2 (UK) LIMITED,A0053660, 24/08/2017,DAL0282286,13.53,N,N/A,N,N/A,
Pendle Borough Council,Democratic & Legal Services,Supplies and Services,Mobile Phones,4508,O2 (UK) LIMITED,A0053660, 24/08/2017,DAL0282286,9.71,N,N/A,N,N/A,
Pendle Borough Council,Democratic & Legal Services,Supplies and Services,Mobile Phones,4508,O2 (UK) LIMITED,A0053660, 24/08/2017,DAL0282286,9.00,N,N/A,N,N/A,
Pendle Borough Council,Democratic & Legal Services,Supplies and Services,Mobile Phones,4508,O2 (UK) LIMITED,A0053660, 24/08/2017,DAL0282286,9.00,N,N/A,N,N/A,
Pendle Borough Council,Democratic & Legal Services,Supplies and Services,Mobile Phones,4508,O2 (UK) LIMITED,A0053660, 24/08/2017,DAL0282286,9.00,N,N/A,N,N/A,
Pendle Borough Council,Housing Regeneration Services,Capital Costs,Ren Grant : 1996 Act,CH22,OCEAN BATHROOMS TILES & HEATING LTD,A0075367, 03/08/2017,HMR0281982,5527.50,N,N/A,N,N/A,
Pendle Borough Council,Housing Regeneration Services,Capital Costs,Ren Grant : 1996 Act,CH22,OCEAN BATHROOMS TILES & HEATING LTD,A0075367, 03/08/2017,HMR0281983,7852.50,N,N/A,N,N/A,
Pendle Borough Council,Operational Services,Supplies and Services,Sub-Contractors,4007,OCS GROUP UK LIMITED,A0072816, 24/08/2017,OPS0282376,279.78,N,N/A,N,N/A,
Pendle Borough Council,Operational Services,Supplies and Services,Sub-Contractors,4007,OCS GROUP UK LIMITED,A0072816, 24/08/2017,OPS0282371,2.00,N,N/A,N,N/A,
Pendle Borough Council,Operational Services,Supplies and Services,Sub-Contractors,4007,OCS GROUP UK LIMITED,A0072816, 24/08/2017,OPS0282376,2.00,N,N/A,N,N/A,
Pendle Borough Council,Operational Services,Supplies and Services,Sub-Contractors,4007,OCS GROUP UK LIMITED,A0072816, 24/08/2017,OPS0282366,4.00,N,N/A,N,N/A,
Pendle Borough Council,Operational Services,Supplies and Services,Sub-Contractors,4007,OCS GROUP UK LIMITED,A0072816, 24/08/2017,OPS0282369,10.00,N,N/A,N,N/A,
Pendle Borough Council,Operational Services,Supplies and Services,Sub-Contractors,4007,OCS GROUP UK LIMITED,A0072816, 24/08/2017,OPS0282363,11.99,N,N/A,N,N/A,
Pendle Borough Council,Parks & Recreation Services,Transport Related Expense,Tprt : Repairs : General,3105,OPTION HYGIENE LIMITED,A0002063, 24/08/2017,PCO0282385,60.42,N,N/A,N,N/A,
Pendle Borough Council,Operational Services,,Stock : Purchases,PJ01,OPTION HYGIENE LIMITED,A0002063, 03/08/2017,OPS0281952,123.60,N,N/A,N,N/A,
Pendle Borough Council,Operational Services,,Stock : Purchases,PJ01,OPTION HYGIENE LIMITED,A0002063, 10/08/2017,OPS0282114,2079.00,N,N/A,N,N/A,
Pendle Borough Council,Operational Services,Supplies and Services,Sub-Contractors,4007,ORCHARD RECYCLING SERVICE,A0015803, 03/08/2017,OPS0281987,1486.80,N,N/A,N,N/A,
Pendle Borough Council,Operational Services,Supplies and Services,Sub-Contractors,4007,ORCHARD RECYCLING SERVICE,A0015803, 31/08/2017,OPS0282476,1612.80,N,N/A,N,N/A,
Pendle Borough Council,Operational Services,Supplies and Services,Sub-Contractors,4007,ORCHARD RECYCLING SERVICE,A0015803, 10/08/2017,OPS0282112,1619.10,N,N/A,N,N/A,
Pendle Borough Council,Operational Services,Supplies and Services,Sub-Contractors,4007,ORCHARD RECYCLING SERVICE,A0015803, 17/08/2017,OPS0282271,1682.10,N,N/A,N,N/A,
Pendle Borough Council,Operational Services,Supplies and Services,Sub-Contractors,4007,ORCHARD RECYCLING SERVICE,A0015803, 31/08/2017,OPS0282532,1808.10,N,N/A,N,N/A,
Pendle Borough Council,Operational Services,Supplies and Services,Miscellaneous : Other,4707,ORCHARD RECYCLING SERVICE,A0015803, 31/08/2017,OPS0282483,69.50,N,N/A,N,N/A,
Pendle Borough Council,Operational Services,Supplies and Services,Miscellaneous : Other,4707,ORCHARD RECYCLING SERVICE,A0015803, 17/08/2017,OPS0282280,88.25,N,N/A,N,N/A,
Pendle Borough Council,Operational Services,Supplies and Services,Miscellaneous : Other,4707,ORCHARD RECYCLING SERVICE,A0015803, 10/08/2017,OPS0282124,266.25,N,N/A,N,N/A,
Pendle Borough Council,Operational Services,Agency Costs,Fast Action Response,5009,ORCHARD RECYCLING SERVICE,A0015803, 31/08/2017,OPS0282483,69.50,N,N/A,N,N/A,
Pendle Borough Council,Operational Services,Agency Costs,Fast Action Response,5009,ORCHARD RECYCLING SERVICE,A0015803, 17/08/2017,OPS0282280,88.25,N,N/A,N,N/A,
Pendle Borough Council,Operational Services,Agency Costs,Fast Action Response,5009,ORCHARD RECYCLING SERVICE,A0015803, 10/08/2017,OPS0282124,266.25,N,N/A,N,N/A,
Pendle Borough Council,Operational Services,Supplies and Services,Other Expenses,4705,P LEE WASTE OIL LIMTED,A0058412, 10/08/2017,OPS0282115,820.00,N,N/A,N,N/A,
Pendle Borough Council,Engineering & Special Projects,Supplies and Services,LCC Levy (Admins Costs),4419,PATROL,A0067663, 03/08/2017,HED0281924,22.80,N,N/A,N,N/A,
Pendle Borough Council,Financial Services,Supplies and Services,Subscriptions & Donations,4706,PENDLE CITIZENS ADVICE BUREAU,A0010260, 31/08/2017,AAS0282525,2940.00,N,N/A,N,N/A,
Pendle Borough Council,Democratic & Legal Services,Supplies and Services,Mayoral Expenses,4614,PENDLE LEISURE LIMITED,A0012961, 17/08/2017,DAL0282281,287.50,N,N/A,N,N/A,
Pendle Borough Council,Housing Regeneration Services,Supplies and Services,Other Expenses,4705,PENDLE LEISURE LIMITED,A0012961, 24/08/2017,HMR0282348,973.33,N,N/A,N,N/A,
Pendle Borough Council,Democratic & Legal Services,Supplies and Services,Grants/Contributions,4739,PENDLE LEISURE LIMITED,A0012961, 31/08/2017,DAL0282499,42.67,N,N/A,N,N/A,
Pendle Borough Council,Parks & Recreation Services,Agency Staff,Emp : Basic Wages,1001,PENDLE PERSONNEL LTD,A0002198, 24/08/2017,PCO0282410,209.97,N,N/A,N,N/A,
Pendle Borough Council,Parks & Recreation Services,Agency Staff,Emp : Basic Wages,1001,PENDLE PERSONNEL LTD,A0002198, 24/08/2017,PCO0282411,669.65,N,N/A,N,N/A,
Pendle Borough Council,Parks & Recreation Services,Agency Staff,Emp : Basic Wages,1001,PENDLE PERSONNEL LTD,A0002198, 10/08/2017,PCO0282051,732.08,N,N/A,N,N/A,
Pendle Borough Council,Parks & Recreation Services,Agency Staff,Emp : Agency Wages,1004,PENDLE PERSONNEL LTD,A0002198, 24/08/2017,PCO0282410,3098.55,N,N/A,N,N/A,
Pendle Borough Council,Parks & Recreation Services,Agency Staff,Emp : Agency Wages,1004,PENDLE PERSONNEL LTD,A0002198, 24/08/2017,PCO0282411,3212.06,N,N/A,N,N/A,
Pendle Borough Council,Parks & Recreation Services,Agency Staff,Emp : Agency Wages,1004,PENDLE PERSONNEL LTD,A0002198, 10/08/2017,PCO0282051,3490.13,N,N/A,N,N/A,
Pendle Borough Council,Operational Services,Agency Staff,Emp : Agency Wages,1004,PENDLE PERSONNEL LTD,A0002198, 24/08/2017,OPS0282431,358.46,N,N/A,N,N/A,
Pendle Borough Council,Operational Services,Agency Staff,Emp : Agency Wages,1004,PENDLE PERSONNEL LTD,A0002198, 03/08/2017,OPS0281959,384.43,N,N/A,N,N/A,
Pendle Borough Council,Operational Services,Agency Staff,Emp : Agency Wages,1004,PENDLE PERSONNEL LTD,A0002198, 31/08/2017,OPS0282481,384.43,N,N/A,N,N/A,
Pendle Borough Council,Operational Services,Agency Staff,Emp : Agency Wages,1004,PENDLE PERSONNEL LTD,A0002198, 31/08/2017,OPS0282482,384.43,N,N/A,N,N/A,
Pendle Borough Council,Parks & Recreation Services,Agency Staff,Emp : Salaries & Wages,1020,PENDLE PERSONNEL LTD,A0002198, 17/08/2017,PCO0282241,80.00,N,N/A,N,N/A,
Pendle Borough Council,Economic Development & Tourism,Supplies and Services,Other Expenses,4705,PENNINE ECOLOGICAL (BOLTON),A0090258, 03/08/2017,REG0281916,795.00,N,N/A,N,N/A,
Pendle Borough Council,Property Services,Premises Related Expense,Bldgs : R & M : Day To Day,2001,PENNINE FIRE & SAFETY LTD,A0040931, 24/08/2017,EST0282459,154.45,N,N/A,N,N/A,
Pendle Borough Council,Parks & Recreation Services,Transport Related Expense,Tprt : Repairs : General,3105,PERRYS MOTOR SALES LTD,A0058156, 03/08/2017,PCO0281951,2.26,N,N/A,N,N/A,
Pendle Borough Council,Parks & Recreation Services,Transport Related Expense,Tprt : Repairs : General,3105,PERRYS MOTOR SALES LTD,A0058156, 03/08/2017,PCO0281951,36.80,N,N/A,N,N/A,
Pendle Borough Council,Democratic & Legal Services,Indirect Employee Expenses,Staff Refreshments,1261,PHILIP SANDERSON,A0006611, 10/08/2017,DAL0282144,13.27,N,N/A,N,N/A,
Pendle Borough Council,Democratic & Legal Services,Indirect Employee Expenses,Staff Refreshments,1261,PHILIP SANDERSON,A0006611, 10/08/2017,DAL0282144,10.00,N,N/A,N,N/A,
Pendle Borough Council,Democratic & Legal Services,Supplies and Services,Hospitality,4611,PHILIP SANDERSON,A0006611, 10/08/2017,DAL0282144,19.99,N,N/A,N,N/A,
Pendle Borough Council,Financial Services,Supplies and Services,Computer Charges,4509,PLUSNET TECHNOLOGIES LIMITED,A0045646, 02/08/2017,AAS0282595,12.49,N,N/A,N,N/A,
Pendle Borough Council,Engineering & Special Projects,Premises Related Expense,Bldgs : R & M : Day To Day,2001,PRIMESIGHT LIMITED,A0042659, 24/08/2017,HED0282489,-600.00,N,N/A,N,N/A,
Pendle Borough Council,Engineering & Special Projects,Premises Related Expense,Bldgs : R & M : Day To Day,2001,PRIMESIGHT LIMITED,A0042659, 24/08/2017,HED0282489,600.00,N,N/A,N,N/A,
Pendle Borough Council,Operational Services,Transport Related Expense,Tprt : Repairs : General,3105,PROBRUSH T/A NORTHERN MUNICIPAL SPARES LTD,A0068263, 17/08/2017,OPS0282278,68.99,N,N/A,N,N/A,
Pendle Borough Council,Operational Services,Transport Related Expense,Tprt : Repairs : General,3105,PROBRUSH T/A NORTHERN MUNICIPAL SPARES LTD,A0068263, 17/08/2017,OPS0282278,68.99,N,N/A,N,N/A,
Pendle Borough Council,Operational Services,Transport Related Expense,Tprt : Repairs : General,3105,PROBRUSH T/A NORTHERN MUNICIPAL SPARES LTD,A0068263, 17/08/2017,OPS0282278,68.99,N,N/A,N,N/A,
Pendle Borough Council,Operational Services,Transport Related Expense,Tprt : Repairs : General,3105,PROBRUSH T/A NORTHERN MUNICIPAL SPARES LTD,A0068263, 17/08/2017,OPS0282278,68.99,N,N/A,N,N/A,
Pendle Borough Council,Operational Services,Transport Related Expense,Tprt : Repairs : General,3105,PROBRUSH T/A NORTHERN MUNICIPAL SPARES LTD,A0068263, 17/08/2017,OPS0282278,68.99,N,N/A,N,N/A,
Pendle Borough Council,Operational Services,Transport Related Expense,Tprt : Repairs : General,3105,PROBRUSH T/A NORTHERN MUNICIPAL SPARES LTD,A0068263, 17/08/2017,OPS0282278,68.99,N,N/A,N,N/A,
Pendle Borough Council,Property Services,Premises Related Expense,Bldgs : R & M : Day To Day,2001,PROTEC FIRE DETECTION PLC,A0042311, 24/08/2017,EST0282453,301.40,N,N/A,N,N/A,
Pendle Borough Council,Revenues Services,Supplies and Services,Consultants Fees,4401,PS&P LTD,A0090720, 03/08/2017,TRE0282002,2.48,N,N/A,N,N/A,
Pendle Borough Council,Revenues Services,Supplies and Services,Consultants Fees,4401,PS&P LTD,A0090720, 17/08/2017,TRE0282251,5.48,N,N/A,N,N/A,
Pendle Borough Council,Economic Development & Tourism,Supplies and Services,Other Expenses,4705,PURCELL MILLER TRITON LLP,A0082362, 10/08/2017,REG0282090,781.50,N,N/A,N,N/A,
Pendle Borough Council,Economic Development & Tourism,Supplies and Services,Other Expenses,4705,PURCELL MILLER TRITON LLP,A0082362, 03/08/2017,REG0281914,1798.00,N,N/A,N,N/A,
Pendle Borough Council,Financial Services,Supplies and Services,Sub-Contractors,4007,QHS SOLUTIONS LIMITED,A0071912, 01/08/2017,AAS0282740,666.67,N,N/A,N,N/A,
Pendle Borough Council,Parks & Recreation Services,Transport Related Expense,Hire of Plant,3502,R J CLOUGH & SON LTD,A0000567, 24/08/2017,PCO0282381,21.28,N,N/A,N,N/A,
Pendle Borough Council,Engineering & Special Projects,,Other Income : Non-VATable,9303,REDACTED - PERSONAL DATA,A0091265, 10/08/2017,HED0282164,174.36,N,N/A,N,N/A,
Pendle Borough Council,Operational Services,Agency Staff,Emp : Agency Wages,1004,RAPID RECRUIT LIMITED,A0090080, 03/08/2017,OPS0281960,1945.27,N,N/A,N,N/A,
Pendle Borough Council,Operational Services,Agency Staff,Emp : Agency Wages,1004,RAPID RECRUIT LIMITED,A0090080, 17/08/2017,OPS0282279,2614.49,N,N/A,N,N/A,
Pendle Borough Council,Operational Services,Agency Staff,Emp : Agency Wages,1004,RAPID RECRUIT LIMITED,A0090080, 24/08/2017,OPS0282430,2823.08,N,N/A,N,N/A,
Pendle Borough Council,Operational Services,Agency Staff,Emp : Agency Wages,1004,RAPID RECRUIT LIMITED,A0090080, 31/08/2017,OPS0282480,3049.26,N,N/A,N,N/A,
Pendle Borough Council,Operational Services,Agency Staff,Emp : Agency Wages,1004,RAPID RECRUIT LIMITED,A0090080, 17/08/2017,OPS0282279,2760.72,N,N/A,N,N/A,
Pendle Borough Council,Operational Services,Agency Staff,Emp : Agency Wages,1004,RAPID RECRUIT LIMITED,A0090080, 31/08/2017,OPS0282480,2821.23,N,N/A,N,N/A,
Pendle Borough Council,Operational Services,Agency Staff,Emp : Agency Wages,1004,RAPID RECRUIT LIMITED,A0090080, 24/08/2017,OPS0282430,3007.76,N,N/A,N,N/A,
Pendle Borough Council,Operational Services,Agency Staff,Emp : Agency Wages,1004,RAPID RECRUIT LIMITED,A0090080, 03/08/2017,OPS0281960,4093.54,N,N/A,N,N/A,
Pendle Borough Council,Operational Services,Agency Staff,Emp : Agency Wages,1004,RAPID RECRUIT LIMITED,A0090080, 24/08/2017,OPS0282430,919.39,N,N/A,N,N/A,
Pendle Borough Council,Operational Services,Agency Staff,Emp : Agency Wages,1004,RAPID RECRUIT LIMITED,A0090080, 17/08/2017,OPS0282279,982.32,N,N/A,N,N/A,
Pendle Borough Council,Operational Services,Agency Staff,Emp : Agency Wages,1004,RAPID RECRUIT LIMITED,A0090080, 31/08/2017,OPS0282480,1247.42,N,N/A,N,N/A,
Pendle Borough Council,Operational Services,Agency Staff,Emp : Agency Wages,1004,RAPID RECRUIT LIMITED,A0090080, 03/08/2017,OPS0281960,1785.49,N,N/A,N,N/A,
Pendle Borough Council,Housing Regeneration Services,Capital Costs,Capital : Payments,CD14,RAPID SECURE LIMITED,A0091136, 31/08/2017,HMR0282506,225.00,N,N/A,N,N/A,
Pendle Borough Council,Housing Regeneration Services,Premises Related Expense,Premises Cleaning,2601,ROACH CLEANING & MAINTENANCE SERVICES LTD,A0051553, 10/08/2017,HMR0282150,40.00,N,N/A,N,N/A,
Pendle Borough Council,Parks & Recreation Services,Premises Related Expense,Grounds : R & M : Day to Day : Routine,2101,ROBERTSON MEMORIALS,A0002590, 10/08/2017,PCO0282040,221.00,N,N/A,N,N/A,
Pendle Borough Council,Parks & Recreation Services,Premises Related Expense,Grounds : R & M : Day to Day : Routine,2101,ROBERTSON MEMORIALS,A0002590, 10/08/2017,PCO0282039,229.50,N,N/A,N,N/A,
Pendle Borough Council,Environmental Health Services,Premises Related Expense,Bldgs : R & M : Abnormal,2002,RODNEY CAPSTICK BUILDING MAINTENANCE,A0085112, 17/08/2017,ENV0282255,58.00,N,N/A,N,N/A,
Pendle Borough Council,Environmental Health Services,Premises Related Expense,Bldgs : R & M : Abnormal,2002,RODNEY CAPSTICK BUILDING MAINTENANCE,A0085112, 10/08/2017,ENV0282168,742.00,N,N/A,N,N/A,
Pendle Borough Council,Environmental Health Services,Premises Related Expense,Bldgs : R & M : Abnormal,2002,RODNEY CAPSTICK BUILDING MAINTENANCE,A0085112, 10/08/2017,ENV0282161,58.00,N,N/A,N,N/A,
Pendle Borough Council,Environmental Health Services,Premises Related Expense,Bldgs : R & M : Abnormal,2002,RODNEY CAPSTICK BUILDING MAINTENANCE,A0085112, 17/08/2017,ENV0282256,85.00,N,N/A,N,N/A,
Pendle Borough Council,Environmental Health Services,Supplies and Services,Consultants Fees,4401,RODNEY CAPSTICK BUILDING MAINTENANCE,A0085112, 10/08/2017,ENV0282163,58.00,N,N/A,N,N/A,
Pendle Borough Council,Parks & Recreation Services,Transport Related Expense,Tprt : Repairs : General,3105,ROSSENDALE VULCANISING (SALES LTD),A0051239, 24/08/2017,PCO0282375,110.00,N,N/A,N,N/A,
Pendle Borough Council,Parks & Recreation Services,Transport Related Expense,Tprt : Repairs : General,3105,ROSSENDALE VULCANISING (SALES LTD),A0051239, 24/08/2017,PCO0282375,59.00,N,N/A,N,N/A,
Pendle Borough Council,Parks & Recreation Services,Transport Related Expense,Tyres,3204,ROSSENDALE VULCANISING (SALES LTD),A0051239, 10/08/2017,PCO0282038,22.00,N,N/A,N,N/A,
Pendle Borough Council,Parks & Recreation Services,Transport Related Expense,Tyres,3204,ROSSENDALE VULCANISING (SALES LTD),A0051239, 24/08/2017,PCO0282373,338.00,N,N/A,N,N/A,
Pendle Borough Council,Parks & Recreation Services,Transport Related Expense,Tyres,3204,ROSSENDALE VULCANISING (SALES LTD),A0051239, 10/08/2017,PCO0282038,22.00,N,N/A,N,N/A,
Pendle Borough Council,Financial Services,Supplies and Services,Subscriptions & Donations,4706,ROUGHLEE PARISH COUNCIL,A0082370, 31/08/2017,AAS0282549,300.00,N,N/A,N,N/A,
Pendle Borough Council,Democratic & Legal Services,Supplies and Services,Postages,4501,ROYAL MAIL GROUP LIMITED,A0002281, 10/08/2017,DAL0282110,2.54,N,N/A,N,N/A,
Pendle Borough Council,Democratic & Legal Services,Supplies and Services,Postages,4501,ROYAL MAIL GROUP LIMITED,A0002281, 31/08/2017,DAL0282500,7.58,N,N/A,N,N/A,
Pendle Borough Council,Democratic & Legal Services,Supplies and Services,Postages,4501,ROYAL MAIL GROUP LIMITED,A0002281, 10/08/2017,DAL0282110,486.40,N,N/A,N,N/A,
Pendle Borough Council,Democratic & Legal Services,Supplies and Services,Postages,4501,ROYAL MAIL GROUP LIMITED,A0002281, 31/08/2017,DAL0282500,551.80,N,N/A,N,N/A,
Pendle Borough Council,Democratic & Legal Services,Supplies and Services,Postages,4501,ROYAL MAIL GROUP LIMITED,A0002281, 10/08/2017,DAL0282122,1390.73,N,N/A,N,N/A,
Pendle Borough Council,Democratic & Legal Services,Supplies and Services,Postages,4501,ROYAL MAIL GROUP LIMITED,A0002281, 24/08/2017,DAL0282413,1609.15,N,N/A,N,N/A,
Pendle Borough Council,Democratic & Legal Services,Supplies and Services,Postages,4501,ROYAL MAIL GROUP LIMITED,A0002281, 10/08/2017,DAL0282110,23.94,N,N/A,N,N/A,
Pendle Borough Council,Democratic & Legal Services,Supplies and Services,Postages,4501,ROYAL MAIL GROUP LIMITED,A0002281, 10/08/2017,DAL0282110,11.80,N,N/A,N,N/A,
Pendle Borough Council,Democratic & Legal Services,Supplies and Services,Postages,4501,ROYAL MAIL GROUP LIMITED,A0002281, 31/08/2017,DAL0282500,12.97,N,N/A,N,N/A,
Pendle Borough Council,Democratic & Legal Services,Supplies and Services,Postages,4501,ROYAL MAIL GROUP LIMITED,A0002281, 31/08/2017,DAL0282500,0.54,N,N/A,N,N/A,
Pendle Borough Council,Democratic & Legal Services,Supplies and Services,Postages,4501,ROYAL MAIL GROUP LIMITED,A0002281, 10/08/2017,DAL0282110,1.64,N,N/A,N,N/A,
Pendle Borough Council,Democratic & Legal Services,Supplies and Services,Postages,4501,ROYAL MAIL GROUP LIMITED,A0002281, 10/08/2017,DAL0282110,1.07,N,N/A,N,N/A,
Pendle Borough Council,Democratic & Legal Services,Supplies and Services,Postages,4501,ROYAL MAIL GROUP LIMITED,A0002281, 31/08/2017,DAL0282500,1.08,N,N/A,N,N/A,
Pendle Borough Council,Democratic & Legal Services,Supplies and Services,Postages,4501,ROYAL MAIL GROUP LIMITED,A0002281, 10/08/2017,DAL0282110,2.55,N,N/A,N,N/A,
Pendle Borough Council,Democratic & Legal Services,Supplies and Services,Postages,4501,ROYAL MAIL GROUP LIMITED,A0002281, 31/08/2017,DAL0282500,32.39,N,N/A,N,N/A,
Pendle Borough Council,Democratic & Legal Services,Supplies and Services,Postages,4501,ROYAL MAIL GROUP LIMITED,A0002281, 10/08/2017,DAL0282110,43.77,N,N/A,N,N/A,
Pendle Borough Council,Democratic & Legal Services,Supplies and Services,Postages,4501,ROYAL MAIL GROUP LIMITED,A0002281, 31/08/2017,DAL0282500,1.07,N,N/A,N,N/A,
Pendle Borough Council,Democratic & Legal Services,Supplies and Services,Postages,4501,ROYAL MAIL GROUP LIMITED,A0002281, 10/08/2017,DAL0282110,117.85,N,N/A,N,N/A,
Pendle Borough Council,Democratic & Legal Services,Supplies and Services,Postages,4501,ROYAL MAIL GROUP LIMITED,A0002281, 31/08/2017,DAL0282500,129.56,N,N/A,N,N/A,
Pendle Borough Council,Democratic & Legal Services,Supplies and Services,Postages,4501,ROYAL MAIL GROUP LIMITED,A0002281, 10/08/2017,DAL0282110,16.71,N,N/A,N,N/A,
Pendle Borough Council,Democratic & Legal Services,Supplies and Services,Postages,4501,ROYAL MAIL GROUP LIMITED,A0002281, 31/08/2017,DAL0282500,25.59,N,N/A,N,N/A,
Pendle Borough Council,Democratic & Legal Services,Supplies and Services,Postages,4501,ROYAL MAIL GROUP LIMITED,A0002281, 10/08/2017,DAL0282110,5.94,N,N/A,N,N/A,
Pendle Borough Council,Democratic & Legal Services,Supplies and Services,Postages,4501,ROYAL MAIL GROUP LIMITED,A0002281, 31/08/2017,DAL0282500,21.27,N,N/A,N,N/A,
Pendle Borough Council,Democratic & Legal Services,Supplies and Services,Postages,4501,ROYAL MAIL GROUP LIMITED,A0002281, 31/08/2017,DAL0282500,9.30,N,N/A,N,N/A,
Pendle Borough Council,Democratic & Legal Services,Supplies and Services,Postages,4501,ROYAL MAIL GROUP LIMITED,A0002281, 10/08/2017,DAL4005658,-2.20,N,N/A,N,N/A,
Pendle Borough Council,Democratic & Legal Services,Supplies and Services,Postages,4501,ROYAL MAIL GROUP LIMITED,A0002281, 10/08/2017,DAL4005657,-1.10,N,N/A,N,N/A,
Pendle Borough Council,Democratic & Legal Services,Supplies and Services,Postages,4501,ROYAL MAIL GROUP LIMITED,A0002281, 10/08/2017,DAL0282110,333.59,N,N/A,N,N/A,
Pendle Borough Council,Democratic & Legal Services,Supplies and Services,Postages,4501,ROYAL MAIL GROUP LIMITED,A0002281, 31/08/2017,DAL0282500,403.52,N,N/A,N,N/A,
Pendle Borough Council,Democratic & Legal Services,Supplies and Services,Postages,4501,ROYAL MAIL GROUP LIMITED,A0002281, 10/08/2017,DAL0282110,26.94,N,N/A,N,N/A,
Pendle Borough Council,Democratic & Legal Services,Supplies and Services,Postages,4501,ROYAL MAIL GROUP LIMITED,A0002281, 31/08/2017,DAL0282500,41.76,N,N/A,N,N/A,
Pendle Borough Council,Democratic & Legal Services,Supplies and Services,Postages,4501,ROYAL MAIL GROUP LIMITED,A0002281, 17/08/2017,DAL0282223,305.83,N,N/A,N,N/A,
Pendle Borough Council,Democratic & Legal Services,Supplies and Services,Other Expenses,4705,ROYAL MAIL GROUP LIMITED,A0002281, 31/08/2017,DAL0282500,10.80,N,N/A,N,N/A,
Pendle Borough Council,Housing Regeneration Services,Supplies and Services,Other Expenses,4705,ROYAL MAIL GROUP LIMITED,A0002281, 24/08/2017,HMR0282346,265.00,N,N/A,N,N/A,
Pendle Borough Council,Democratic & Legal Services,Supplies and Services,Newspapers & Periodicals,4305,RUKHSAR KHALIQ - CARR ROAD NEWS,A0000067, 10/08/2017,DAL0282145,66.30,N,N/A,N,N/A,
Pendle Borough Council,Democratic & Legal Services,Supplies and Services,Newspapers & Periodicals,4305,RUKHSAR KHALIQ - CARR ROAD NEWS,A0000067, 10/08/2017,DAL0282145,69.65,N,N/A,N,N/A,
Pendle Borough Council,Engineering & Special Projects,Premises Related Expense,Grounds : R & M : Day to Day : Routine,2101,RUSSELL HOLDEN,A0075067, 17/08/2017,HED0282212,180.00,N,N/A,N,N/A,
Pendle Borough Council,Engineering & Special Projects,Premises Related Expense,Grounds : R & M : Day to Day : Routine,2101,RUSSELL HOLDEN,A0075067, 17/08/2017,HED0282212,211.30,N,N/A,N,N/A,
Pendle Borough Council,Operational Services,Premises Related Expense,Grounds : R & M : Day to Day : Routine,2101,S M SHEPHERD BUILDING CONTRACTORS,A0044037, 10/08/2017,OPS0282133,160.00,N,N/A,N,N/A,
Pendle Borough Council,Operational Services,Supplies and Services,Sub-Contractors,4007,S M SHEPHERD BUILDING CONTRACTORS,A0044037, 24/08/2017,OPS0282377,70.00,N,N/A,N,N/A,
Pendle Borough Council,Operational Services,Supplies and Services,Sub-Contractors,4007,S M SHEPHERD BUILDING CONTRACTORS,A0044037, 24/08/2017,OPS0282377,90.00,N,N/A,N,N/A,
Pendle Borough Council,Operational Services,Supplies and Services,Sub-Contractors,4007,S M SHEPHERD BUILDING CONTRACTORS,A0044037, 10/08/2017,OPS0282133,100.00,N,N/A,N,N/A,
Pendle Borough Council,Operational Services,,Paid in the Year,PD03,S M SHEPHERD BUILDING CONTRACTORS,A0044037, 10/08/2017,OPS0282123,160.00,N,N/A,N,N/A,
Pendle Borough Council,Operational Services,,Paid in the Year,PD03,S M SHEPHERD BUILDING CONTRACTORS,A0044037, 10/08/2017,OPS0282123,200.00,N,N/A,N,N/A,
Pendle Borough Council,Engineering & Special Projects,Capital Costs,Capital : Payments,CD14,SALTERFORTH TOILETS GROUP,A0090906, 10/08/2017,HED0282062,500.00,N,N/A,N,N/A,
Pendle Borough Council,Democratic & Legal Services,Supplies and Services,Consultants Fees,4401,REDACTED - PERSONAL DATA,A0027336, 10/08/2017,DAL0282147,2.08,N,N/A,N,N/A,
Pendle Borough Council,Democratic & Legal Services,Supplies and Services,Consultants Fees,4401,REDACTED - PERSONAL DATA,A0027336, 10/08/2017,DAL0282147,24.00,N,N/A,N,N/A,
Pendle Borough Council,Economic Development & Tourism,Capital Costs,Capital : Payments,CD14,SCRUPLES MENSWEAR,A0091268, 17/08/2017,REG0282231,3000.00,N,N/A,N,N/A,
Pendle Borough Council,Democratic & Legal Services,,Fees Income : VATable,9202,SEARCH ACUMEN LIMITED - AS LLOYD,A0091278, 31/08/2017,DAL0282530,62.50,N,N/A,N,N/A,
Pendle Borough Council,Democratic & Legal Services,,Fees Income : Non-VATable,9302,SEARCH ACUMEN LIMITED - AS LLOYD,A0091278, 31/08/2017,DAL0282530,-25.00,N,N/A,N,N/A,
Pendle Borough Council,Operational Services,Supplies and Services,Telephones : Direct,4502,SECURITY MONITORING CENTRES LTD,A0059068, 10/08/2017,OPS0282127,121.67,N,N/A,N,N/A,
Pendle Borough Council,Financial Services,Supplies and Services,Printing & Stationery,4301,SHELTER,A0002511, 03/08/2017,AAS0282005,85.98,Y,263710,N,N/A,
Pendle Borough Council,Parks & Recreation Services,Supplies and Services,Expenditure : Materials,0002,SHERRIFF AMENITY - AGROVISTA UK LIMITED,A0068904, 03/08/2017,PCO0281940,133.72,N,N/A,N,N/A,
Pendle Borough Council,Parks & Recreation Services,Supplies and Services,Expenditure : Materials,0002,SHERRIFF AMENITY - AGROVISTA UK LIMITED,A0068904, 10/08/2017,PCO0282043,233.60,N,N/A,N,N/A,
Pendle Borough Council,Parks & Recreation Services,Supplies and Services,Expenditure : Materials,0002,SHERRIFF AMENITY - AGROVISTA UK LIMITED,A0068904, 03/08/2017,PCO0281940,286.68,N,N/A,N,N/A,
Pendle Borough Council,Housing Regeneration Services,Supplies and Services,Tests & Inspection Fees,4409,SITE SERVICES,A0091261, 24/08/2017,HMR0282412,90.00,N,N/A,N,N/A,
Pendle Borough Council,Operational Services,Indirect Employee Expenses,Lone Worker Monitoring Service,1270,SOLOPROTECT LIMITED,A0089719, 03/08/2017,OPS0281963,387.10,N,N/A,N,N/A,
Pendle Borough Council,Environmental Health Services,Supplies and Services,Other Expenses,4705,SOLOPROTECT LIMITED,A0089719, 10/08/2017,ENV0282175,43.36,N,N/A,N,N/A,
Pendle Borough Council,Property Services,Premises Related Expense,Electricity,2203,SOUTHERN ELECTRIC,A0051726, 10/08/2017,EST0282116,118.50,N,N/A,N,N/A,
Pendle Borough Council,Parks & Recreation Services,Transport Related Expense,Tprt : Repairs : General,3105,SPALDINGS (UK) LTD,A0002537, 24/08/2017,PCO0282383,16.80,N,N/A,N,N/A,
Pendle Borough Council,Parks & Recreation Services,Transport Related Expense,Tprt : Repairs : General,3105,SPALDINGS (UK) LTD,A0002537, 10/08/2017,PCO0282045,28.64,N,N/A,N,N/A,
Pendle Borough Council,Parks & Recreation Services,Transport Related Expense,Tprt : Repairs : General,3105,SPALDINGS (UK) LTD,A0002537, 10/08/2017,PCO0282049,32.00,N,N/A,N,N/A,
Pendle Borough Council,Parks & Recreation Services,Transport Related Expense,Tprt : Repairs : General,3105,SPALDINGS (UK) LTD,A0002537, 10/08/2017,PCO0282045,36.00,N,N/A,N,N/A,
Pendle Borough Council,Parks & Recreation Services,Transport Related Expense,Tprt : Repairs : General,3105,SPALDINGS (UK) LTD,A0002537, 10/08/2017,PCO0282045,48.00,N,N/A,N,N/A,
Pendle Borough Council,Parks & Recreation Services,Transport Related Expense,Tprt : Repairs : General,3105,SPALDINGS (UK) LTD,A0002537, 24/08/2017,PCO0282406,48.00,N,N/A,N,N/A,
Pendle Borough Council,Parks & Recreation Services,Transport Related Expense,Tprt : Repairs : General,3105,SPALDINGS (UK) LTD,A0002537, 10/08/2017,PCO0282045,66.00,N,N/A,N,N/A,
Pendle Borough Council,Parks & Recreation Services,Transport Related Expense,Tprt : Repairs : General,3105,SPALDINGS (UK) LTD,A0002537, 10/08/2017,PCO0282045,72.00,N,N/A,N,N/A,
Pendle Borough Council,Parks & Recreation Services,Transport Related Expense,Tprt : Repairs : General,3105,SPALDINGS (UK) LTD,A0002537, 10/08/2017,PCO0282048,72.00,N,N/A,N,N/A,
Pendle Borough Council,Parks & Recreation Services,Transport Related Expense,Tprt : Repairs : General,3105,SPALDINGS (UK) LTD,A0002537, 24/08/2017,PCO0282383,90.00,N,N/A,N,N/A,
Pendle Borough Council,Parks & Recreation Services,Transport Related Expense,Tprt : Repairs : General,3105,SPALDINGS (UK) LTD,A0002537, 10/08/2017,PCO0282046,94.00,N,N/A,N,N/A,
Pendle Borough Council,Parks & Recreation Services,Transport Related Expense,Tprt : Repairs : General,3105,SPALDINGS (UK) LTD,A0002537, 10/08/2017,PCO0282045,129.00,N,N/A,N,N/A,
Pendle Borough Council,Parks & Recreation Services,Transport Related Expense,Tprt : Repairs : General,3105,SPALDINGS (UK) LTD,A0002537, 24/08/2017,PCO0282407,171.00,N,N/A,N,N/A,
Pendle Borough Council,Property Services,Premises Related Expense,Bldgs : R & M : Day To Day,2001,SPEAKMAN CONTRACTORS LTD,A0066581, 24/08/2017,EST0282450,1110.00,N,N/A,N,N/A,
Pendle Borough Council,Property Services,Premises Related Expense,Bldgs : R & M : Day To Day,2001,SPEAKMAN CONTRACTORS LTD,A0066581, 24/08/2017,EST0282450,84.99,N,N/A,N,N/A,
Pendle Borough Council,Property Services,Premises Related Expense,Bldgs : R & M : Day To Day,2001,SPEAKMAN CONTRACTORS LTD,A0066581, 24/08/2017,EST0282450,46.01,N,N/A,N,N/A,
Pendle Borough Council,Property Services,Premises Related Expense,Bldgs : R & M : Day To Day,2001,SPEAKMAN CONTRACTORS LTD,A0066581, 24/08/2017,EST0282450,302.68,N,N/A,N,N/A,
Pendle Borough Council,Property Services,Premises Related Expense,Bldgs : R & M : Day To Day,2001,SPEAKMAN CONTRACTORS LTD,A0066581, 24/08/2017,EST0282450,65.12,N,N/A,N,N/A,
Pendle Borough Council,Property Services,Premises Related Expense,Bldgs : R & M : Day To Day,2001,SPEAKMAN CONTRACTORS LTD,A0066581, 24/08/2017,EST0282450,130.89,N,N/A,N,N/A,
Pendle Borough Council,Property Services,Premises Related Expense,Grounds : R & M : Day to Day : Routine,2101,SPEAKMAN CONTRACTORS LTD,A0066581, 24/08/2017,EST0282450,231.01,N,N/A,N,N/A,
Pendle Borough Council,Property Services,Capital Costs,Capital : Payments,CD14,SPEAKMAN CONTRACTORS LTD,A0066581, 24/08/2017,EST0282450,4950.00,N,N/A,N,N/A,
Pendle Borough Council,Property Services,Capital Costs,Capital : Payments,CD14,SPEAKMAN CONTRACTORS LTD,A0066581, 24/08/2017,EST0282450,28.00,N,N/A,N,N/A,
Pendle Borough Council,Housing Regeneration Services,Capital Costs,Capital : Payments,CD14,ST VINCENTS HOME IMPROVEMENT AGENCY,A0065527, 24/08/2017,HMR0282434,1770.00,N,N/A,N,N/A,
Pendle Borough Council,Engineering & Special Projects,Capital Costs,Capital : Payments,CD14,ST. JOSEPHS COMMUNITY CENTRE,A0061567, 10/08/2017,HED0282059,1000.00,Y,Unknown,N,N/A,
Pendle Borough Council,Operational Services,Agency Staff,Emp : Agency Wages,1004,STANLEY BROTHERS (TIPPERS) LTD,A0002422, 10/08/2017,OPS0282130,307.20,N,N/A,N,N/A,
Pendle Borough Council,Operational Services,Agency Staff,Emp : Agency Wages,1004,STANLEY BROTHERS (TIPPERS) LTD,A0002422, 10/08/2017,OPS0282130,76.80,N,N/A,N,N/A,
Pendle Borough Council,Operational Services,Transport Related Expense,Tprt : Annual Hire Charge,3601,STANLEY BROTHERS (TIPPERS) LTD,A0002422, 10/08/2017,OPS0282113,2100.00,N,N/A,N,N/A,
Pendle Borough Council,Operational Services,Supplies and Services,Veterinary Fees,4405,STANLEY HOUSE VETERINARY GROUP,A0002423, 17/08/2017,OPS0282275,5.44,N,N/A,N,N/A,
Pendle Borough Council,Engineering & Special Projects,Premises Related Expense,Grounds : R & M : Day to Day : Routine,2101,STAR URETECH LIMITED,A0091244, 03/08/2017,HED0281990,43.78,N,N/A,N,N/A,
Pendle Borough Council,Parks & Recreation Services,Transport Related Expense,Tprt : Repairs : General,3105,SUPER AUTO SAVER,A0090951, 03/08/2017,PCO0281950,5.00,N,N/A,N,N/A,
Pendle Borough Council,Parks & Recreation Services,Premises Related Expense,Grounds : R & M : Day to Day : Routine,2101,SUTCLIFFE PLAY LTD,A0045788, 24/08/2017,PCO0282362,1.44,N,N/A,N,N/A,
Pendle Borough Council,Parks & Recreation Services,Premises Related Expense,Grounds : R & M : Day to Day : Routine,2101,SUTCLIFFE PLAY LTD,A0045788, 24/08/2017,PCO0282362,3.48,N,N/A,N,N/A,
Pendle Borough Council,Parks & Recreation Services,Premises Related Expense,Grounds : R & M : Day to Day : Routine,2101,SUTCLIFFE PLAY LTD,A0045788, 24/08/2017,PCO0282362,12.12,N,N/A,N,N/A,
Pendle Borough Council,Parks & Recreation Services,Premises Related Expense,Grounds : R & M : Day to Day : Routine,2101,SUTCLIFFE PLAY LTD,A0045788, 24/08/2017,PCO0282362,21.47,N,N/A,N,N/A,
Pendle Borough Council,Parks & Recreation Services,Premises Related Expense,Grounds : R & M : Day to Day : Routine,2101,SUTCLIFFE PLAY LTD,A0045788, 24/08/2017,PCO0282362,197.64,N,N/A,N,N/A,
Pendle Borough Council,Engineering & Special Projects,Premises Related Expense,Bldgs : R & M : Day To Day,2001,T & F STEEL DESIGNS LTD,A0002627, 03/08/2017,HED0281969,60.00,N,N/A,N,N/A,
Pendle Borough Council,Engineering & Special Projects,Premises Related Expense,Bldgs : R & M : Day To Day,2001,T & F STEEL DESIGNS LTD,A0002627, 03/08/2017,HED0281969,233.00,N,N/A,N,N/A,
Pendle Borough Council,Engineering & Special Projects,Premises Related Expense,Bldgs : R & M : Day To Day,2001,T & F STEEL DESIGNS LTD,A0002627, 03/08/2017,HED0281971,20.00,N,N/A,N,N/A,
Pendle Borough Council,Engineering & Special Projects,Premises Related Expense,Bldgs : R & M : Day To Day,2001,T & F STEEL DESIGNS LTD,A0002627, 03/08/2017,HED0281971,70.00,N,N/A,N,N/A,
Pendle Borough Council,Engineering & Special Projects,Premises Related Expense,Grounds : R & M : Day to Day : Routine,2101,T & F STEEL DESIGNS LTD,A0002627, 03/08/2017,HED0281967,40.00,N,N/A,N,N/A,
Pendle Borough Council,Parks & Recreation Services,Transport Related Expense,Diesel Oil,3202,TATE FUEL OILS LIMITED,A0082819, 10/08/2017,PCO0282041,1482.15,N,N/A,N,N/A,
Pendle Borough Council,Operational Services,Supplies and Services,Sub-Contractors,4007,TCS (WASTE) LIMITED,A0072822, 17/08/2017,OPS0282270,280.00,N,N/A,N,N/A,
Pendle Borough Council,Democratic & Legal Services,Supplies and Services,Meeting Expenses,4610,THE RAINHALL CENTRE,A0066193, 10/08/2017,DAL0282141,45.00,N,N/A,N,N/A,
Pendle Borough Council,Engineering & Special Projects,Capital Costs,Capital : Payments,CD14,THE RAINHALL CENTRE,A0066193, 31/08/2017,HED0282531,300.00,N,N/A,N,N/A,
Pendle Borough Council,Human Resources,Indirect Employee Expenses,Training,1211,THE UNIVERSITY OF LEEDS,A0090462, 24/08/2017,PER0282495,80.00,N,N/A,N,N/A,
Pendle Borough Council,Democratic & Legal Services,Supplies and Services,Printing & Stationery,4301,THOMSON REUTERS,A0077400, 03/08/2017,DAL0281974,87.50,N,N/A,N,N/A,
Pendle Borough Council,Democratic & Legal Services,Supplies and Services,Printing & Stationery,4301,THOMSON REUTERS,A0077400, 03/08/2017,DAL0281974,87.50,N,N/A,N,N/A,
Pendle Borough Council,Democratic & Legal Services,Supplies and Services,Printing & Stationery,4301,THOMSON REUTERS,A0077400, 10/08/2017,DAL0282149,7693.34,N,N/A,N,N/A,
Pendle Borough Council,Chief Executives Policy Unit,Supplies and Services,Other Expenses,4705,THORNE ACCESS AND SECURITY,A0070220, 24/08/2017,COR0282283,775.00,N,N/A,N,N/A,
Pendle Borough Council,Housing Regeneration Services,Supplies and Services,Other Expenses,4705,TOGETHER HOUSING ASSOCIATION,A0055008, 24/08/2017,HMR0282340,72.43,N,N/A,N,N/A,
Pendle Borough Council,Housing Regeneration Services,Supplies and Services,Meeting Expenses,4610,TOGETHER HOUSING ASSOCIATION,A0090740, 24/08/2017,HMR0282347,397.80,N,N/A,N,N/A,
Pendle Borough Council,Housing Regeneration Services,Supplies and Services,Grant Funding,4737,TOGETHER HOUSING ASSOCIATION,A0090740, 03/08/2017,HMR0281984,8146.71,N,N/A,N,N/A,
Pendle Borough Council,Engineering & Special Projects,Premises Related Expense,Grounds : R & M : Day to Day : Routine,2101,TRAVIS PERKINS TRADING CO LTD,A0002709, 17/08/2017,HED0282211,40.08,N,N/A,N,N/A,
Pendle Borough Council,Economic Development & Tourism,Supplies and Services,EFM Materials,4004,TRAVIS PERKINS TRADING CO LTD,A0002709, 17/08/2017,REG0282081,75.90,N,N/A,N,N/A,
Pendle Borough Council,Economic Development & Tourism,Supplies and Services,Maintenance contracts,4006,TRAVIS PERKINS TRADING CO LTD,A0002709, 17/08/2017,REG0282076,4.18,N,N/A,N,N/A,
Pendle Borough Council,Economic Development & Tourism,Supplies and Services,Maintenance contracts,4006,TRAVIS PERKINS TRADING CO LTD,A0002709, 17/08/2017,REG0282071,41.80,N,N/A,N,N/A,
Pendle Borough Council,Economic Development & Tourism,Supplies and Services,Maintenance contracts,4006,TRAVIS PERKINS TRADING CO LTD,A0002709, 17/08/2017,REG0282074,106.63,N,N/A,N,N/A,
Pendle Borough Council,Economic Development & Tourism,Supplies and Services,Maintenance contracts,4006,TRAVIS PERKINS TRADING CO LTD,A0002709, 17/08/2017,REG0282072,207.79,N,N/A,N,N/A,
Pendle Borough Council,Economic Development & Tourism,Supplies and Services,Miscellaneous : Other,4707,TRAVIS PERKINS TRADING CO LTD,A0002709, 17/08/2017,REG0282065,36.57,N,N/A,N,N/A,
Pendle Borough Council,Parks & Recreation Services,Premises Related Expense,Bldgs : R & M : Day To Day,2001,TRAWDEN FOREST PARISH COUNCIL,A0062286, 17/08/2017,PCO0282210,250.00,N,N/A,N,N/A,
Pendle Borough Council,Engineering & Special Projects,Premises Related Expense,Bldgs : R & M : Day To Day,2001,TRAWDEN FOREST PARISH COUNCIL,A0062286, 03/08/2017,HED0281925,150.00,N,N/A,N,N/A,
Pendle Borough Council,Financial Services,Capital Costs,Capital : Payments,CD14,TRICAD SOLUTIONS LIMITED,A0070356, 17/08/2017,AAS0282266,1425.00,N,N/A,N,N/A,
Pendle Borough Council,Engineering & Special Projects,Supplies and Services,EFM : Other Equipment,4003,TRISTAR PRINTERS LTD,A0002731, 31/08/2017,HED0282513,187.50,N,N/A,N,N/A,
Pendle Borough Council,Engineering & Special Projects,Supplies and Services,EFM : Other Equipment,4003,TRISTAR PRINTERS LTD,A0002731, 31/08/2017,HED0282513,187.50,N,N/A,N,N/A,
Pendle Borough Council,Financial Services,Supplies and Services,Printing & Stationery,4301,TRISTAR PRINTERS LTD,A0002731, 10/08/2017,AAS0282143,75.00,N,N/A,N,N/A,
Pendle Borough Council,Financial Services,Supplies and Services,Printing & Stationery,4301,TRISTAR PRINTERS LTD,A0002731, 10/08/2017,AAS0282182,85.00,N,N/A,N,N/A,
Pendle Borough Council,Democratic & Legal Services,Supplies and Services,Consultants Fees,4401,TRISTAR PRINTERS LTD,A0002731, 31/08/2017,DAL0282538,295.80,N,N/A,N,N/A,
Pendle Borough Council,Operational Services,Supplies and Services,EFM : Other Equipment,4003,UNICORN CONTAINERS LIMITED,A0076141, 31/08/2017,OPS0282478,940.00,N,N/A,N,N/A,
Pendle Borough Council,Environmental Health Services,Supplies and Services,Tests & Inspection Fees,4409,UNITED UTILITIES WATER PLC,A0072400, 10/08/2017,ENV0282179,121.80,N,N/A,N,N/A,
Pendle Borough Council,Environmental Health Services,Supplies and Services,Tests & Inspection Fees,4409,UNITED UTILITIES WATER PLC,A0072400, 31/08/2017,ENV0282527,323.70,N,N/A,N,N/A,
Pendle Borough Council,Property Services,Indirect Employee Expenses,Staff Refreshments,1261,VENDA VALET (MACHINES) LTD,A0009649, 10/08/2017,EST0282104,217.17,N,N/A,N,N/A,
Pendle Borough Council,Engineering & Special Projects,Supplies and Services,EFM : Other Equipment,4003,VIP SYSTEM LIMITED,A0050529, 03/08/2017,HED0281978,451.64,N,N/A,N,N/A,
Pendle Borough Council,Engineering & Special Projects,Supplies and Services,EFM : Other Equipment,4003,VIP SYSTEM LIMITED,A0050529, 03/08/2017,HED0281977,451.64,N,N/A,N,N/A,
Pendle Borough Council,Parks & Recreation Services,Transport Related Expense,Tprt : Repairs : General,3105,WALTON SUMMIT TRUCK  CENTRE LTD,A0020983, 03/08/2017,PCO0281949,136.53,N,N/A,N,N/A,
Pendle Borough Council,Property Services,Premises Related Expense,Water & Sewerage,2501,WATER PLUS LIMITED,A0001986, 03/08/2017,EST0281992,75.98,N,N/A,N,N/A,
Pendle Borough Council,Property Services,Premises Related Expense,Water & Sewerage,2501,WATER PLUS LIMITED,A0001986, 03/08/2017,EST0281994,45.49,N,N/A,N,N/A,
Pendle Borough Council,Property Services,Premises Related Expense,Water & Sewerage,2501,WATER PLUS LIMITED,A0001986, 03/08/2017,EST0281993,261.96,N,N/A,N,N/A,
Pendle Borough Council,Property Services,Premises Related Expense,Water & Sewerage,2501,WATER PLUS LIMITED,A0001986, 03/08/2017,EST0281995,1249.17,N,N/A,N,N/A,
Pendle Borough Council,Property Services,Premises Related Expense,Water & Sewerage,2501,WATER PLUS LIMITED,A0001986, 24/08/2017,EST0282474,104.07,N,N/A,N,N/A,
Pendle Borough Council,Engineering & Special Projects,Capital Costs,Capital : Payments,CD14,WEC GROUP LIMITED,A0072460, 24/08/2017,HED0282290,171.00,N,N/A,N,N/A,
Pendle Borough Council,Operational Services,,Stock : Purchases,PJ01,WEIR & CARMICHAEL,A0085349, 17/08/2017,OPS0282272,182.00,N,N/A,N,N/A,
Pendle Borough Council,Operational Services,Transport Related Expense,Tprt : Annual Hire Charge,3601,WEST WALLASEY CAR HIRE LIMITED,A0087005, 17/08/2017,OPS0282276,290.00,N,N/A,N,N/A,
Pendle Borough Council,Democratic & Legal Services,Supplies and Services,Postages,4501,WHISTL UK LIMITED,A0064458, 31/08/2017,DAL0282542,2.59,N,N/A,N,N/A,
Pendle Borough Council,Democratic & Legal Services,Supplies and Services,Postages,4501,WHISTL UK LIMITED,A0064458, 17/08/2017,DAL0282220,2.62,N,N/A,N,N/A,
Pendle Borough Council,Democratic & Legal Services,Supplies and Services,Postages,4501,WHISTL UK LIMITED,A0064458, 24/08/2017,DAL0282287,4.09,N,N/A,N,N/A,
Pendle Borough Council,Democratic & Legal Services,Supplies and Services,Postages,4501,WHISTL UK LIMITED,A0064458, 24/08/2017,DAL0282493,4.86,N,N/A,N,N/A,
Pendle Borough Council,Democratic & Legal Services,Supplies and Services,Postages,4501,WHISTL UK LIMITED,A0064458, 10/08/2017,DAL0282119,5.23,N,N/A,N,N/A,
Pendle Borough Council,Democratic & Legal Services,Supplies and Services,Postages,4501,WHISTL UK LIMITED,A0064458, 24/08/2017,DAL0282287,0.37,N,N/A,N,N/A,
Pendle Borough Council,Democratic & Legal Services,Supplies and Services,Postages,4501,WHISTL UK LIMITED,A0064458, 17/08/2017,DAL0282220,1.32,N,N/A,N,N/A,
Pendle Borough Council,Democratic & Legal Services,Supplies and Services,Postages,4501,WHISTL UK LIMITED,A0064458, 31/08/2017,DAL0282542,45.35,N,N/A,N,N/A,
Pendle Borough Council,Democratic & Legal Services,Supplies and Services,Postages,4501,WHISTL UK LIMITED,A0064458, 24/08/2017,DAL0282287,28.72,N,N/A,N,N/A,
Pendle Borough Council,Democratic & Legal Services,Supplies and Services,Postages,4501,WHISTL UK LIMITED,A0064458, 17/08/2017,DAL0282220,68.15,N,N/A,N,N/A,
Pendle Borough Council,Democratic & Legal Services,Supplies and Services,Postages,4501,WHISTL UK LIMITED,A0064458, 24/08/2017,DAL0282493,81.91,N,N/A,N,N/A,
Pendle Borough Council,Democratic & Legal Services,Supplies and Services,Postages,4501,WHISTL UK LIMITED,A0064458, 10/08/2017,DAL0282119,84.78,N,N/A,N,N/A,
Pendle Borough Council,Democratic & Legal Services,Supplies and Services,Postages,4501,WHISTL UK LIMITED,A0064458, 31/08/2017,DAL0282542,118.03,N,N/A,N,N/A,
Pendle Borough Council,Democratic & Legal Services,Supplies and Services,Postages,4501,WHISTL UK LIMITED,A0064458, 24/08/2017,DAL0282287,0.37,N,N/A,N,N/A,
Pendle Borough Council,Democratic & Legal Services,Supplies and Services,Postages,4501,WHISTL UK LIMITED,A0064458, 31/08/2017,DAL0282542,1.51,N,N/A,N,N/A,
Pendle Borough Council,Democratic & Legal Services,Supplies and Services,Postages,4501,WHISTL UK LIMITED,A0064458, 24/08/2017,DAL0282493,6.43,N,N/A,N,N/A,
Pendle Borough Council,Democratic & Legal Services,Supplies and Services,Postages,4501,WHISTL UK LIMITED,A0064458, 10/08/2017,DAL0282119,8.30,N,N/A,N,N/A,
Pendle Borough Council,Democratic & Legal Services,Supplies and Services,Postages,4501,WHISTL UK LIMITED,A0064458, 17/08/2017,DAL0282220,35.35,N,N/A,N,N/A,
Pendle Borough Council,Democratic & Legal Services,Supplies and Services,Postages,4501,WHISTL UK LIMITED,A0064458, 10/08/2017,DAL0282119,1.48,N,N/A,N,N/A,
Pendle Borough Council,Democratic & Legal Services,Supplies and Services,Postages,4501,WHISTL UK LIMITED,A0064458, 31/08/2017,DAL0282542,4.88,N,N/A,N,N/A,
Pendle Borough Council,Democratic & Legal Services,Supplies and Services,Postages,4501,WHISTL UK LIMITED,A0064458, 24/08/2017,DAL0282287,5.19,N,N/A,N,N/A,
Pendle Borough Council,Democratic & Legal Services,Supplies and Services,Postages,4501,WHISTL UK LIMITED,A0064458, 17/08/2017,DAL0282220,5.63,N,N/A,N,N/A,
Pendle Borough Council,Democratic & Legal Services,Supplies and Services,Postages,4501,WHISTL UK LIMITED,A0064458, 24/08/2017,DAL0282493,22.97,N,N/A,N,N/A,
Pendle Borough Council,Democratic & Legal Services,Supplies and Services,Postages,4501,WHISTL UK LIMITED,A0064458, 24/08/2017,DAL0282287,14.05,N,N/A,N,N/A,
Pendle Borough Council,Democratic & Legal Services,Supplies and Services,Postages,4501,WHISTL UK LIMITED,A0064458, 10/08/2017,DAL0282119,16.05,N,N/A,N,N/A,
Pendle Borough Council,Democratic & Legal Services,Supplies and Services,Postages,4501,WHISTL UK LIMITED,A0064458, 17/08/2017,DAL0282220,19.48,N,N/A,N,N/A,
Pendle Borough Council,Democratic & Legal Services,Supplies and Services,Postages,4501,WHISTL UK LIMITED,A0064458, 24/08/2017,DAL0282493,24.50,N,N/A,N,N/A,
Pendle Borough Council,Democratic & Legal Services,Supplies and Services,Postages,4501,WHISTL UK LIMITED,A0064458, 31/08/2017,DAL0282542,27.28,N,N/A,N,N/A,
Pendle Borough Council,Engineering & Special Projects,Capital Costs,Capital : Payments,CD14,WHITEFIELD COMMUNITY ASSOCIATION,A0091267, 17/08/2017,HED0282246,669.00,N,N/A,N,N/A,
Pendle Borough Council,Economic Development & Tourism,Supplies and Services,Other Expenses,4705,WILDLIFE TRUST FOR LANCS MANCHESTER & N MERSEYSIDE,A0026880, 03/08/2017,REG0281915,5951.00,Y,229325,N,N/A,
Pendle Borough Council,Housing Regeneration Services,,Paid in the Year,PD03,WILLIAM M SNAPE MANUFACTURING SERVICES UK LTD,A0090766, 24/08/2017,HMR0282437,2671.20,N,N/A,N,N/A,
Pendle Borough Council,Property Services,Premises Related Expense,Bldgs : R & M : Day To Day,2001,WM SMITH & SONS (BARNARD CASTLE),A0013824, 17/08/2017,EST0282244,137.77,N,N/A,N,N/A,
Pendle Borough Council,Engineering & Special Projects,,Other Income : Non-VATable,9303,YELLOW CARS (B`WICK) LIMITED,A0089059, 31/08/2017,HED0282519,33.25,N,N/A,N,N/A,
Pendle Borough Council,Property Services,Premises Related Expense,Water & Sewerage,2501,YORKSHIRE WATER,A0002808, 10/08/2017,EST0282108,21.89,N,N/A,N,N/A,
Pendle Borough Council,Property Services,Premises Related Expense,Water & Sewerage,2501,YORKSHIRE WATER,A0002808, 10/08/2017,EST0282105,124.44,N,N/A,N,N/A,
Pendle Borough Council,Property Services,Premises Related Expense,Water & Sewerage,2501,YORKSHIRE WATER,A0002808, 24/08/2017,EST0282487,63.75,N,N/A,N,N/A,
Pendle Borough Council,Property Services,Premises Related Expense,Water & Sewerage,2501,YORKSHIRE WATER,A0002808, 24/08/2017,EST0282485,12.84,N,N/A,N,N/A,
